Body Name,Body,Service Area Catergorisation,Service Division Catergorisation,Responsible Unit,Expenses Type,Detailed Expenses Type,Expenses Code,Date,Transaction Number,Amount,Capital / Revenue,Supplier Name,Supplier ID
North East Lincolnshire Council,http://statistics.data.gov.uk/id/local-authority/00FC,Chief Executive,Chief Executive,Recharges To Corp Management,Government Departments,Third Party Prov - Govt Depts,PE101,12/01/2012,78539,"-1,755.00 ",REVENUE,AUDIT COMMISSION,100510
North East Lincolnshire Council,http://statistics.data.gov.uk/id/local-authority/00FC,Chief Executive,Chief Executive,Chief Exec & Support,Contributions To Provisions,Contributions - Third Sector,LK102,09/01/2012,77148,500.00 ,REVENUE,NUNSTHORPE TENANTS & RESIDENTS ASSOCIATION,108379
North East Lincolnshire Council,http://statistics.data.gov.uk/id/local-authority/00FC,Chief Executive,Chief Executive,Chief Exec & Support,Contributions To Provisions,Contributions - Third Sector,LK102,31/01/2012,83745,500.00 ,REVENUE,ST ANDREWS HOSPICE,103069
North East Lincolnshire Council,http://statistics.data.gov.uk/id/local-authority/00FC,Chief Executive,Chief Executive,Chief Exec & Support,Contributions To Provisions,Contributions - Third Sector,LK102,30/01/2012,83670,812.50 ,REVENUE,JOHN WHITGIFT ACADEMY,106898
North East Lincolnshire Council,http://statistics.data.gov.uk/id/local-authority/00FC,Chief Executive,Chief Executive,Chief Exec & Support,Contributions To Provisions,Contributions - Third Sector,LK102,30/01/2012,83660,"1,000.00 ",REVENUE,GRIMSBY & DISTRICT LIVE AT HOME SCHEME,102091
North East Lincolnshire Council,http://statistics.data.gov.uk/id/local-authority/00FC,Chief Executive,Chief Executive,Chief Exec & Support,Contributions To Provisions,Contributions - Third Sector,LK102,25/01/2012,82070,"1,015.00 ",REVENUE,TRADITIONAL GATES,108564
North East Lincolnshire Council,http://statistics.data.gov.uk/id/local-authority/00FC,Chief Executive,Chief Executive,Recharges To Corp Management,Government Departments,Third Party Prov - Govt Depts,PE101,12/01/2012,78539,"1,147.50 ",REVENUE,AUDIT COMMISSION,100510
North East Lincolnshire Council,http://statistics.data.gov.uk/id/local-authority/00FC,Chief Executive,Chief Executive,Recharges To Corp Management,Government Departments,Third Party Prov - Govt Depts,PE101,12/01/2012,78539,"1,530.00 ",REVENUE,AUDIT COMMISSION,100510
North East Lincolnshire Council,http://statistics.data.gov.uk/id/local-authority/00FC,Chief Executive,Chief Executive,Recharges To Corp Management,Government Departments,Third Party Prov - Govt Depts,PE101,12/01/2012,78539,"21,945.00 ",REVENUE,AUDIT COMMISSION,100510
North East Lincolnshire Council,http://statistics.data.gov.uk/id/local-authority/00FC,Other Corporate Budgets,Other Corporate Budgets,Appropriations,Indirect Employee Expenses,Pension P/Ment Pension Inc Act,EB105,04/01/2012,75505,894.74 ,REVENUE,LINCOLNSHIRE COUNTY COUNCIL,101224
North East Lincolnshire Council,http://statistics.data.gov.uk/id/local-authority/00FC,Other Corporate Budgets,Other Corporate Budgets,Appropriations,Indirect Employee Expenses,Pension P/Ment Pension Inc Act,EB105,23/01/2012,80606,894.74 ,REVENUE,LINCOLNSHIRE COUNTY COUNCIL,100389
North East Lincolnshire Council,http://statistics.data.gov.uk/id/local-authority/00FC,Other Corporate Budgets,Other Corporate Budgets,Appropriations,Miscellaneous Expenses,Other Expenses General,LL119,26/01/2012,82258,"6,500.00 ",REVENUE,HYMANS ROBERTSON LLP,107021
North East Lincolnshire Council,http://statistics.data.gov.uk/id/local-authority/00FC,People And Communities,Aiming High For Disabled Child,Aiming High For Disabled Child,Cap Land/Build-Build Enh Wrk,Cap Land/Build-Build Enh Wrk,YA102,31/01/2012,83930,558.00 ,CAPITAL,A H ALLEN LTD,104035
North East Lincolnshire Council,http://statistics.data.gov.uk/id/local-authority/00FC,People And Communities,Womens Aid Hostel,Womens Aid Hostel,Cap Grants To O/Side Sources,Cap Grants To O/Side Sources,YJ101,16/01/2012,79095,Redacted Commercially Sensitive,CAPITAL,WOMENS AID,100326
North East Lincolnshire Council,http://statistics.data.gov.uk/id/local-authority/00FC,People And Communities,Ctp Schemes,Ctp Schemes,Cap Land/Build-Build Enh Wrk,Cap Land/Build-Build Enh Wrk,YA102,24/01/2012,81476,"8,275.00 ",CAPITAL,STANNAH LIFT SERVICES LTD,100622
North East Lincolnshire Council,http://statistics.data.gov.uk/id/local-authority/00FC,People And Communities,Childrens Hlth & Family Supp,Integ Local Service Delivery,Communications And Computing,Computer H/Ware - Purchases,LF105,11/01/2012,77486,-520.80 ,REVENUE,TRIBAL EDUCATION LIMITED,103641
North East Lincolnshire Council,http://statistics.data.gov.uk/id/local-authority/00FC,People And Communities,Childrens Hlth & Family Supp,Play 4 Success,Direct Transport Costs,Vehicles - Running Costs,JA104,13/01/2012,79205,-223.05 ,REVENUE,ARVAL UK LIMITED,102401
North East Lincolnshire Council,http://statistics.data.gov.uk/id/local-authority/00FC,People And Communities,Childrens Hlth & Family Supp,Integrated Youth Services,Public Transport,Public Transport - Employees,JD101,11/01/2012,77487,-188.85 ,REVENUE,NYS CORPORATE,102444
North East Lincolnshire Council,http://statistics.data.gov.uk/id/local-authority/00FC,People And Communities,Childrens Hlth & Family Supp,Childrens Centre Development,Cleaning And Domestic Supplies,Refuse Collection,GH104,03/01/2012,74872,-163.02 ,REVENUE,BELL WASTE CONTROL,101433
North East Lincolnshire Council,http://statistics.data.gov.uk/id/local-authority/00FC,People And Communities,Childrens Hlth & Family Supp,Integrated Youth Services,Catering,Provisions,LB101,10/01/2012,77592,Redacted Commercially Sensitive,REVENUE,EAST RIDING OF YORKSHIRE COUNCIL,100654
North East Lincolnshire Council,http://statistics.data.gov.uk/id/local-authority/00FC,People And Communities,Childrens Hlth & Family Supp,Childrens Centre Development,Rep Alterations Maint Building,Buildings - Repairs And Maint,GA102,26/01/2012,82662,-97.90 ,REVENUE,CITY ELECTRICAL FACTORS LTD,101364
North East Lincolnshire Council,http://statistics.data.gov.uk/id/local-authority/00FC,People And Communities,Childrens Hlth & Family Supp,Childrens Centre Development,Rep Alterations Maint Building,Buildings - Repairs And Maint,GA102,03/01/2012,74875,-85.00 ,REVENUE,FABRIQUE SPECIALISTS GLAZING SYSTEMS LTD,101314
North East Lincolnshire Council,http://statistics.data.gov.uk/id/local-authority/00FC,People And Communities,Childrens Hlth & Family Supp,Childrens Centre Development,Clothes Uniforms And Laundry,Uniforms,LC102,24/01/2012,81662,-75.16 ,REVENUE,VORTEX DESIGNS LTD,108531
North East Lincolnshire Council,http://statistics.data.gov.uk/id/local-authority/00FC,People And Communities,Childrens Hlth & Family Supp,Integrated Youth Services,Direct Transport Costs,Hired Transport - Employees,JA101,26/01/2012,82816,Redacted Commercially Sensitive,REVENUE,NORTHGATE VEHICLE HIRE,102553
North East Lincolnshire Council,http://statistics.data.gov.uk/id/local-authority/00FC,People And Communities,Childrens Hlth & Family Supp,Integrated Youth Services,Print Stationery / Gen Off Exp,Photocopier - Running Costs,LD102,17/01/2012,79699,-59.81 ,REVENUE,DANWOOD FINANCE LIMITED,101077
North East Lincolnshire Council,http://statistics.data.gov.uk/id/local-authority/00FC,People And Communities,Childrens Hlth & Family Supp,Childrens Centre Development,Equip / Furniture / Materials,Furniture - Purchase,LA105,30/01/2012,83289,-57.15 ,REVENUE,ARGOS BUSINESS SOLUTIONS,101032
North East Lincolnshire Council,http://statistics.data.gov.uk/id/local-authority/00FC,People And Communities,Childrens Hlth & Family Supp,Childrens Centre Development,Clothes Uniforms And Laundry,Uniforms,LC102,24/01/2012,81661,-56.37 ,REVENUE,VORTEX DESIGNS LTD,108531
North East Lincolnshire Council,http://statistics.data.gov.uk/id/local-authority/00FC,People And Communities,Childrens Hlth & Family Supp,Integrated Youth Services,Direct Transport Costs,Hired Transport - Employees,JA101,26/01/2012,82818,Redacted Commercially Sensitive,REVENUE,NORTHGATE VEHICLE HIRE,102553
North East Lincolnshire Council,http://statistics.data.gov.uk/id/local-authority/00FC,People And Communities,Childrens Hlth & Family Supp,Childrens Centre Development,Equip / Furniture / Materials,Non-Teaching Resources,LA118,11/01/2012,77488,-25.00 ,REVENUE,PARTY PACKS,108394
North East Lincolnshire Council,http://statistics.data.gov.uk/id/local-authority/00FC,People And Communities,Childrens Hlth & Family Supp,Integrated Youth Services,Direct Transport Costs,Hired Transport - Employees,JA101,18/01/2012,79698,-13.96 ,REVENUE,NYS CORPORATE,102444
North East Lincolnshire Council,http://statistics.data.gov.uk/id/local-authority/00FC,People And Communities,Childrens Hlth & Family Supp,Play 4 Success,Direct Transport Costs,Vehicles - Running Costs,JA104,13/01/2012,79205,-9.95 ,REVENUE,ARVAL UK LIMITED,102401
North East Lincolnshire Council,http://statistics.data.gov.uk/id/local-authority/00FC,People And Communities,Childrens Hlth & Family Supp,Childrens Centre Development,Rep Alterations Maint Building,Buildings - Repairs And Maint,GA102,26/01/2012,82662,-2.50 ,REVENUE,CITY ELECTRICAL FACTORS LTD,101364
North East Lincolnshire Council,http://statistics.data.gov.uk/id/local-authority/00FC,People And Communities,Childrens Hlth & Family Supp,Childrens Centre Development,Equip / Furniture / Materials,Furniture - Purchase,LA105,27/01/2012,83207,500.00 ,REVENUE,GREENHEART,103114
North East Lincolnshire Council,http://statistics.data.gov.uk/id/local-authority/00FC,People And Communities,Childrens Hlth & Family Supp,Childrens Centre Development,Equip / Furniture / Materials,Non-Teaching Resources,LA118,24/01/2012,81199,500.00 ,REVENUE,TESCO STORES LIMITED,102576
North East Lincolnshire Council,http://statistics.data.gov.uk/id/local-authority/00FC,People And Communities,Childrens Hlth & Family Supp,Childrens Centre Development,Other Agencies,Further Ed Emp & Training,PJ130,03/01/2012,75200,500.00 ,REVENUE,Redacted Personal Information,Redacted Personal Information
North East Lincolnshire Council,http://statistics.data.gov.uk/id/local-authority/00FC,People And Communities,Childrens Hlth & Family Supp,Childrens Health Provision,Energy Costs,Electricity,GB102,18/01/2012,80212,500.97 ,REVENUE,E-ON (GAS),101983
North East Lincolnshire Council,http://statistics.data.gov.uk/id/local-authority/00FC,People And Communities,Childrens Hlth & Family Supp,Childrens Centre Development,Catering,Provisions,LB101,09/01/2012,76757,503.45 ,REVENUE,K BROUGHTON NEWS LTD,103827
North East Lincolnshire Council,http://statistics.data.gov.uk/id/local-authority/00FC,People And Communities,Childrens Hlth & Family Supp,Childrens Centre Development,Direct Employee Expenses,Overtime,EA401,26/01/2012,82928,503.87 ,REVENUE,EDWARD HENEAGE PRIMARY SCHOOL,103917
North East Lincolnshire Council,http://statistics.data.gov.uk/id/local-authority/00FC,People And Communities,Childrens Hlth & Family Supp,Childrens Health Provision,Rents,Service Charge,GC102,31/01/2012,83817,504.18 ,REVENUE,THE ROXTON PRACTICE,104395
North East Lincolnshire Council,http://statistics.data.gov.uk/id/local-authority/00FC,People And Communities,Childrens Hlth & Family Supp,Childrens Health Provision,Rents,Service Charge,GC102,31/01/2012,83817,512.74 ,REVENUE,THE ROXTON PRACTICE,104395
North East Lincolnshire Council,http://statistics.data.gov.uk/id/local-authority/00FC,People And Communities,Childrens Hlth & Family Supp,Childrens Centre Development,Equip / Furniture / Materials,Non-Teaching Resources,LA118,26/01/2012,82929,514.02 ,REVENUE,FINDEL EDUCATION LIMITED,101237
North East Lincolnshire Council,http://statistics.data.gov.uk/id/local-authority/00FC,People And Communities,Childrens Hlth & Family Supp,Childrens Centre Development,Equip / Furniture / Materials,Non-Teaching Resources,LA118,13/01/2012,78632,522.33 ,REVENUE,TECHNOLOGY TEACHING SYSTEMS LTD,100996
North East Lincolnshire Council,http://statistics.data.gov.uk/id/local-authority/00FC,People And Communities,Childrens Hlth & Family Supp,Childrens Centre Development,Rep Alterations Maint Building,Buildings - Repairs And Maint,GA102,16/01/2012,79368,530.00 ,REVENUE,FABRIQUE SPECIALISTS GLAZING SYSTEMS LTD,101314
North East Lincolnshire Council,http://statistics.data.gov.uk/id/local-authority/00FC,People And Communities,Childrens Hlth & Family Supp,Childrens Centre Development,Print Stationery / Gen Off Exp,Photocopier - Running Costs,LD102,10/01/2012,76862,536.19 ,REVENUE,UNITED CARLTON OFFICE SYSTEMS LTD,101652
North East Lincolnshire Council,http://statistics.data.gov.uk/id/local-authority/00FC,People And Communities,Childrens Hlth & Family Supp,Childrens Centre Development,Cleaning And Domestic Supplies,Cleaning - Window Cleaning,GH101,12/01/2012,78465,537.30 ,REVENUE,ANGLIAN WATER,100508
North East Lincolnshire Council,http://statistics.data.gov.uk/id/local-authority/00FC,People And Communities,Childrens Hlth & Family Supp,Childrens Centre Development,Cleaning And Domestic Supplies,Cleaning - Services,GH102,26/01/2012,82761,541.00 ,REVENUE,EASY CLEAN MARSHCHAPEL LTD,104531
North East Lincolnshire Council,http://statistics.data.gov.uk/id/local-authority/00FC,People And Communities,Childrens Hlth & Family Supp,Childrens Health Provision,Indirect Employee Expenses,Staff Training,EB122,25/01/2012,81729,Redacted Commercially Sensitive,REVENUE,NORTH EAST LINCOLNSHIRE CARE TRUST PLUS LD,100340
North East Lincolnshire Council,http://statistics.data.gov.uk/id/local-authority/00FC,People And Communities,Childrens Hlth & Family Supp,Childrens Centre Development,Equip / Furniture / Materials,Non-Teaching Resources,LA118,25/01/2012,81612,545.00 ,REVENUE,FINDEL EDUCATION LIMITED,101237
North East Lincolnshire Council,http://statistics.data.gov.uk/id/local-authority/00FC,People And Communities,Childrens Hlth & Family Supp,Childrens Centre Development,Print Stationery / Gen Off Exp,Printing And Stationery,LD103,25/01/2012,82084,545.05 ,REVENUE,LYRECO UK LIMITED,101120
North East Lincolnshire Council,http://statistics.data.gov.uk/id/local-authority/00FC,People And Communities,Childrens Hlth & Family Supp,Childrens Centre Development,Print Stationery / Gen Off Exp,Photocopier - Running Costs,LD102,23/01/2012,80601,548.09 ,REVENUE,UNITED CARLTON OFFICE SYSTEMS LTD,101652
North East Lincolnshire Council,http://statistics.data.gov.uk/id/local-authority/00FC,People And Communities,Childrens Hlth & Family Supp,Childrens Centre Development,Equip / Furniture / Materials,Furniture - Purchase,LA105,25/01/2012,82094,551.90 ,REVENUE,CMUK VISUAL SAFETY LTD,101205
North East Lincolnshire Council,http://statistics.data.gov.uk/id/local-authority/00FC,People And Communities,Childrens Hlth & Family Supp,Childrens Centre Development,Equip / Furniture / Materials,Furniture - Purchase,LA105,26/01/2012,82865,560.48 ,REVENUE,GLS EDUC SUPPLIES LTD,101380
North East Lincolnshire Council,http://statistics.data.gov.uk/id/local-authority/00FC,People And Communities,Childrens Hlth & Family Supp,Childrens Centre Development,Equip / Furniture / Materials,Furniture - Purchase,LA105,12/01/2012,78336,565.00 ,REVENUE,DAVID BURY LTD,103135
North East Lincolnshire Council,http://statistics.data.gov.uk/id/local-authority/00FC,People And Communities,Childrens Hlth & Family Supp,Childrens Centre Development,Equip / Furniture / Materials,Non-Teaching Resources,LA118,30/01/2012,83777,570.00 ,REVENUE,HENRY,102709
North East Lincolnshire Council,http://statistics.data.gov.uk/id/local-authority/00FC,People And Communities,Childrens Hlth & Family Supp,Childrens Centre Development,Other Agencies,Educational Visits,PJ152,04/01/2012,76278,Redacted Commercially Sensitive,REVENUE,MILLMAN COACHES,100700
North East Lincolnshire Council,http://statistics.data.gov.uk/id/local-authority/00FC,People And Communities,Childrens Hlth & Family Supp,Childrens Centre Development,Other Agencies,Educational Visits,PJ152,04/01/2012,76279,Redacted Commercially Sensitive,REVENUE,MILLMAN COACHES,100700
North East Lincolnshire Council,http://statistics.data.gov.uk/id/local-authority/00FC,People And Communities,Childrens Hlth & Family Supp,Palliative / Complex Care,Private Contractors,Third Party Prov - Private,PH101,04/01/2012,75187,571.00 ,REVENUE,DM ORTHOTICS LIMITED,102951
North East Lincolnshire Council,http://statistics.data.gov.uk/id/local-authority/00FC,People And Communities,Childrens Hlth & Family Supp,Childrens Health Provision,Finance Leasing,Leasing,LN101,26/01/2012,82689,Redacted Commercially Sensitive,REVENUE,NORTH EAST LINCOLNSHIRE PRIMARY CARE TRUST,100337
North East Lincolnshire Council,http://statistics.data.gov.uk/id/local-authority/00FC,People And Communities,Childrens Hlth & Family Supp,Integ Local Service Delivery,Rep Alterations Maint Building,Buildings - Repairs And Maint,GA102,11/01/2012,78018,600.00 ,REVENUE,PPH COMMERCIAL,101276
North East Lincolnshire Council,http://statistics.data.gov.uk/id/local-authority/00FC,People And Communities,Childrens Hlth & Family Supp,Childrens Centre Development,Direct Employee Expenses,Superannuation,EA301,26/01/2012,82928,607.44 ,REVENUE,EDWARD HENEAGE PRIMARY SCHOOL,103917
North East Lincolnshire Council,http://statistics.data.gov.uk/id/local-authority/00FC,People And Communities,Childrens Hlth & Family Supp,Childrens Centre Development,Other Agencies,Child Care Payments,PJ104,27/01/2012,83189,640.00 ,REVENUE,CHAPPILLS DAY NURSERY,100998
North East Lincolnshire Council,http://statistics.data.gov.uk/id/local-authority/00FC,People And Communities,Childrens Hlth & Family Supp,Childrens Centre Development,Rep Alterations Maint Building,Internal Decoration,GA119,31/01/2012,84196,666.00 ,REVENUE,ARK JOINERY AND BUILDING MAINTENANCE LTD,101126
North East Lincolnshire Council,http://statistics.data.gov.uk/id/local-authority/00FC,People And Communities,Childrens Hlth & Family Supp,Childrens Centre Development,Equip / Furniture / Materials,Furniture - Purchase,LA105,12/01/2012,78360,685.00 ,REVENUE,NEWBY LEISURE LTD,101227
North East Lincolnshire Council,http://statistics.data.gov.uk/id/local-authority/00FC,People And Communities,Childrens Hlth & Family Supp,Childrens Centre Development,Cleaning And Domestic Supplies,Cleaning - Services,GH102,03/01/2012,74274,693.00 ,REVENUE,EASY CLEAN MARSHCHAPEL LTD,104531
North East Lincolnshire Council,http://statistics.data.gov.uk/id/local-authority/00FC,People And Communities,Childrens Hlth & Family Supp,Integrated Youth Services,Rents,Room Hire,GC103,19/01/2012,80415,699.00 ,REVENUE,HUMBERSTON ACADEMY,106067
North East Lincolnshire Council,http://statistics.data.gov.uk/id/local-authority/00FC,People And Communities,Childrens Hlth & Family Supp,Childrens Health Provision,Rents,Rent,GC101,18/01/2012,80062,715.00 ,REVENUE,GRIMSBY CENTRAL HALL TRUST,100882
North East Lincolnshire Council,http://statistics.data.gov.uk/id/local-authority/00FC,People And Communities,Childrens Hlth & Family Supp,Childrens Centre Development,Print Stationery / Gen Off Exp,Printing And Stationery,LD103,04/01/2012,75374,737.45 ,REVENUE,LYRECO UK LIMITED,101120
North East Lincolnshire Council,http://statistics.data.gov.uk/id/local-authority/00FC,People And Communities,Childrens Hlth & Family Supp,Childrens Centre Development,Energy Costs,Electricity,GB102,11/01/2012,77453,748.99 ,REVENUE,NPOWER LIMITED,101414
North East Lincolnshire Council,http://statistics.data.gov.uk/id/local-authority/00FC,People And Communities,Childrens Hlth & Family Supp,Integrated Youth Services,Direct Employee Expenses,Pay,EA101,13/01/2012,57083,750.00 ,REVENUE,Redacted Personal Information,Redacted Personal Information
North East Lincolnshire Council,http://statistics.data.gov.uk/id/local-authority/00FC,People And Communities,Childrens Hlth & Family Supp,Childrens Centre Development,Equip / Furniture / Materials,Newspapers/Periodicals,LA122,30/01/2012,83777,760.00 ,REVENUE,HENRY,102709
North East Lincolnshire Council,http://statistics.data.gov.uk/id/local-authority/00FC,People And Communities,Childrens Hlth & Family Supp,Childrens Centre Development,Other Agencies,Child Care Payments,PJ104,20/01/2012,80791,764.33 ,REVENUE,SECOND AVENUE RESOURCE CENTRE LIMITED,100648
North East Lincolnshire Council,http://statistics.data.gov.uk/id/local-authority/00FC,People And Communities,Childrens Hlth & Family Supp,Childrens Centre Development,Equip / Furniture / Materials,Furniture - Purchase,LA105,26/01/2012,82619,829.33 ,REVENUE,CORDELLS,101962
North East Lincolnshire Council,http://statistics.data.gov.uk/id/local-authority/00FC,People And Communities,Childrens Hlth & Family Supp,Palliative / Complex Care,Private Contractors,Third Party Prov - Private,PH101,24/01/2012,81197,850.00 ,REVENUE,QUALITY TIME CARE LTD,102519
North East Lincolnshire Council,http://statistics.data.gov.uk/id/local-authority/00FC,People And Communities,Childrens Hlth & Family Supp,Childrens Centre Development,Energy Costs,Electricity,GB102,18/01/2012,79827,856.44 ,REVENUE,EDWARD HENEAGE PRIMARY SCHOOL,103917
North East Lincolnshire Council,http://statistics.data.gov.uk/id/local-authority/00FC,People And Communities,Childrens Hlth & Family Supp,Childrens Centre Development,Energy Costs,Electricity,GB102,10/01/2012,77454,873.90 ,REVENUE,NPOWER LIMITED,101414
North East Lincolnshire Council,http://statistics.data.gov.uk/id/local-authority/00FC,People And Communities,Childrens Hlth & Family Supp,Childrens Centre Development,Rep Alterations Maint Building,Buildings - Repairs And Maint,GA102,19/01/2012,80218,880.00 ,REVENUE,CEILINGS SOUTH HUMBERSIDE,100791
North East Lincolnshire Council,http://statistics.data.gov.uk/id/local-authority/00FC,People And Communities,Childrens Hlth & Family Supp,Childrens Centre Development,Equip / Furniture / Materials,Non-Teaching Resources,LA118,30/01/2012,83776,912.00 ,REVENUE,HENRY,102709
North East Lincolnshire Council,http://statistics.data.gov.uk/id/local-authority/00FC,People And Communities,Childrens Hlth & Family Supp,Childrens Centre Development,Rep Alterations Maint Building,Internal Decoration,GA119,03/01/2012,75690,920.00 ,REVENUE,FABRIQUE SPECIALISTS GLAZING SYSTEMS LTD,101314
North East Lincolnshire Council,http://statistics.data.gov.uk/id/local-authority/00FC,People And Communities,Childrens Hlth & Family Supp,Childrens Centre Development,Equip / Furniture / Materials,Furniture - Purchase,LA105,23/01/2012,81198,930.00 ,REVENUE,NEWBY LEISURE LTD,101227
North East Lincolnshire Council,http://statistics.data.gov.uk/id/local-authority/00FC,People And Communities,Childrens Hlth & Family Supp,Head Of Child Hlth - Fam Supp,Private Contractors,Third Party Prov - Private,PH101,26/01/2012,82715,937.50 ,REVENUE,OUTCOMES UK LTD,101486
North East Lincolnshire Council,http://statistics.data.gov.uk/id/local-authority/00FC,People And Communities,Childrens Hlth & Family Supp,Childrens Centre Development,Equip / Furniture / Materials,Furniture - Purchase,LA105,31/01/2012,84237,965.00 ,REVENUE,NEWBY LEISURE LTD,101227
North East Lincolnshire Council,http://statistics.data.gov.uk/id/local-authority/00FC,People And Communities,Childrens Hlth & Family Supp,Childrens Centre Development,Rep Alterations Maint Building,Buildings - Repairs And Maint,GA102,03/01/2012,74375,969.00 ,REVENUE,HAITH'S HEATING LTD,101342
North East Lincolnshire Council,http://statistics.data.gov.uk/id/local-authority/00FC,People And Communities,Childrens Hlth & Family Supp,Childrens Health Provision,Private Contractors,Third Party Prov - Private,PH101,16/01/2012,79383,"1,025.00 ",REVENUE,NORTHERN LINCOLNSHIRE & GOOLE HOSPITALS,101242
North East Lincolnshire Council,http://statistics.data.gov.uk/id/local-authority/00FC,People And Communities,Childrens Hlth & Family Supp,Childrens Health Provision,Private Contractors,Third Party Prov - Private,PH101,26/01/2012,82264,"1,025.00 ",REVENUE,NORTHERN LINCOLNSHIRE & GOOLE HOSPITALS,101242
North East Lincolnshire Council,http://statistics.data.gov.uk/id/local-authority/00FC,People And Communities,Childrens Hlth & Family Supp,Childrens Centre Development,Energy Costs,Gas,GB101,09/01/2012,77049,"1,031.11 ",REVENUE,NPOWER LIMITED,101414
North East Lincolnshire Council,http://statistics.data.gov.uk/id/local-authority/00FC,People And Communities,Childrens Hlth & Family Supp,Childrens Centre Development,Energy Costs,Heating Fuel,GB103,25/01/2012,82099,"1,035.36 ",REVENUE,WATSON PETROLEUM LTD,101348
North East Lincolnshire Council,http://statistics.data.gov.uk/id/local-authority/00FC,People And Communities,Childrens Hlth & Family Supp,Childrens Centre Development,Energy Costs,Gas,GB101,04/01/2012,76141,"1,036.09 ",REVENUE,BRITISH GAS TRADING LTD,101507
North East Lincolnshire Council,http://statistics.data.gov.uk/id/local-authority/00FC,People And Communities,Childrens Hlth & Family Supp,Integrated Youth Services,Miscellaneous Expenses,Legal Fees - General,LL103,26/01/2012,82262,Redacted Commercially Sensitive,REVENUE,WILKIN CHAPMAN SOLICITORS,100948
North East Lincolnshire Council,http://statistics.data.gov.uk/id/local-authority/00FC,People And Communities,Childrens Hlth & Family Supp,Childrens Centre Development,Clothes Uniforms And Laundry,Uniforms,LC102,26/01/2012,82124,"1,069.00 ",REVENUE,FIRST CORPORATE CLOTHING LTD,102799
North East Lincolnshire Council,http://statistics.data.gov.uk/id/local-authority/00FC,People And Communities,Childrens Hlth & Family Supp,Childrens Centre Development,Other Agencies,Child Care Payments,PJ104,23/01/2012,80833,"1,080.00 ",REVENUE,PRECIOUS TIMES CHILDCARE SERVICES,101420
North East Lincolnshire Council,http://statistics.data.gov.uk/id/local-authority/00FC,People And Communities,Childrens Hlth & Family Supp,Integrated Youth Services,Car Allowances,Travel - Employees,JF101,23/01/2012,80835,"1,082.00 ",REVENUE,HUMBER BRIDGE BOARD,101054
North East Lincolnshire Council,http://statistics.data.gov.uk/id/local-authority/00FC,People And Communities,Childrens Hlth & Family Supp,Childrens Centre Development,Other Agencies,Further Ed Emp & Training,PJ130,03/01/2012,75190,"1,100.00 ",REVENUE,HENRY,102709
North East Lincolnshire Council,http://statistics.data.gov.uk/id/local-authority/00FC,People And Communities,Childrens Hlth & Family Supp,Childrens Centre Development,Rep Alterations Maint Building,Buildings - Repairs And Maint,GA102,17/01/2012,79751,"1,105.00 ",REVENUE,WESTLANDS HEATING LTD,108468
North East Lincolnshire Council,http://statistics.data.gov.uk/id/local-authority/00FC,People And Communities,Childrens Hlth & Family Supp,Childrens Centre Development,Equip / Furniture / Materials,Equipment - Purchase,LA101,03/01/2012,75207,"1,105.50 ",REVENUE,MOISERS(GRIMSBY)LTD,100746
North East Lincolnshire Council,http://statistics.data.gov.uk/id/local-authority/00FC,People And Communities,Childrens Hlth & Family Supp,Childrens Centre Development,Energy Costs,Gas,GB101,31/01/2012,84356,"1,158.17 ",REVENUE,BRITISH GAS,101484
North East Lincolnshire Council,http://statistics.data.gov.uk/id/local-authority/00FC,People And Communities,Childrens Hlth & Family Supp,Childrens Centre Development,Rep Alterations Maint Building,Buildings - Repairs And Maint,GA102,03/01/2012,75535,"1,195.74 ",REVENUE,EXCELL ELECTRICAL CONTRACTORS,100601
North East Lincolnshire Council,http://statistics.data.gov.uk/id/local-authority/00FC,People And Communities,Childrens Hlth & Family Supp,Childrens Centre Development,Equip / Furniture / Materials,Non-Teaching Resources,LA118,10/01/2012,77595,"1,311.75 ",REVENUE,PC WORLD,108405
North East Lincolnshire Council,http://statistics.data.gov.uk/id/local-authority/00FC,People And Communities,Childrens Hlth & Family Supp,Childrens Centre Development,Energy Costs,Gas,GB101,26/01/2012,82226,"1,312.36 ",REVENUE,BRITISH GAS TRADING LTD,101507
North East Lincolnshire Council,http://statistics.data.gov.uk/id/local-authority/00FC,People And Communities,Childrens Hlth & Family Supp,Childrens Centre Development,Rep Alterations Maint Building,Buildings - Repairs And Maint,GA102,05/01/2012,76569,"1,433.00 ",REVENUE,ARK JOINERY AND BUILDING MAINTENANCE LTD,101126
North East Lincolnshire Council,http://statistics.data.gov.uk/id/local-authority/00FC,People And Communities,Childrens Hlth & Family Supp,Childrens Centre Development,Equip / Furniture / Materials,Furniture - Purchase,LA105,26/01/2012,82866,"1,452.45 ",REVENUE,RAMSDENS,100751
North East Lincolnshire Council,http://statistics.data.gov.uk/id/local-authority/00FC,People And Communities,Childrens Hlth & Family Supp,Head Of Child Hlth - Fam Supp,Private Contractors,Third Party Prov - Private,PH101,05/01/2012,76607,"1,500.00 ",REVENUE,OUTCOMES UK LTD,101486
North East Lincolnshire Council,http://statistics.data.gov.uk/id/local-authority/00FC,People And Communities,Childrens Hlth & Family Supp,Childrens Centre Development,Other Agencies,Child Care Payments,PJ104,12/01/2012,78310,"1,529.39 ",REVENUE,SECOND AVENUE RESOURCE CENTRE LIMITED,100648
North East Lincolnshire Council,http://statistics.data.gov.uk/id/local-authority/00FC,People And Communities,Childrens Hlth & Family Supp,Childrens Centre Development,Other Agencies,Child Care Payments,PJ104,09/01/2012,77042,"1,575.00 ",REVENUE,CHAPPILLS DAY NURSERY,100998
North East Lincolnshire Council,http://statistics.data.gov.uk/id/local-authority/00FC,People And Communities,Childrens Hlth & Family Supp,Childrens Centre Development,Energy Costs,Electricity,GB102,04/01/2012,76127,"1,664.99 ",REVENUE,NPOWER LIMITED,101414
North East Lincolnshire Council,http://statistics.data.gov.uk/id/local-authority/00FC,People And Communities,Childrens Hlth & Family Supp,Childrens Centre Development,Other Agencies,Child Care Payments,PJ104,12/01/2012,78464,"1,741.81 ",REVENUE,PRE SCHOOL LEARNING ALLIANCE,101437
North East Lincolnshire Council,http://statistics.data.gov.uk/id/local-authority/00FC,People And Communities,Childrens Hlth & Family Supp,Integrated Youth Services,Print Stationery / Gen Off Exp,Photocopier - Running Costs,LD102,30/01/2012,83715,"1,797.39 ",REVENUE,UNITED CARLTON OFFICE SYSTEMS LTD,101652
North East Lincolnshire Council,http://statistics.data.gov.uk/id/local-authority/00FC,People And Communities,Childrens Hlth & Family Supp,Childrens Centre Development,Rep Alterations Maint Building,Buildings - Repairs And Maint,GA102,03/01/2012,75562,"1,798.00 ",REVENUE,ARK JOINERY AND BUILDING MAINTENANCE LTD,101126
North East Lincolnshire Council,http://statistics.data.gov.uk/id/local-authority/00FC,People And Communities,Childrens Hlth & Family Supp,Palliative / Complex Care,Private Contractors,Third Party Prov - Private,PH101,25/01/2012,81610,"1,849.00 ",REVENUE,EAST MIDLANDS CROSSROADS,102400
North East Lincolnshire Council,http://statistics.data.gov.uk/id/local-authority/00FC,People And Communities,Childrens Hlth & Family Supp,Childrens Centre Development,Other Agencies,Child Care Payments,PJ104,12/01/2012,78463,"1,877.30 ",REVENUE,PRE SCHOOL LEARNING ALLIANCE,101437
North East Lincolnshire Council,http://statistics.data.gov.uk/id/local-authority/00FC,People And Communities,Childrens Hlth & Family Supp,Childrens Centre Development,Equip / Furniture / Materials,Non-Teaching Resources,LA118,30/01/2012,83196,"1,999.95 ",REVENUE,FINDEL EDUCATION LIMITED,101237
North East Lincolnshire Council,http://statistics.data.gov.uk/id/local-authority/00FC,People And Communities,Childrens Hlth & Family Supp,Childrens Centre Development,Rep Alterations Maint Building,Buildings - Repairs And Maint,GA102,25/01/2012,82055,"2,000.00 ",REVENUE,J P ASHLEY LTD,102461
North East Lincolnshire Council,http://statistics.data.gov.uk/id/local-authority/00FC,People And Communities,Childrens Hlth & Family Supp,Childrens Health Provision,Private Contractors,Third Party Prov - Private,PH101,23/01/2012,81084,Redacted Commercially Sensitive,REVENUE,NORTH EAST LINCOLNSHIRE PRIMARY CARE TRUST,100337
North East Lincolnshire Council,http://statistics.data.gov.uk/id/local-authority/00FC,People And Communities,Childrens Hlth & Family Supp,Childrens Health Provision,Private Contractors,Third Party Prov - Private,PH101,25/01/2012,82013,Redacted Commercially Sensitive,REVENUE,NORTH EAST LINCOLNSHIRE CARE TRUST PLUS LD,100340
North East Lincolnshire Council,http://statistics.data.gov.uk/id/local-authority/00FC,People And Communities,Childrens Hlth & Family Supp,Childrens Centre Development,Rep Alterations Maint Building,Buildings - Repairs And Maint,GA102,31/01/2012,83935,"2,120.00 ",REVENUE,J MELTON LTD,100636
North East Lincolnshire Council,http://statistics.data.gov.uk/id/local-authority/00FC,People And Communities,Childrens Hlth & Family Supp,Palliative / Complex Care,Private Contractors,Third Party Prov - Private,PH101,10/01/2012,77431,"2,442.40 ",REVENUE,EAST MIDLANDS CROSSROADS,102400
North East Lincolnshire Council,http://statistics.data.gov.uk/id/local-authority/00FC,People And Communities,Childrens Hlth & Family Supp,Integrated Youth Services,Miscellaneous Expenses,Legal Fees - General,LL103,03/01/2012,75601,Redacted Commercially Sensitive,REVENUE,WILKIN CHAPMAN SOLICITORS,100948
North East Lincolnshire Council,http://statistics.data.gov.uk/id/local-authority/00FC,People And Communities,Childrens Hlth & Family Supp,Childrens Centre Development,Rep Alterations Maint Building,Internal Decoration,GA119,31/01/2012,84150,"2,549.00 ",REVENUE,HAITH'S HEATING LTD,101342
North East Lincolnshire Council,http://statistics.data.gov.uk/id/local-authority/00FC,People And Communities,Childrens Hlth & Family Supp,Childrens Centre Development,Other Agencies,Child Care Payments,PJ104,26/01/2012,82729,"2,783.96 ",REVENUE,FIRST STEPS GRIMSBY LIMITED,101411
North East Lincolnshire Council,http://statistics.data.gov.uk/id/local-authority/00FC,People And Communities,Childrens Hlth & Family Supp,Childrens Centre Development,Direct Employee Expenses,Pay,EA101,26/01/2012,82928,"2,786.34 ",REVENUE,EDWARD HENEAGE PRIMARY SCHOOL,103917
North East Lincolnshire Council,http://statistics.data.gov.uk/id/local-authority/00FC,People And Communities,Childrens Hlth & Family Supp,Childrens Health Provision,Communications And Computing,Computer H/Ware - Purchases,LF105,04/01/2012,76229,Redacted Commercially Sensitive,REVENUE,NORTH EAST LINCOLNSHIRE PRIMARY CARE TRUST,100337
North East Lincolnshire Council,http://statistics.data.gov.uk/id/local-authority/00FC,People And Communities,Childrens Hlth & Family Supp,Childrens Health Provision,Private Contractors,Third Party Prov - Private,PH101,23/01/2012,81084,Redacted Commercially Sensitive,REVENUE,NORTH EAST LINCOLNSHIRE PRIMARY CARE TRUST,100337
North East Lincolnshire Council,http://statistics.data.gov.uk/id/local-authority/00FC,People And Communities,Childrens Hlth & Family Supp,Childrens Health Provision,Private Contractors,Third Party Prov - Private,PH101,25/01/2012,82013,Redacted Commercially Sensitive,REVENUE,NORTH EAST LINCOLNSHIRE CARE TRUST PLUS LD,100340
North East Lincolnshire Council,http://statistics.data.gov.uk/id/local-authority/00FC,People And Communities,Childrens Hlth & Family Supp,Integ Local Service Delivery,Other Agencies,Nursery Educ Fund - Standard,PJ139,23/01/2012,80893,"2,984.80 ",REVENUE,ST MARTINS PREPARATORY SCHOOL,100889
North East Lincolnshire Council,http://statistics.data.gov.uk/id/local-authority/00FC,People And Communities,Childrens Hlth & Family Supp,Childrens Centre Development,Other Agencies,Child Care Payments,PJ104,04/01/2012,76110,"3,252.22 ",REVENUE,FIRST STEPS GRIMSBY LIMITED,101411
North East Lincolnshire Council,http://statistics.data.gov.uk/id/local-authority/00FC,People And Communities,Childrens Hlth & Family Supp,Integrated Youth Services,Miscellaneous Expenses,Other Expenses General,LL119,11/01/2012,77739,"3,325.00 ",REVENUE,GUTHERSON RESEARCH LTD,108410
North East Lincolnshire Council,http://statistics.data.gov.uk/id/local-authority/00FC,People And Communities,Childrens Hlth & Family Supp,Integrated Youth Services,Equip / Furniture / Materials,Equipment - Purchase,LA101,31/01/2012,84318,"3,868.87 ",REVENUE,ACCESS EXPEDITIONS,108671
North East Lincolnshire Council,http://statistics.data.gov.uk/id/local-authority/00FC,People And Communities,Childrens Hlth & Family Supp,Integrated Youth Services,Miscellaneous Expenses,Legal Fees - General,LL103,03/01/2012,75287,Redacted Commercially Sensitive,REVENUE,WILKIN CHAPMAN SOLICITORS,100948
North East Lincolnshire Council,http://statistics.data.gov.uk/id/local-authority/00FC,People And Communities,Childrens Hlth & Family Supp,Head Of Child Hlth - Fam Supp,Private Contractors,Third Party Prov - Private,PH101,26/01/2012,82714,"4,125.00 ",REVENUE,OUTCOMES UK LTD,101486
North East Lincolnshire Council,http://statistics.data.gov.uk/id/local-authority/00FC,People And Communities,Childrens Hlth & Family Supp,Childrens Centre Development,Rep Alterations Maint Building,Internal Decoration,GA119,18/01/2012,79708,"4,183.50 ",REVENUE,EXCELL ELECTRICAL CONTRACTORS,100601
North East Lincolnshire Council,http://statistics.data.gov.uk/id/local-authority/00FC,People And Communities,Childrens Hlth & Family Supp,Head Of Child Hlth - Fam Supp,Private Contractors,Third Party Prov - Private,PH101,05/01/2012,76585,"4,500.00 ",REVENUE,OUTCOMES UK LTD,101486
North East Lincolnshire Council,http://statistics.data.gov.uk/id/local-authority/00FC,People And Communities,Childrens Hlth & Family Supp,Integ Local Service Delivery,Communications And Computing,Computer H/Ware - Purchases,LF105,10/01/2012,77634,"4,688.25 ",REVENUE,TRIBAL EDUCATION LIMITED,103641
North East Lincolnshire Council,http://statistics.data.gov.uk/id/local-authority/00FC,People And Communities,Childrens Hlth & Family Supp,Integ Local Service Delivery,Other Agencies,Nursery Educ Fund - Standard,PJ139,11/01/2012,78007,"6,789.60 ",REVENUE,FOR UNDER FIVES LTD,100647
North East Lincolnshire Council,http://statistics.data.gov.uk/id/local-authority/00FC,People And Communities,Childrens Hlth & Family Supp,Childrens Centre Development,Private Contractors,Third Party Prov - Private,PH101,23/01/2012,81086,"7,066.00 ",REVENUE,NORTHERN LINCOLNSHIRE & GOOLE HOSPITALS,101242
North East Lincolnshire Council,http://statistics.data.gov.uk/id/local-authority/00FC,People And Communities,Childrens Hlth & Family Supp,Childrens Health Provision,Private Contractors,Third Party Prov - Private,PH101,25/01/2012,82011,"7,625.00 ",REVENUE,NORTHERN LINCOLNSHIRE & GOOLE HOSPITALS,101242
North East Lincolnshire Council,http://statistics.data.gov.uk/id/local-authority/00FC,People And Communities,Childrens Hlth & Family Supp,Integ Local Service Delivery,Private Contractors,Third Party Prov - Private,PH101,23/01/2012,80496,"8,595.00 ",REVENUE,NORTHERN LINCOLNSHIRE & GOOLE HOSPITALS,101242
North East Lincolnshire Council,http://statistics.data.gov.uk/id/local-authority/00FC,People And Communities,Childrens Hlth & Family Supp,Childrens Centre Development,Other Agencies,Child Care Payments,PJ104,25/01/2012,81988,"8,759.56 ",REVENUE,CLEETHORPES CHILDCARE,101591
North East Lincolnshire Council,http://statistics.data.gov.uk/id/local-authority/00FC,People And Communities,Childrens Hlth & Family Supp,Childrens Centre Development,Private Contractors,Third Party Prov - Private,PH101,10/01/2012,77630,"8,789.00 ",REVENUE,NORTHERN LINCOLNSHIRE & GOOLE HOSPITALS,101242
North East Lincolnshire Council,http://statistics.data.gov.uk/id/local-authority/00FC,People And Communities,Childrens Hlth & Family Supp,Palliative / Complex Care,Private Contractors,Third Party Prov - Private,PH101,17/01/2012,79801,"12,510.00 ",REVENUE,NORTHERN LINCOLNSHIRE & GOOLE HOSPITALS,101242
North East Lincolnshire Council,http://statistics.data.gov.uk/id/local-authority/00FC,People And Communities,Childrens Hlth & Family Supp,Integ Local Service Delivery,Other Agencies,Nursery Educ Fund - Standard,PJ139,05/01/2012,76659,"13,284.00 ",REVENUE,ST MARGARETS PRE-SCHOOL,101724
North East Lincolnshire Council,http://statistics.data.gov.uk/id/local-authority/00FC,People And Communities,Childrens Hlth & Family Supp,Integ Local Service Delivery,Other Agencies,Nursery Educ Fund - Standard,PJ139,05/01/2012,76657,"14,145.30 ",REVENUE,WIZ KIDZ,102424
North East Lincolnshire Council,http://statistics.data.gov.uk/id/local-authority/00FC,People And Communities,Childrens Hlth & Family Supp,Integ Local Service Delivery,Other Agencies,Nursery Educ Fund - Standard,PJ139,05/01/2012,76655,"14,597.64 ",REVENUE,HEALING VILLAGE NURSERY,101096
North East Lincolnshire Council,http://statistics.data.gov.uk/id/local-authority/00FC,People And Communities,Childrens Hlth & Family Supp,Integ Local Service Delivery,Other Agencies,Nursery Educ Fund - Standard,PJ139,05/01/2012,76654,"15,261.84 ",REVENUE,GRIMSBY INSTITUTE FOR FHE,101649
North East Lincolnshire Council,http://statistics.data.gov.uk/id/local-authority/00FC,People And Communities,Childrens Hlth & Family Supp,Integ Local Service Delivery,Communications And Computing,Computer H/Ware - Purchases,LF105,10/01/2012,77633,"18,750.00 ",REVENUE,TRIBAL EDUCATION LIMITED,103641
North East Lincolnshire Council,http://statistics.data.gov.uk/id/local-authority/00FC,People And Communities,Childrens Hlth & Family Supp,Integ Local Service Delivery,Other Agencies,Nursery Educ Fund - Standard,PJ139,05/01/2012,76662,"28,746.90 ",REVENUE,WELHOLME PRE SCHOOL,101258
North East Lincolnshire Council,http://statistics.data.gov.uk/id/local-authority/00FC,People And Communities,Childrens Hlth & Family Supp,Integ Local Service Delivery,Other Agencies,Nursery Educ Fund - Standard,PJ139,05/01/2012,76658,"32,944.32 ",REVENUE,WALTHAM LEAS PRE-SCHOOL,108236
North East Lincolnshire Council,http://statistics.data.gov.uk/id/local-authority/00FC,People And Communities,Childrens Hlth & Family Supp,Integ Local Service Delivery,Other Agencies,Nursery Educ Fund - Standard,PJ139,05/01/2012,76661,"34,184.16 ",REVENUE,LISLE MARSDEN PRE-SCHOOL,101465
North East Lincolnshire Council,http://statistics.data.gov.uk/id/local-authority/00FC,People And Communities,Childrens Hlth & Family Supp,Childrens Health Provision,Private Contractors,Third Party Prov - Private,PH101,04/01/2012,76084,"191,507.58 ",REVENUE,LINCS PARTNERSHIP NHS FOUNDATION TRUST,105021
North East Lincolnshire Council,http://statistics.data.gov.uk/id/local-authority/00FC,People And Communities,Childrens Hlth & Family Supp,Childrens Health Provision,Private Contractors,Third Party Prov - Private,PH101,19/01/2012,80370,"192,730.58 ",REVENUE,LINCS PARTNERSHIP NHS FOUNDATION TRUST,105021
North East Lincolnshire Council,http://statistics.data.gov.uk/id/local-authority/00FC,People And Communities,Improved Health,Health Promotion,Contributions To Provisions,Contributions - Other,LK103,09/01/2012,76767,"-1,900.00 ",REVENUE,MHFA ENGLAND CIC,108265
North East Lincolnshire Council,http://statistics.data.gov.uk/id/local-authority/00FC,People And Communities,Improved Health,Trading Standards,Clothes Uniforms And Laundry,Protective Clothing,LC101,30/01/2012,83308,-99.55 ,REVENUE,ARCO LTD,100509
North East Lincolnshire Council,http://statistics.data.gov.uk/id/local-authority/00FC,People And Communities,Improved Health,Ot Stores,Equip / Furniture / Materials,Health & Safety Supplies,LA116,31/01/2012,80892,-98.60 ,REVENUE,DRIVE MEDICAL (WELLAND MEDICAL),101627
North East Lincolnshire Council,http://statistics.data.gov.uk/id/local-authority/00FC,People And Communities,Improved Health,Health Promotion,Indirect Employee Expenses,Staff Training,EB122,09/01/2012,76824,-72.45 ,REVENUE,NYS CORPORATE,102444
North East Lincolnshire Council,http://statistics.data.gov.uk/id/local-authority/00FC,People And Communities,Improved Health,Ot Stores,Equip / Furniture / Materials,Health & Safety Supplies,LA116,24/01/2012,78034,-62.50 ,REVENUE,DRIVE MEDICAL (WELLAND MEDICAL),101627
North East Lincolnshire Council,http://statistics.data.gov.uk/id/local-authority/00FC,People And Communities,Improved Health,Env Commerce Food & Health,Clothes Uniforms And Laundry,Protective Clothing,LC101,23/01/2012,80872,-52.98 ,REVENUE,ARCO LTD,100509
North East Lincolnshire Council,http://statistics.data.gov.uk/id/local-authority/00FC,People And Communities,Improved Health,Health Promotion,Contributions To Provisions,Contributions - Other,LK103,30/01/2012,83785,-40.83 ,REVENUE,MHFA ENGLAND CIC,108265
North East Lincolnshire Council,http://statistics.data.gov.uk/id/local-authority/00FC,People And Communities,Improved Health,Health Promotion,Contributions To Provisions,Contributions - Other,LK103,03/01/2012,74175,500.00 ,REVENUE,CELIA LACY CONSULTING UK,108264
North East Lincolnshire Council,http://statistics.data.gov.uk/id/local-authority/00FC,People And Communities,Improved Health,Health Promotion,Private Contractors,Third Party Prov - Private,PH101,25/01/2012,81744,500.00 ,REVENUE,CLEETHORPES TOWN FC,107227
North East Lincolnshire Council,http://statistics.data.gov.uk/id/local-authority/00FC,People And Communities,Improved Health,Health Promotion,Private Contractors,Third Party Prov - Private,PH101,25/01/2012,81739,500.00 ,REVENUE,WILLOWS PRIMARY SCHOOL,108548
North East Lincolnshire Council,http://statistics.data.gov.uk/id/local-authority/00FC,People And Communities,Improved Health,Ot Stores,Equip / Furniture / Materials,Health & Safety Supplies,LA116,11/01/2012,74103,505.95 ,REVENUE,NOTTINGHAM REHAB LIMITED,101715
North East Lincolnshire Council,http://statistics.data.gov.uk/id/local-authority/00FC,People And Communities,Improved Health,Ot Stores,Equip / Furniture / Materials,Health & Safety Supplies,LA116,16/01/2012,78322,507.80 ,REVENUE,DAYS HEALTHCARE UK LTD,101549
North East Lincolnshire Council,http://statistics.data.gov.uk/id/local-authority/00FC,People And Communities,Improved Health,Supporting People,Other Agencies,Third Pp - Block Subsidy,PJ102,26/01/2012,82955,Redacted Commercially Sensitive,REVENUE,HOUSING 21,100320
North East Lincolnshire Council,http://statistics.data.gov.uk/id/local-authority/00FC,People And Communities,Improved Health,Smoking Cessation,Miscellaneous Expenses,Medical Supplies And Services,LL109,26/01/2012,82153,515.45 ,REVENUE,LLOYDS PHARMACY,106385
North East Lincolnshire Council,http://statistics.data.gov.uk/id/local-authority/00FC,People And Communities,Improved Health,Smoking Cessation,Miscellaneous Expenses,Medical Supplies And Services,LL109,12/01/2012,78107,533.45 ,REVENUE,COHENS CHEMIST,108177
North East Lincolnshire Council,http://statistics.data.gov.uk/id/local-authority/00FC,People And Communities,Improved Health,Ot Stores,Equip / Furniture / Materials,Health & Safety Supplies,LA116,20/01/2012,74099,543.75 ,REVENUE,DM ORTHOTICS LIMITED,102951
North East Lincolnshire Council,http://statistics.data.gov.uk/id/local-authority/00FC,People And Communities,Improved Health,Ot Stores,Equip / Furniture / Materials,Health & Safety Supplies,LA116,26/01/2012,82001,550.00 ,REVENUE,R82 UK LTD,101710
North East Lincolnshire Council,http://statistics.data.gov.uk/id/local-authority/00FC,People And Communities,Improved Health,Trading Standards,Private Contractors,Third Party Prov - Private,PH101,16/01/2012,78983,555.00 ,REVENUE,WAKEFIELD MD COUNCIL,100967
North East Lincolnshire Council,http://statistics.data.gov.uk/id/local-authority/00FC,People And Communities,Improved Health,Ot Stores,Equip / Furniture / Materials,Health & Safety Supplies,LA116,23/01/2012,80534,571.23 ,REVENUE,F R TOWNSEND & CO LTD,104217
North East Lincolnshire Council,http://statistics.data.gov.uk/id/local-authority/00FC,People And Communities,Improved Health,Health Promotion,Contributions To Provisions,Contributions - Other,LK103,03/01/2012,74940,600.00 ,REVENUE,TINA WALLER,108282
North East Lincolnshire Council,http://statistics.data.gov.uk/id/local-authority/00FC,People And Communities,Improved Health,Health Promotion,Private Contractors,Third Party Prov - Private,PH101,25/01/2012,81741,600.00 ,REVENUE,THE CAMBRIDGE PARK ACADEMY,108550
North East Lincolnshire Council,http://statistics.data.gov.uk/id/local-authority/00FC,People And Communities,Improved Health,Health Promotion,Private Contractors,Third Party Prov - Private,PH101,25/01/2012,81738,635.00 ,REVENUE,WOODLANDS PRIMARY SCHOOL,108549
North East Lincolnshire Council,http://statistics.data.gov.uk/id/local-authority/00FC,People And Communities,Improved Health,Smoking Cessation,Miscellaneous Expenses,Medical Supplies And Services,LL109,31/01/2012,84336,639.16 ,REVENUE,BOOTS THE CHEMIST,103922
North East Lincolnshire Council,http://statistics.data.gov.uk/id/local-authority/00FC,People And Communities,Improved Health,Trading Standards,Indirect Employee Expenses,Staff Training,EB122,03/01/2012,75108,676.00 ,REVENUE,SMTS LTD,108287
North East Lincolnshire Council,http://statistics.data.gov.uk/id/local-authority/00FC,People And Communities,Improved Health,Health Trainers,Equip / Furniture / Materials,Equipment - Purchase,LA101,26/01/2012,82676,678.20 ,REVENUE,WRS GROUP LTD,102761
North East Lincolnshire Council,http://statistics.data.gov.uk/id/local-authority/00FC,People And Communities,Improved Health,Ot Stores,Equip / Furniture / Materials,Health & Safety Supplies,LA116,31/01/2012,84131,684.40 ,REVENUE,WESTHOLME,100608
North East Lincolnshire Council,http://statistics.data.gov.uk/id/local-authority/00FC,People And Communities,Improved Health,Health Promotion,Private Contractors,Third Party Prov - Private,PH101,03/01/2012,75272,705.00 ,REVENUE,VICTORIA GRAINGER,103004
North East Lincolnshire Council,http://statistics.data.gov.uk/id/local-authority/00FC,People And Communities,Improved Health,Ot Stores,Equip / Furniture / Materials,Health & Safety Supplies,LA116,16/01/2012,78331,707.20 ,REVENUE,CEFNDY HEALTHCARE,103209
North East Lincolnshire Council,http://statistics.data.gov.uk/id/local-authority/00FC,People And Communities,Improved Health,Ot Stores,Equip / Furniture / Materials,Health & Safety Supplies,LA116,31/01/2012,84326,709.00 ,REVENUE,JENX LTD,100833
North East Lincolnshire Council,http://statistics.data.gov.uk/id/local-authority/00FC,People And Communities,Improved Health,Public Health Nelc,Miscellaneous Expenses,Other Expenses General,LL119,11/01/2012,78000,720.00 ,REVENUE,WEST MARSH DEVELOPMENT TRUST,105165
North East Lincolnshire Council,http://statistics.data.gov.uk/id/local-authority/00FC,People And Communities,Improved Health,Ot Stores,Equip / Furniture / Materials,Health & Safety Supplies,LA116,24/01/2012,81592,822.50 ,REVENUE,WESTHOLME,100608
North East Lincolnshire Council,http://statistics.data.gov.uk/id/local-authority/00FC,People And Communities,Improved Health,Smoking Cessation,Miscellaneous Expenses,Medical Supplies And Services,LL109,25/01/2012,82151,903.36 ,REVENUE,LLOYDS PHARMACY,104027
North East Lincolnshire Council,http://statistics.data.gov.uk/id/local-authority/00FC,People And Communities,Improved Health,Smoking Cessation,Miscellaneous Expenses,Medical Supplies And Services,LL109,25/01/2012,82165,904.26 ,REVENUE,ASDA PHARMACY,104011
North East Lincolnshire Council,http://statistics.data.gov.uk/id/local-authority/00FC,People And Communities,Improved Health,Health Promotion,Private Contractors,Third Party Prov - Private,PH101,25/01/2012,81742,980.00 ,REVENUE,WESTERN PRIMARY SCHOOL,108551
North East Lincolnshire Council,http://statistics.data.gov.uk/id/local-authority/00FC,People And Communities,Improved Health,Health Promotion,Private Contractors,Third Party Prov - Private,PH101,25/01/2012,81736,994.45 ,REVENUE,FAMILY LINKS AROUND GRIMSBY,108546
North East Lincolnshire Council,http://statistics.data.gov.uk/id/local-authority/00FC,People And Communities,Improved Health,Trading Standards,Private Contractors,Third Party Prov - Private,PH101,03/01/2012,75085,Redacted Commercially Sensitive,REVENUE,NORTH LINCOLNSHIRE COUNCIL,101186
North East Lincolnshire Council,http://statistics.data.gov.uk/id/local-authority/00FC,People And Communities,Improved Health,Health Promotion,Private Contractors,Third Party Prov - Private,PH101,25/01/2012,81752,"1,000.00 ",REVENUE,NUNSTHORPE COMMUNITY SCHOOL,108553
North East Lincolnshire Council,http://statistics.data.gov.uk/id/local-authority/00FC,People And Communities,Improved Health,Ot Stores,Equip / Furniture / Materials,Health & Safety Supplies,LA116,10/01/2012,76986,"1,100.00 ",REVENUE,FIRE ANGEL,102308
North East Lincolnshire Council,http://statistics.data.gov.uk/id/local-authority/00FC,People And Communities,Improved Health,Ot Stores,Equip / Furniture / Materials,Health & Safety Supplies,LA116,24/01/2012,78386,"1,103.50 ",REVENUE,AIDSERVICE LTD,105495
North East Lincolnshire Council,http://statistics.data.gov.uk/id/local-authority/00FC,People And Communities,Improved Health,Smoking Cessation,Print Stationery / Gen Off Exp,Advertising,LD104,12/01/2012,78475,"1,112.60 ",REVENUE,LINCS FM GROUP LTD,101523
North East Lincolnshire Council,http://statistics.data.gov.uk/id/local-authority/00FC,People And Communities,Improved Health,Health Promotion,Private Contractors,Third Party Prov - Private,PH101,25/01/2012,81743,"1,120.00 ",REVENUE,GRIMSBY & CLEETHORPES CANOE CLUB,108552
North East Lincolnshire Council,http://statistics.data.gov.uk/id/local-authority/00FC,People And Communities,Improved Health,Trading Standards,Direct Employee Expenses,Agency Staff,EA105,05/01/2012,76581,"1,292.00 ",REVENUE,KENYON BLOCK CONSULTANTS,101878
North East Lincolnshire Council,http://statistics.data.gov.uk/id/local-authority/00FC,People And Communities,Improved Health,Trading Standards,Direct Employee Expenses,Agency Staff,EA105,05/01/2012,76575,"1,348.80 ",REVENUE,KENYON BLOCK CONSULTANTS,101878
North East Lincolnshire Council,http://statistics.data.gov.uk/id/local-authority/00FC,People And Communities,Improved Health,Trading Standards,Direct Employee Expenses,Agency Staff,EA105,05/01/2012,76579,"1,358.19 ",REVENUE,KENYON BLOCK CONSULTANTS,101878
North East Lincolnshire Council,http://statistics.data.gov.uk/id/local-authority/00FC,People And Communities,Improved Health,Trading Standards,Direct Employee Expenses,Agency Staff,EA105,05/01/2012,76613,"1,368.63 ",REVENUE,KENYON BLOCK CONSULTANTS,101878
North East Lincolnshire Council,http://statistics.data.gov.uk/id/local-authority/00FC,People And Communities,Improved Health,Trading Standards,Direct Employee Expenses,Agency Staff,EA105,05/01/2012,76612,"1,378.02 ",REVENUE,KENYON BLOCK CONSULTANTS,101878
North East Lincolnshire Council,http://statistics.data.gov.uk/id/local-authority/00FC,People And Communities,Improved Health,Trading Standards,Direct Employee Expenses,Agency Staff,EA105,05/01/2012,76610,"1,387.00 ",REVENUE,KENYON BLOCK CONSULTANTS,101878
North East Lincolnshire Council,http://statistics.data.gov.uk/id/local-authority/00FC,People And Communities,Improved Health,Trading Standards,Direct Employee Expenses,Agency Staff,EA105,05/01/2012,76577,"1,390.55 ",REVENUE,KENYON BLOCK CONSULTANTS,101878
North East Lincolnshire Council,http://statistics.data.gov.uk/id/local-authority/00FC,People And Communities,Improved Health,Health Promotion,Private Contractors,Third Party Prov - Private,PH101,25/01/2012,81735,"1,450.00 ",REVENUE,GRIMSBY TOWN SPORTS & EDUCATION TRUST,108545
North East Lincolnshire Council,http://statistics.data.gov.uk/id/local-authority/00FC,People And Communities,Improved Health,Smoking Cessation,Indirect Employee Expenses,Staff Training,EB122,31/01/2012,84283,"1,680.00 ",REVENUE,SECOND AVENUE RESOURCE CENTRE LIMITED,100648
North East Lincolnshire Council,http://statistics.data.gov.uk/id/local-authority/00FC,People And Communities,Improved Health,Trading Standards,Private Contractors,Third Party Prov - Private,PH101,04/01/2012,75468,"1,850.00 ",REVENUE,WAKEFIELD MD COUNCIL,100967
North East Lincolnshire Council,http://statistics.data.gov.uk/id/local-authority/00FC,People And Communities,Improved Health,Ot Stores,Equip / Furniture / Materials,Health & Safety Supplies,LA116,31/01/2012,59507,"1,920.00 ",REVENUE,FIRE ANGEL,102308
North East Lincolnshire Council,http://statistics.data.gov.uk/id/local-authority/00FC,People And Communities,Improved Health,Ot Stores,Equip / Furniture / Materials,Health & Safety Supplies,LA116,06/01/2012,76744,"1,992.00 ",REVENUE,R82 UK LTD,101710
North East Lincolnshire Council,http://statistics.data.gov.uk/id/local-authority/00FC,People And Communities,Improved Health,Health Promotion,Contributions To Provisions,Contributions - Other,LK103,09/01/2012,77152,"2,100.83 ",REVENUE,MHFA ENGLAND CIC,108265
North East Lincolnshire Council,http://statistics.data.gov.uk/id/local-authority/00FC,People And Communities,Improved Health,Health Promotion,Catering,Provisions,LB101,31/01/2012,84285,"2,180.00 ",REVENUE,KEISER UK LIMITED,108669
North East Lincolnshire Council,http://statistics.data.gov.uk/id/local-authority/00FC,People And Communities,Improved Health,Public Health Nelc,Contributions To Provisions,Contributions - Other,LK103,31/01/2012,83966,Redacted Commercially Sensitive,REVENUE,NORTH EAST LINCOLNSHIRE CARE TRUST PLUS LD,100340
North East Lincolnshire Council,http://statistics.data.gov.uk/id/local-authority/00FC,People And Communities,Improved Health,Env Commerce Food & Health,Grants And Subscriptions,Subscriptions,LJ101,24/01/2012,81051,"2,395.00 ",REVENUE,ASSOCIATION OF PORT HEALTH AUTHORITIES LTD,102506
North East Lincolnshire Council,http://statistics.data.gov.uk/id/local-authority/00FC,People And Communities,Improved Health,Trading Standards,Indirect Employee Expenses,Staff Training,EB122,04/01/2012,75465,"2,490.00 ",REVENUE,KBA SOLUTIONS LIMITED,103155
North East Lincolnshire Council,http://statistics.data.gov.uk/id/local-authority/00FC,People And Communities,Improved Health,Ot Stores,Equip / Furniture / Materials,Health & Safety Supplies,LA116,12/01/2012,78318,"2,750.00 ",REVENUE,ULTIMATE CARE GROUP LTD,103469
North East Lincolnshire Council,http://statistics.data.gov.uk/id/local-authority/00FC,People And Communities,Improved Health,Ot Stores,Equip / Furniture / Materials,Health & Safety Supplies,LA116,16/01/2012,79420,"2,889.00 ",REVENUE,LISCLARE LTD,101785
North East Lincolnshire Council,http://statistics.data.gov.uk/id/local-authority/00FC,People And Communities,Improved Health,Ot Stores,Equip / Furniture / Materials,Health & Safety Supplies,LA116,16/01/2012,79421,"2,889.00 ",REVENUE,LISCLARE LTD,101785
North East Lincolnshire Council,http://statistics.data.gov.uk/id/local-authority/00FC,People And Communities,Improved Health,Ot Stores,Equip / Furniture / Materials,Health & Safety Supplies,LA116,16/01/2012,79425,"2,905.00 ",REVENUE,LISCLARE LTD,101785
North East Lincolnshire Council,http://statistics.data.gov.uk/id/local-authority/00FC,People And Communities,Improved Health,Supporting People,Other Agencies,Third Pp - Block Subsidy,PJ102,26/01/2012,82953,Redacted Commercially Sensitive,REVENUE,HUMBERCARE,100311
North East Lincolnshire Council,http://statistics.data.gov.uk/id/local-authority/00FC,People And Communities,Improved Health,Ot Stores,Equip / Furniture / Materials,Health & Safety Supplies,LA116,31/01/2012,82700,"3,000.00 ",REVENUE,SOFT OPTIONS (COMPUTER SYSTEMS) LTD,104292
North East Lincolnshire Council,http://statistics.data.gov.uk/id/local-authority/00FC,People And Communities,Improved Health,Ot Stores,Equip / Furniture / Materials,Health & Safety Supplies,LA116,24/01/2012,65978,"4,038.30 ",REVENUE,LISCLARE LTD,101785
North East Lincolnshire Council,http://statistics.data.gov.uk/id/local-authority/00FC,People And Communities,Improved Health,Directors Public Health,Direct Employee Expenses,Pay,EA101,31/01/2012,83965,Redacted Commercially Sensitive,REVENUE,NORTH EAST LINCOLNSHIRE PRIMARY CARE TRUST,100337
North East Lincolnshire Council,http://statistics.data.gov.uk/id/local-authority/00FC,People And Communities,Improved Health,Directors Public Health,Direct Employee Expenses,Pay,EA101,04/01/2012,75312,Redacted Commercially Sensitive,REVENUE,NORTH EAST LINCOLNSHIRE PRIMARY CARE TRUST,100337
North East Lincolnshire Council,http://statistics.data.gov.uk/id/local-authority/00FC,People And Communities,Improved Health,Supporting People,Other Agencies,Third Pp - Block Gross,PJ103,27/01/2012,83581,Redacted Commercially Sensitive,REVENUE,YORK HOUSING ASSOCIATION LTD,100341
North East Lincolnshire Council,http://statistics.data.gov.uk/id/local-authority/00FC,People And Communities,Improved Health,Supporting People,Other Agencies,Third Pp - Block Subsidy,PJ102,26/01/2012,82964,Redacted Commercially Sensitive,REVENUE,CREATIVE SUPPORT LTD,107198
North East Lincolnshire Council,http://statistics.data.gov.uk/id/local-authority/00FC,People And Communities,Improved Health,Directors Public Health,Direct Employee Expenses,Pay,EA101,31/01/2012,83964,Redacted Commercially Sensitive,REVENUE,NORTH EAST LINCOLNSHIRE CARE TRUST PLUS LD,100340
North East Lincolnshire Council,http://statistics.data.gov.uk/id/local-authority/00FC,People And Communities,Improved Health,Directors Public Health,Direct Employee Expenses,Pay,EA101,10/01/2012,76860,Redacted Commercially Sensitive,REVENUE,NORTH EAST LINCOLNSHIRE PRIMARY CARE TRUST,100337
North East Lincolnshire Council,http://statistics.data.gov.uk/id/local-authority/00FC,People And Communities,Improved Health,Service Strat & Regulation,Health Authorities,Third Pp - Health Auth,PD101,05/01/2012,76615,"5,000.00 ",REVENUE,VOLUNTARY ACTION NORTH EAST LINCOLNSHIRE,103631
North East Lincolnshire Council,http://statistics.data.gov.uk/id/local-authority/00FC,People And Communities,Improved Health,Service Strat & Regulation,Health Authorities,Third Pp - Health Auth,PD101,03/01/2012,75289,"5,000.00 ",REVENUE,VOLUNTARY ACTION NORTH EAST LINCOLNSHIRE,103631
North East Lincolnshire Council,http://statistics.data.gov.uk/id/local-authority/00FC,People And Communities,Improved Health,Health Promotion,Miscellaneous Expenses,Other Supplies & Services,LL110,30/01/2012,83766,"5,000.00 ",REVENUE,LEEDS METROPOLITAN UNIVERSITY,101632
North East Lincolnshire Council,http://statistics.data.gov.uk/id/local-authority/00FC,People And Communities,Improved Health,Health Promotion,Private Contractors,Third Party Prov - Private,PH101,31/01/2012,84279,"5,280.00 ",REVENUE,WEIGHT WATCHERS UK LTD,101509
North East Lincolnshire Council,http://statistics.data.gov.uk/id/local-authority/00FC,People And Communities,Improved Health,Supporting People,Other Agencies,Third Pp - Block Subsidy,PJ102,13/01/2012,79161,Redacted Commercially Sensitive,REVENUE,NORTH EAST LINCOLNSHIRE PRIMARY CARE TRUST,100337
North East Lincolnshire Council,http://statistics.data.gov.uk/id/local-authority/00FC,People And Communities,Improved Health,Supporting People,Other Agencies,Third Pp - Block Subsidy,PJ102,16/01/2012,79164,Redacted Commercially Sensitive,REVENUE,NORTH EAST LINCOLNSHIRE PRIMARY CARE TRUST,100337
North East Lincolnshire Council,http://statistics.data.gov.uk/id/local-authority/00FC,People And Communities,Improved Health,Supporting People,Other Agencies,Third Pp - Block Subsidy,PJ102,16/01/2012,79165,Redacted Commercially Sensitive,REVENUE,NORTH EAST LINCOLNSHIRE PRIMARY CARE TRUST,100337
North East Lincolnshire Council,http://statistics.data.gov.uk/id/local-authority/00FC,People And Communities,Improved Health,Supporting People,Other Agencies,Third Pp - Block Subsidy,PJ102,26/01/2012,82961,Redacted Commercially Sensitive,REVENUE,OPEN DOOR (HEALTH) LTD,103147
North East Lincolnshire Council,http://statistics.data.gov.uk/id/local-authority/00FC,People And Communities,Improved Health,Health Promotion,Health Authorities,Third Pp - Health Auth,PD101,31/01/2012,84276,"7,500.00 ",REVENUE,WEIGHT WATCHERS UK LTD,101509
North East Lincolnshire Council,http://statistics.data.gov.uk/id/local-authority/00FC,People And Communities,Improved Health,Health Promotion,Health Authorities,Third Pp - Health Auth,PD101,31/01/2012,84278,"7,500.00 ",REVENUE,WEIGHT WATCHERS UK LTD,101509
North East Lincolnshire Council,http://statistics.data.gov.uk/id/local-authority/00FC,People And Communities,Improved Health,Supporting People,Other Agencies,Third Pp - Block Gross,PJ103,27/01/2012,83583,Redacted Commercially Sensitive,REVENUE,SANCTUARY HOUSING ASSOCIATION,103289
North East Lincolnshire Council,http://statistics.data.gov.uk/id/local-authority/00FC,People And Communities,Improved Health,Supporting People,Other Agencies,Third Pp - Block Gross,PJ103,27/01/2012,83579,Redacted Commercially Sensitive,REVENUE,CARE,100314
North East Lincolnshire Council,http://statistics.data.gov.uk/id/local-authority/00FC,People And Communities,Improved Health,Health Promotion,Private Contractors,Third Party Prov - Private,PH101,25/01/2012,82010,"9,000.00 ",REVENUE,WEIGHT WATCHERS UK LTD,101509
North East Lincolnshire Council,http://statistics.data.gov.uk/id/local-authority/00FC,People And Communities,Improved Health,Supporting People,Other Agencies,Third Pp - Block Subsidy,PJ102,26/01/2012,82954,Redacted Commercially Sensitive,REVENUE,HICA,100319
North East Lincolnshire Council,http://statistics.data.gov.uk/id/local-authority/00FC,People And Communities,Improved Health,Supporting People,Other Agencies,Third Pp - Block Subsidy,PJ102,26/01/2012,82962,Redacted Commercially Sensitive,REVENUE,NAVIGO HEALTH AND SOCIAL CARE CIC,104262
North East Lincolnshire Council,http://statistics.data.gov.uk/id/local-authority/00FC,People And Communities,Improved Health,Supporting People,Other Agencies,Third Pp - Block Gross,PJ103,27/01/2012,83578,Redacted Commercially Sensitive,REVENUE,HUMBERCARE,100311
North East Lincolnshire Council,http://statistics.data.gov.uk/id/local-authority/00FC,People And Communities,Improved Health,Supporting People,Other Agencies,Third Pp - Block Subsidy,PJ102,26/01/2012,82963,Redacted Commercially Sensitive,REVENUE,CARE PLUS GROUP,106467
North East Lincolnshire Council,http://statistics.data.gov.uk/id/local-authority/00FC,People And Communities,Improved Health,Supporting People,Other Agencies,Third Pp - Block Gross,PJ103,27/01/2012,83580,Redacted Commercially Sensitive,REVENUE,WOMENS AID,100326
North East Lincolnshire Council,http://statistics.data.gov.uk/id/local-authority/00FC,People And Communities,Improved Health,Supporting People,Other Agencies,Third Pp - Block Gross,PJ103,27/01/2012,83576,Redacted Commercially Sensitive,REVENUE,SALVATION ARMY,100309
North East Lincolnshire Council,http://statistics.data.gov.uk/id/local-authority/00FC,People And Communities,Improved Health,Supporting People,Other Agencies,Third Pp - Block Gross,PJ103,27/01/2012,83577,Redacted Commercially Sensitive,REVENUE,DOORSTEP,100310
North East Lincolnshire Council,http://statistics.data.gov.uk/id/local-authority/00FC,People And Communities,Improved Health,Supporting People,Other Agencies,Third Pp - Block Gross,PJ103,27/01/2012,83582,Redacted Commercially Sensitive,REVENUE,LONGHURST AND HAVELOK HOMES LTD,100342
North East Lincolnshire Council,http://statistics.data.gov.uk/id/local-authority/00FC,People And Communities,Improved Health,Supporting People,Other Agencies,Third Pp - Block Subsidy,PJ102,26/01/2012,82960,Redacted Commercially Sensitive,REVENUE,LONGHURST AND HAVELOK HOMES LTD,100342
North East Lincolnshire Council,http://statistics.data.gov.uk/id/local-authority/00FC,People And Communities,Improved Health,Supporting People,Other Agencies,Third Pp - Block Subsidy,PJ102,26/01/2012,82956,Redacted Commercially Sensitive,REVENUE,HOUSING & SUPPORT SOLUTIONS,100321
North East Lincolnshire Council,http://statistics.data.gov.uk/id/local-authority/00FC,People And Communities,Improved Health,Supporting People,Other Agencies,Third Pp - Block Gross,PJ103,27/01/2012,83575,Redacted Commercially Sensitive,REVENUE,GRIMSBY AND CLEETHORPES YMCA,100305
North East Lincolnshire Council,http://statistics.data.gov.uk/id/local-authority/00FC,People And Communities,Vulnerable Young People,Through Care & Disability,Other Agencies,Tuition,PJ112,18/01/2012,80177,"-3,623.90 ",REVENUE,ST JAMES SCHOOL,100940
North East Lincolnshire Council,http://statistics.data.gov.uk/id/local-authority/00FC,People And Communities,Vulnerable Young People,School Access Governor Student,Contract Hire-Operating Leases,Vehicles - Contract Hire,JC101,31/01/2012,84367,Redacted Commercially Sensitive,REVENUE,LINKS TAXIS,100546
North East Lincolnshire Council,http://statistics.data.gov.uk/id/local-authority/00FC,People And Communities,Vulnerable Young People,School Access Governor Student,Contract Hire-Operating Leases,Vehicles - Contract Hire,JC101,31/01/2012,84368,Redacted Commercially Sensitive,REVENUE,LINKS TAXIS,100546
North East Lincolnshire Council,http://statistics.data.gov.uk/id/local-authority/00FC,People And Communities,Vulnerable Young People,Sen/Inclusion,Miscellaneous Expenses,Exam Fees,LL115,03/01/2012,74092,-450.00 ,REVENUE,NCFE,107743
North East Lincolnshire Council,http://statistics.data.gov.uk/id/local-authority/00FC,People And Communities,Vulnerable Young People,Serco Contract,Other Agencies,Tuition,PJ112,13/01/2012,79200,-450.00 ,REVENUE,MR K MAEERS,103536
North East Lincolnshire Council,http://statistics.data.gov.uk/id/local-authority/00FC,People And Communities,Vulnerable Young People,Placement & Support,Private Contractors,Third Party Prov - Private,PH101,18/01/2012,80214,-257.36 ,REVENUE,FOSTER CARE ASSOCIATES LIMITED,101455
North East Lincolnshire Council,http://statistics.data.gov.uk/id/local-authority/00FC,People And Communities,Vulnerable Young People,Safeguarding,Miscellaneous Expenses,Legal Fees - General,LL103,30/01/2012,83790,-249.42 ,REVENUE,NYS CORPORATE,102444
North East Lincolnshire Council,http://statistics.data.gov.uk/id/local-authority/00FC,People And Communities,Vulnerable Young People,Through Care & Disability,Other Agencies,Christmas,PJ109,03/01/2012,75710,-181.92 ,REVENUE,16+ SERVICES,100943
North East Lincolnshire Council,http://statistics.data.gov.uk/id/local-authority/00FC,People And Communities,Vulnerable Young People,Through Care & Disability,Other Agencies,Leaving Care Grant,PJ116,03/01/2012,75710,-160.00 ,REVENUE,16+ SERVICES,100943
North East Lincolnshire Council,http://statistics.data.gov.uk/id/local-authority/00FC,People And Communities,Vulnerable Young People,Safeguarding,Miscellaneous Expenses,Legal Fees - General,LL103,11/01/2012,78037,-83.33 ,REVENUE,CARTER BROWN LTD,106320
North East Lincolnshire Council,http://statistics.data.gov.uk/id/local-authority/00FC,People And Communities,Vulnerable Young People,Placement & Support,Other Agencies,Additional Cost,PJ114,03/01/2012,75710,-77.50 ,REVENUE,16+ SERVICES,100943
North East Lincolnshire Council,http://statistics.data.gov.uk/id/local-authority/00FC,People And Communities,Vulnerable Young People,Sen/Inclusion,Private Contractors,Third Party Prov - Private,PH101,11/01/2012,77979,-76.00 ,REVENUE,A4E CONSULT LTD,101656
North East Lincolnshire Council,http://statistics.data.gov.uk/id/local-authority/00FC,People And Communities,Vulnerable Young People,Placement & Support,Other Agencies,Child Care Payments,PJ104,03/01/2012,55278,-63.00 ,REVENUE,Redacted Personal Information,Redacted Personal Information
North East Lincolnshire Council,http://statistics.data.gov.uk/id/local-authority/00FC,People And Communities,Vulnerable Young People,Placement & Support,Other Agencies,Child Care Payments,PJ104,10/01/2012,56694,-63.00 ,REVENUE,Redacted Personal Information,Redacted Personal Information
North East Lincolnshire Council,http://statistics.data.gov.uk/id/local-authority/00FC,People And Communities,Vulnerable Young People,Placement & Support,Other Agencies,Child Care Payments,PJ104,31/01/2012,60808,-62.14 ,REVENUE,Redacted Personal Information,Redacted Personal Information
North East Lincolnshire Council,http://statistics.data.gov.uk/id/local-authority/00FC,People And Communities,Vulnerable Young People,Safeguarding,Miscellaneous Expenses,Legal Fees - General,LL103,03/01/2012,74876,-50.00 ,REVENUE,CARTER BROWN LTD,106320
North East Lincolnshire Council,http://statistics.data.gov.uk/id/local-authority/00FC,People And Communities,Vulnerable Young People,Placement & Support,Other Agencies,Child Care Payments,PJ104,24/01/2012,59033,-44.00 ,REVENUE,Redacted Personal Information,Redacted Personal Information
North East Lincolnshire Council,http://statistics.data.gov.uk/id/local-authority/00FC,People And Communities,Vulnerable Young People,Commissioning & Performance,Catering,Provisions,LB101,09/01/2012,77186,-42.33 ,REVENUE,DAIRY CREST LTD,101743
North East Lincolnshire Council,http://statistics.data.gov.uk/id/local-authority/00FC,People And Communities,Vulnerable Young People,Placement & Support,Other Agencies,Exceptional Task,PJ113,17/01/2012,57376,-32.90 ,REVENUE,Redacted Personal Information,Redacted Personal Information
North East Lincolnshire Council,http://statistics.data.gov.uk/id/local-authority/00FC,People And Communities,Vulnerable Young People,Placement & Support,Other Agencies,Child Care Payments,PJ104,17/01/2012,57376,-32.57 ,REVENUE,Redacted Personal Information,Redacted Personal Information
North East Lincolnshire Council,http://statistics.data.gov.uk/id/local-authority/00FC,People And Communities,Vulnerable Young People,Placement & Support,Other Agencies,Child Care Payments,PJ104,03/01/2012,55225,-25.00 ,REVENUE,Redacted Personal Information,Redacted Personal Information
North East Lincolnshire Council,http://statistics.data.gov.uk/id/local-authority/00FC,People And Communities,Vulnerable Young People,Placement & Support,Other Agencies,Child Care Payments,PJ104,10/01/2012,56640,-25.00 ,REVENUE,Redacted Personal Information,Redacted Personal Information
North East Lincolnshire Council,http://statistics.data.gov.uk/id/local-authority/00FC,People And Communities,Vulnerable Young People,Placement & Support,Other Agencies,Child Care Payments,PJ104,17/01/2012,57341,-25.00 ,REVENUE,Redacted Personal Information,Redacted Personal Information
North East Lincolnshire Council,http://statistics.data.gov.uk/id/local-authority/00FC,People And Communities,Vulnerable Young People,Sen/Inclusion,Miscellaneous Expenses,Exam Fees,LL115,26/01/2012,82815,-24.44 ,REVENUE,ASSESSMENT AND QUALIFICATIONS ALLIANCE,101139
North East Lincolnshire Council,http://statistics.data.gov.uk/id/local-authority/00FC,People And Communities,Vulnerable Young People,Placement & Support,Other Agencies,Child Care Payments,PJ104,24/01/2012,59109,-18.00 ,REVENUE,Redacted Personal Information,Redacted Personal Information
North East Lincolnshire Council,http://statistics.data.gov.uk/id/local-authority/00FC,People And Communities,Vulnerable Young People,Placement & Support,Other Agencies,Child Care Payments,PJ104,03/01/2012,55278,-18.00 ,REVENUE,Redacted Personal Information,Redacted Personal Information
North East Lincolnshire Council,http://statistics.data.gov.uk/id/local-authority/00FC,People And Communities,Vulnerable Young People,Placement & Support,Other Agencies,Child Care Payments,PJ104,24/01/2012,59109,-16.29 ,REVENUE,Redacted Personal Information,Redacted Personal Information
North East Lincolnshire Council,http://statistics.data.gov.uk/id/local-authority/00FC,People And Communities,Vulnerable Young People,Placement & Support,Other Agencies,Additional Cost,PJ114,03/01/2012,55157,-14.29 ,REVENUE,Redacted Personal Information,Redacted Personal Information
North East Lincolnshire Council,http://statistics.data.gov.uk/id/local-authority/00FC,People And Communities,Vulnerable Young People,Placement & Support,Other Agencies,Additional Cost,PJ114,03/01/2012,55157,-14.28 ,REVENUE,Redacted Personal Information,Redacted Personal Information
North East Lincolnshire Council,http://statistics.data.gov.uk/id/local-authority/00FC,People And Communities,Vulnerable Young People,Through Care & Disability,Miscellaneous Expenses,Other Expenses General,LL119,03/01/2012,75710,-0.50 ,REVENUE,16+ SERVICES,100943
North East Lincolnshire Council,http://statistics.data.gov.uk/id/local-authority/00FC,People And Communities,Vulnerable Young People,Placement & Support,Other Agencies,Setting Up,PJ111,31/01/2012,60876,500.00 ,REVENUE,Redacted Personal Information,Redacted Personal Information
North East Lincolnshire Council,http://statistics.data.gov.uk/id/local-authority/00FC,People And Communities,Vulnerable Young People,Safeguarding,Miscellaneous Expenses,Legal Fees - General,LL103,03/01/2012,74958,500.00 ,REVENUE,BEETENSON & GIBBON SOLICITORS,100514
North East Lincolnshire Council,http://statistics.data.gov.uk/id/local-authority/00FC,People And Communities,Vulnerable Young People,Through Care & Disability,Miscellaneous Expenses,Other Expenses General,LL119,24/01/2012,59099,500.00 ,REVENUE,CONTRACT LINCS,102361
North East Lincolnshire Council,http://statistics.data.gov.uk/id/local-authority/00FC,People And Communities,Vulnerable Young People,School Access Governor Student,Contract Hire-Operating Leases,Vehicles - Contract Hire,JC101,16/01/2012,79453,Redacted Commercially Sensitive,REVENUE,LINKS TAXIS,100546
North East Lincolnshire Council,http://statistics.data.gov.uk/id/local-authority/00FC,People And Communities,Vulnerable Young People,Sen/Inclusion,Miscellaneous Expenses,Exam Fees,LL115,11/01/2012,77647,504.00 ,REVENUE,FRANKLIN COLLEGE,101073
North East Lincolnshire Council,http://statistics.data.gov.uk/id/local-authority/00FC,People And Communities,Vulnerable Young People,School Access Governor Student,Contract Hire-Operating Leases,Vehicles - Contract Hire,JC101,31/01/2012,84302,Redacted Commercially Sensitive,REVENUE,AA RADIO CARS LTD,101222
North East Lincolnshire Council,http://statistics.data.gov.uk/id/local-authority/00FC,People And Communities,Vulnerable Young People,Placement & Support,Rep Alterations Maint Building,Buildings - Repairs And Maint,GA102,03/01/2012,74268,513.27 ,REVENUE,E S RUDKIN LTD,100632
North East Lincolnshire Council,http://statistics.data.gov.uk/id/local-authority/00FC,People And Communities,Vulnerable Young People,Placement & Support,Print Stationery / Gen Off Exp,Advertising,LD104,27/01/2012,83144,525.00 ,REVENUE,ADOPTION UK,101206
North East Lincolnshire Council,http://statistics.data.gov.uk/id/local-authority/00FC,People And Communities,Vulnerable Young People,Placement & Support,Print Stationery / Gen Off Exp,Advertising,LD104,30/01/2012,83245,525.00 ,REVENUE,ADOPTION UK,101206
North East Lincolnshire Council,http://statistics.data.gov.uk/id/local-authority/00FC,People And Communities,Vulnerable Young People,Placement & Support,Print Stationery / Gen Off Exp,Advertising,LD104,30/01/2012,83247,525.00 ,REVENUE,ADOPTION UK,101206
North East Lincolnshire Council,http://statistics.data.gov.uk/id/local-authority/00FC,People And Communities,Vulnerable Young People,Placement & Support,Print Stationery / Gen Off Exp,Advertising,LD104,30/01/2012,83145,525.00 ,REVENUE,ADOPTION UK,101206
North East Lincolnshire Council,http://statistics.data.gov.uk/id/local-authority/00FC,People And Communities,Vulnerable Young People,Placement & Support,Print Stationery / Gen Off Exp,Advertising,LD104,30/01/2012,83149,525.00 ,REVENUE,ADOPTION UK,101206
North East Lincolnshire Council,http://statistics.data.gov.uk/id/local-authority/00FC,People And Communities,Vulnerable Young People,Placement & Support,Private Contractors,Third Party Prov - Private,PH101,30/01/2012,83927,528.61 ,REVENUE,NELC FOSTERING TEAM,100984
North East Lincolnshire Council,http://statistics.data.gov.uk/id/local-authority/00FC,People And Communities,Vulnerable Young People,Safeguarding,Direct Transport Costs,Voluntary Drivers Expenses,JA107,16/01/2012,79481,530.35 ,REVENUE,Redacted Personal Information,Redacted Personal Information
North East Lincolnshire Council,http://statistics.data.gov.uk/id/local-authority/00FC,People And Communities,Vulnerable Young People,Placement & Support,Private Contractors,Third Party Prov - Private,PH101,10/01/2012,77418,532.24 ,REVENUE,TREE HOUSE CARE FOSTERING SOLUTIONS LTD,101150
North East Lincolnshire Council,http://statistics.data.gov.uk/id/local-authority/00FC,People And Communities,Vulnerable Young People,School Access Governor Student,Contract Hire-Operating Leases,Vehicles - Contract Hire,JC101,03/01/2012,75586,Redacted Commercially Sensitive,REVENUE,COXONS CARS LIMITED,100578
North East Lincolnshire Council,http://statistics.data.gov.uk/id/local-authority/00FC,People And Communities,Vulnerable Young People,School Access Governor Student,Contract Hire-Operating Leases,Vehicles - Contract Hire,JC101,03/01/2012,75575,Redacted Commercially Sensitive,REVENUE,MARTIN HORTON,102171
North East Lincolnshire Council,http://statistics.data.gov.uk/id/local-authority/00FC,People And Communities,Vulnerable Young People,Placement & Support,Catering,Provisions,LB101,27/01/2012,83331,Redacted Commercially Sensitive,REVENUE,PETTY CASH,Redacted
North East Lincolnshire Council,http://statistics.data.gov.uk/id/local-authority/00FC,People And Communities,Vulnerable Young People,Serco Contract,Other Agencies,Performers,PJ101,09/01/2012,77010,547.13 ,REVENUE,FABER MUSIC DISTRIBUTION LTD,103035
North East Lincolnshire Council,http://statistics.data.gov.uk/id/local-authority/00FC,People And Communities,Vulnerable Young People,Placement & Support,Private Contractors,Third Party Prov - Private,PH101,23/01/2012,80964,550.98 ,REVENUE,LYRECO UK LIMITED,101120
North East Lincolnshire Council,http://statistics.data.gov.uk/id/local-authority/00FC,People And Communities,Vulnerable Young People,Sen/Inclusion,Energy Costs,Gas,GB101,09/01/2012,77015,553.43 ,REVENUE,BRITISH GAS TRADING LTD,101507
North East Lincolnshire Council,http://statistics.data.gov.uk/id/local-authority/00FC,People And Communities,Vulnerable Young People,Additional & Enhanced Needs,Contributions To Provisions,Contributions - Other,LK103,20/01/2012,80779,555.50 ,REVENUE,RANDSTAD EDUCATION LTD,102465
North East Lincolnshire Council,http://statistics.data.gov.uk/id/local-authority/00FC,People And Communities,Vulnerable Young People,Additional & Enhanced Needs,Contributions To Provisions,Contributions - Other,LK103,20/01/2012,80780,555.50 ,REVENUE,RANDSTAD EDUCATION LTD,102465
North East Lincolnshire Council,http://statistics.data.gov.uk/id/local-authority/00FC,People And Communities,Vulnerable Young People,School Access Governor Student,Contract Hire-Operating Leases,Vehicles - Contract Hire,JC101,16/01/2012,79496,Redacted Commercially Sensitive,REVENUE,LINKS TAXIS,100546
North East Lincolnshire Council,http://statistics.data.gov.uk/id/local-authority/00FC,People And Communities,Vulnerable Young People,School Access Governor Student,Contract Hire-Operating Leases,Vehicles - Contract Hire,JC101,16/01/2012,79438,Redacted Commercially Sensitive,REVENUE,LINKS TAXIS,100546
North East Lincolnshire Council,http://statistics.data.gov.uk/id/local-authority/00FC,People And Communities,Vulnerable Young People,School Access Governor Student,Contract Hire-Operating Leases,Vehicles - Contract Hire,JC101,05/01/2012,76618,Redacted Commercially Sensitive,REVENUE,MINICABS CLEETHORPES (LINCS) LTD,102124
North East Lincolnshire Council,http://statistics.data.gov.uk/id/local-authority/00FC,People And Communities,Vulnerable Young People,Through Care & Disability,Other Agencies,Incentive Payment,PJ124,24/01/2012,81593,575.00 ,REVENUE,16+ SERVICES,100943
North East Lincolnshire Council,http://statistics.data.gov.uk/id/local-authority/00FC,People And Communities,Vulnerable Young People,Safeguarding,Direct Transport Costs,Voluntary Drivers Expenses,JA107,16/01/2012,79484,578.38 ,REVENUE,Redacted Personal Information,Redacted Personal Information
North East Lincolnshire Council,http://statistics.data.gov.uk/id/local-authority/00FC,People And Communities,Vulnerable Young People,Youth Offending Team,Public Transport,Public Transport - Serv User,JD102,30/01/2012,83219,581.70 ,REVENUE,NYS CORPORATE,102444
North East Lincolnshire Council,http://statistics.data.gov.uk/id/local-authority/00FC,People And Communities,Vulnerable Young People,Serco Contract,Indirect Employee Expenses,Staff Training,EB122,12/01/2012,78561,584.10 ,REVENUE,GREAT HEIGHTS TRAINING,108437
North East Lincolnshire Council,http://statistics.data.gov.uk/id/local-authority/00FC,People And Communities,Vulnerable Young People,School Access Governor Student,Contract Hire-Operating Leases,Vehicles - Contract Hire,JC101,03/01/2012,75569,Redacted Commercially Sensitive,REVENUE,WHEELCHAIR FRIENDLY TAXI SERVICE,101915
North East Lincolnshire Council,http://statistics.data.gov.uk/id/local-authority/00FC,People And Communities,Vulnerable Young People,School Access Governor Student,Contract Hire-Operating Leases,Vehicles - Contract Hire,JC101,05/01/2012,76603,Redacted Commercially Sensitive,REVENUE,MINICABS CLEETHORPES (LINCS) LTD,102124
North East Lincolnshire Council,http://statistics.data.gov.uk/id/local-authority/00FC,People And Communities,Vulnerable Young People,School Access Governor Student,Contract Hire-Operating Leases,Vehicles - Contract Hire,JC101,03/01/2012,75549,Redacted Commercially Sensitive,REVENUE,CABLE RADIO CARS,100933
North East Lincolnshire Council,http://statistics.data.gov.uk/id/local-authority/00FC,People And Communities,Vulnerable Young People,Children'S Workforce Developme,Indirect Employee Expenses,Staff Training,EB122,12/01/2012,78618,595.00 ,REVENUE,CARE-EX SERVICES LTD,104154
North East Lincolnshire Council,http://statistics.data.gov.uk/id/local-authority/00FC,People And Communities,Vulnerable Young People,Sen/Inclusion,Print Stationery / Gen Off Exp,Photocopier - Running Costs,LD102,13/01/2012,78954,597.79 ,REVENUE,UNITED CARLTON OFFICE SYSTEMS LTD,101652
North East Lincolnshire Council,http://statistics.data.gov.uk/id/local-authority/00FC,People And Communities,Vulnerable Young People,Serco Contract,Print Stationery / Gen Off Exp,Printing And Stationery,LD103,24/01/2012,81724,598.00 ,REVENUE,SIEMENS FINANCIAL SERVICES LTD,101161
North East Lincolnshire Council,http://statistics.data.gov.uk/id/local-authority/00FC,People And Communities,Vulnerable Young People,Serco Contract,Print Stationery / Gen Off Exp,Printing And Stationery,LD103,24/01/2012,81725,598.00 ,REVENUE,SIEMENS FINANCIAL SERVICES LTD,101161
North East Lincolnshire Council,http://statistics.data.gov.uk/id/local-authority/00FC,People And Communities,Vulnerable Young People,Serco Contract,Print Stationery / Gen Off Exp,Printing And Stationery,LD103,24/01/2012,81726,598.00 ,REVENUE,SIEMENS FINANCIAL SERVICES LTD,101161
North East Lincolnshire Council,http://statistics.data.gov.uk/id/local-authority/00FC,People And Communities,Vulnerable Young People,School Access Governor Student,Contract Hire-Operating Leases,Vehicles - Contract Hire,JC101,16/01/2012,79451,Redacted Commercially Sensitive,REVENUE,LINKS TAXIS,100546
North East Lincolnshire Council,http://statistics.data.gov.uk/id/local-authority/00FC,People And Communities,Vulnerable Young People,Placement & Support,Print Stationery / Gen Off Exp,Publicity,LD105,23/01/2012,80968,600.00 ,REVENUE,GRIMSBY & SCUNTHORPE MEDIA GROUP LTD,101827
North East Lincolnshire Council,http://statistics.data.gov.uk/id/local-authority/00FC,People And Communities,Vulnerable Young People,Safeguarding,Miscellaneous Expenses,Legal Fees - General,LL103,26/01/2012,82289,600.00 ,REVENUE,COOL2CARE CIC,102270
North East Lincolnshire Council,http://statistics.data.gov.uk/id/local-authority/00FC,People And Communities,Vulnerable Young People,Safeguarding,Miscellaneous Expenses,Legal Fees - General,LL103,09/01/2012,77038,600.00 ,REVENUE,WILLIAM HILLIER,104433
North East Lincolnshire Council,http://statistics.data.gov.uk/id/local-authority/00FC,People And Communities,Vulnerable Young People,Through Care & Disability,Other Agencies,University,PJ129,10/01/2012,56649,600.00 ,REVENUE,Redacted Personal Information,Redacted Personal Information
North East Lincolnshire Council,http://statistics.data.gov.uk/id/local-authority/00FC,People And Communities,Vulnerable Young People,Safeguarding,Miscellaneous Expenses,Legal Fees - General,LL103,31/01/2012,84305,608.40 ,REVENUE,PARSONS DOWD PSYCHOLOGICAL LTD,101793
North East Lincolnshire Council,http://statistics.data.gov.uk/id/local-authority/00FC,People And Communities,Vulnerable Young People,School Access Governor Student,Contract Hire-Operating Leases,Vehicles - Contract Hire,JC101,16/01/2012,79487,Redacted Commercially Sensitive,REVENUE,LINKS TAXIS,100546
North East Lincolnshire Council,http://statistics.data.gov.uk/id/local-authority/00FC,People And Communities,Vulnerable Young People,Through Care & Disability,Other Agencies,Additional Cost,PJ114,26/01/2012,82930,609.60 ,REVENUE,THE ROWAN ORGANISATION,105925
North East Lincolnshire Council,http://statistics.data.gov.uk/id/local-authority/00FC,People And Communities,Vulnerable Young People,School Access Governor Student,Contract Hire-Operating Leases,Vehicles - Contract Hire,JC101,03/01/2012,75563,Redacted Commercially Sensitive,REVENUE,WHEELCHAIR FRIENDLY TAXI SERVICE,101915
North East Lincolnshire Council,http://statistics.data.gov.uk/id/local-authority/00FC,People And Communities,Vulnerable Young People,Serco Contract,Rents,Room Hire,GC103,04/01/2012,76235,611.25 ,REVENUE,BRACKENBOROUGH LIMITED,101456
North East Lincolnshire Council,http://statistics.data.gov.uk/id/local-authority/00FC,People And Communities,Vulnerable Young People,Placement & Support,Miscellaneous Expenses,Holidays - Service Users,LL113,27/01/2012,83331,Redacted Commercially Sensitive,REVENUE,PETTY CASH,Redacted
North East Lincolnshire Council,http://statistics.data.gov.uk/id/local-authority/00FC,People And Communities,Vulnerable Young People,School Access Governor Student,Contract Hire-Operating Leases,Vehicles - Contract Hire,JC101,16/01/2012,79454,Redacted Commercially Sensitive,REVENUE,LINKS TAXIS,100546
North East Lincolnshire Council,http://statistics.data.gov.uk/id/local-authority/00FC,People And Communities,Vulnerable Young People,Safeguarding,Print Stationery / Gen Off Exp,Printing And Stationery,LD103,19/01/2012,80502,617.07 ,REVENUE,LYRECO UK LIMITED,101120
North East Lincolnshire Council,http://statistics.data.gov.uk/id/local-authority/00FC,People And Communities,Vulnerable Young People,School Access Governor Student,Contract Hire-Operating Leases,Vehicles - Contract Hire,JC101,03/01/2012,75554,Redacted Commercially Sensitive,REVENUE,WHEELCHAIR FRIENDLY TAXI SERVICE,101915
North East Lincolnshire Council,http://statistics.data.gov.uk/id/local-authority/00FC,People And Communities,Vulnerable Young People,Placement & Support,Rep Alterations Maint Building,Buildings - Repairs And Maint,GA102,11/01/2012,77508,622.00 ,REVENUE,WIL-LEC ELECTRICAL CONTRACTORS LTD,101370
North East Lincolnshire Council,http://statistics.data.gov.uk/id/local-authority/00FC,People And Communities,Vulnerable Young People,School Access Governor Student,Contract Hire-Operating Leases,Vehicles - Contract Hire,JC101,25/01/2012,82089,Redacted Commercially Sensitive,REVENUE,REVELLS TAXIS (ED/SOC SERV),100559
North East Lincolnshire Council,http://statistics.data.gov.uk/id/local-authority/00FC,People And Communities,Vulnerable Young People,Safeguarding,Indirect Employee Expenses,Staff Training,EB122,30/01/2012,83702,634.00 ,REVENUE,SONIC COMMUNICATIONS (INTERNATIONAL) LTD,108645
North East Lincolnshire Council,http://statistics.data.gov.uk/id/local-authority/00FC,People And Communities,Vulnerable Young People,Sen/Inclusion,Energy Costs,Electricity,GB102,10/01/2012,76997,636.90 ,REVENUE,NPOWER LIMITED,101414
North East Lincolnshire Council,http://statistics.data.gov.uk/id/local-authority/00FC,People And Communities,Vulnerable Young People,Placement & Support,Print Stationery / Gen Off Exp,Advertising,LD104,27/01/2012,83142,650.88 ,REVENUE,ADOPTION UK,101206
North East Lincolnshire Council,http://statistics.data.gov.uk/id/local-authority/00FC,People And Communities,Vulnerable Young People,Placement & Support,Print Stationery / Gen Off Exp,Advertising,LD104,30/01/2012,83140,650.88 ,REVENUE,ADOPTION UK,101206
North East Lincolnshire Council,http://statistics.data.gov.uk/id/local-authority/00FC,People And Communities,Vulnerable Young People,Placement & Support,Miscellaneous Expenses,Activities - Service Users,LL114,11/01/2012,56969,660.00 ,REVENUE,Redacted Personal Information,Redacted Personal Information
North East Lincolnshire Council,http://statistics.data.gov.uk/id/local-authority/00FC,People And Communities,Vulnerable Young People,Strategic Management,Indirect Employee Expenses,Allowances - Employees,EB110,03/01/2012,75288,661.50 ,REVENUE,GRIMSBY & DISTRICT TEACHERS ASSOCIATION,107358
North East Lincolnshire Council,http://statistics.data.gov.uk/id/local-authority/00FC,People And Communities,Vulnerable Young People,Strategic Management,Private Contractors,Third Party Prov - Private,PH101,26/01/2012,82716,664.06 ,REVENUE,BPAM LTD,107408
North East Lincolnshire Council,http://statistics.data.gov.uk/id/local-authority/00FC,People And Communities,Vulnerable Young People,Placement & Support,Print Stationery / Gen Off Exp,Advertising,LD104,03/01/2012,75183,665.00 ,REVENUE,ADOPTION UK,101206
North East Lincolnshire Council,http://statistics.data.gov.uk/id/local-authority/00FC,People And Communities,Vulnerable Young People,Placement & Support,Print Stationery / Gen Off Exp,Advertising,LD104,30/01/2012,83249,665.00 ,REVENUE,ADOPTION UK,101206
North East Lincolnshire Council,http://statistics.data.gov.uk/id/local-authority/00FC,People And Communities,Vulnerable Young People,Placement & Support,Print Stationery / Gen Off Exp,Advertising,LD104,03/01/2012,75182,665.00 ,REVENUE,ADOPTION UK,101206
North East Lincolnshire Council,http://statistics.data.gov.uk/id/local-authority/00FC,People And Communities,Vulnerable Young People,School Access Governor Student,Contract Hire-Operating Leases,Vehicles - Contract Hire,JC101,05/01/2012,76606,Redacted Commercially Sensitive,REVENUE,MINICABS CLEETHORPES (LINCS) LTD,102124
North East Lincolnshire Council,http://statistics.data.gov.uk/id/local-authority/00FC,People And Communities,Vulnerable Young People,School Access Governor Student,Contract Hire-Operating Leases,Vehicles - Contract Hire,JC101,16/01/2012,79503,Redacted Commercially Sensitive,REVENUE,LINKS TAXIS,100546
North East Lincolnshire Council,http://statistics.data.gov.uk/id/local-authority/00FC,People And Communities,Vulnerable Young People,Placement & Support,Print Stationery / Gen Off Exp,Photocopier - Running Costs,LD102,23/01/2012,80930,699.99 ,REVENUE,UNITED CARLTON OFFICE SYSTEMS LTD,101652
North East Lincolnshire Council,http://statistics.data.gov.uk/id/local-authority/00FC,People And Communities,Vulnerable Young People,Sen/Inclusion,Private Contractors,Third Party Prov - Private,PH101,23/01/2012,80581,700.00 ,REVENUE,DKM ASSESSMENT & VERIFICATION LTD,101643
North East Lincolnshire Council,http://statistics.data.gov.uk/id/local-authority/00FC,People And Communities,Vulnerable Young People,Sen/Inclusion,Private Contractors,Third Party Prov - Private,PH101,23/01/2012,80579,700.00 ,REVENUE,DKM ASSESSMENT & VERIFICATION LTD,101643
North East Lincolnshire Council,http://statistics.data.gov.uk/id/local-authority/00FC,People And Communities,Vulnerable Young People,Sen/Inclusion,Private Contractors,Third Party Prov - Private,PH101,23/01/2012,80913,700.00 ,REVENUE,DKM ASSESSMENT & VERIFICATION LTD,101643
North East Lincolnshire Council,http://statistics.data.gov.uk/id/local-authority/00FC,People And Communities,Vulnerable Young People,Sen/Inclusion,Private Contractors,Third Party Prov - Private,PH101,23/01/2012,80914,700.00 ,REVENUE,DKM ASSESSMENT & VERIFICATION LTD,101643
North East Lincolnshire Council,http://statistics.data.gov.uk/id/local-authority/00FC,People And Communities,Vulnerable Young People,Sen/Inclusion,Private Contractors,Third Party Prov - Private,PH101,23/01/2012,80915,700.00 ,REVENUE,DKM ASSESSMENT & VERIFICATION LTD,101643
North East Lincolnshire Council,http://statistics.data.gov.uk/id/local-authority/00FC,People And Communities,Vulnerable Young People,Sen/Inclusion,Private Contractors,Third Party Prov - Private,PH101,23/01/2012,80572,700.00 ,REVENUE,DKM ASSESSMENT & VERIFICATION LTD,101643
North East Lincolnshire Council,http://statistics.data.gov.uk/id/local-authority/00FC,People And Communities,Vulnerable Young People,Sen/Inclusion,Private Contractors,Third Party Prov - Private,PH101,23/01/2012,80573,700.00 ,REVENUE,DKM ASSESSMENT & VERIFICATION LTD,101643
North East Lincolnshire Council,http://statistics.data.gov.uk/id/local-authority/00FC,People And Communities,Vulnerable Young People,Sen/Inclusion,Private Contractors,Third Party Prov - Private,PH101,23/01/2012,80574,700.00 ,REVENUE,DKM ASSESSMENT & VERIFICATION LTD,101643
North East Lincolnshire Council,http://statistics.data.gov.uk/id/local-authority/00FC,People And Communities,Vulnerable Young People,Sen/Inclusion,Private Contractors,Third Party Prov - Private,PH101,23/01/2012,80576,700.00 ,REVENUE,DKM ASSESSMENT & VERIFICATION LTD,101643
North East Lincolnshire Council,http://statistics.data.gov.uk/id/local-authority/00FC,People And Communities,Vulnerable Young People,Sen/Inclusion,Private Contractors,Third Party Prov - Private,PH101,23/01/2012,80577,700.00 ,REVENUE,DKM ASSESSMENT & VERIFICATION LTD,101643
North East Lincolnshire Council,http://statistics.data.gov.uk/id/local-authority/00FC,People And Communities,Vulnerable Young People,Sen/Inclusion,Private Contractors,Third Party Prov - Private,PH101,23/01/2012,80578,700.00 ,REVENUE,DKM ASSESSMENT & VERIFICATION LTD,101643
North East Lincolnshire Council,http://statistics.data.gov.uk/id/local-authority/00FC,People And Communities,Vulnerable Young People,Sen/Inclusion,Private Contractors,Third Party Prov - Private,PH101,23/01/2012,80580,700.00 ,REVENUE,DKM ASSESSMENT & VERIFICATION LTD,101643
North East Lincolnshire Council,http://statistics.data.gov.uk/id/local-authority/00FC,People And Communities,Vulnerable Young People,Placement & Support,Other Agencies,Special Carer Payments,PJ128,03/01/2012,55161,704.54 ,REVENUE,Redacted Personal Information,Redacted Personal Information
North East Lincolnshire Council,http://statistics.data.gov.uk/id/local-authority/00FC,People And Communities,Vulnerable Young People,Placement & Support,Other Agencies,Special Carer Payments,PJ128,03/01/2012,55178,704.54 ,REVENUE,Redacted Personal Information,Redacted Personal Information
North East Lincolnshire Council,http://statistics.data.gov.uk/id/local-authority/00FC,People And Communities,Vulnerable Young People,Placement & Support,Other Agencies,Special Carer Payments,PJ128,03/01/2012,55179,704.54 ,REVENUE,Redacted Personal Information,Redacted Personal Information
North East Lincolnshire Council,http://statistics.data.gov.uk/id/local-authority/00FC,People And Communities,Vulnerable Young People,Placement & Support,Other Agencies,Special Carer Payments,PJ128,03/01/2012,55182,704.54 ,REVENUE,Redacted Personal Information,Redacted Personal Information
North East Lincolnshire Council,http://statistics.data.gov.uk/id/local-authority/00FC,People And Communities,Vulnerable Young People,Placement & Support,Other Agencies,Special Carer Payments,PJ128,03/01/2012,55272,704.54 ,REVENUE,Redacted Personal Information,Redacted Personal Information
North East Lincolnshire Council,http://statistics.data.gov.uk/id/local-authority/00FC,People And Communities,Vulnerable Young People,Placement & Support,Other Agencies,Special Carer Payments,PJ128,10/01/2012,56688,704.54 ,REVENUE,Redacted Personal Information,Redacted Personal Information
North East Lincolnshire Council,http://statistics.data.gov.uk/id/local-authority/00FC,People And Communities,Vulnerable Young People,Placement & Support,Other Agencies,Special Carer Payments,PJ128,10/01/2012,56575,704.54 ,REVENUE,Redacted Personal Information,Redacted Personal Information
North East Lincolnshire Council,http://statistics.data.gov.uk/id/local-authority/00FC,People And Communities,Vulnerable Young People,Placement & Support,Other Agencies,Special Carer Payments,PJ128,10/01/2012,56592,704.54 ,REVENUE,Redacted Personal Information,Redacted Personal Information
North East Lincolnshire Council,http://statistics.data.gov.uk/id/local-authority/00FC,People And Communities,Vulnerable Young People,Placement & Support,Other Agencies,Special Carer Payments,PJ128,10/01/2012,56593,704.54 ,REVENUE,Redacted Personal Information,Redacted Personal Information
North East Lincolnshire Council,http://statistics.data.gov.uk/id/local-authority/00FC,People And Communities,Vulnerable Young People,Placement & Support,Other Agencies,Special Carer Payments,PJ128,10/01/2012,56597,704.54 ,REVENUE,Redacted Personal Information,Redacted Personal Information
North East Lincolnshire Council,http://statistics.data.gov.uk/id/local-authority/00FC,People And Communities,Vulnerable Young People,Placement & Support,Other Agencies,Special Carer Payments,PJ128,17/01/2012,57389,704.54 ,REVENUE,Redacted Personal Information,Redacted Personal Information
North East Lincolnshire Council,http://statistics.data.gov.uk/id/local-authority/00FC,People And Communities,Vulnerable Young People,Placement & Support,Other Agencies,Special Carer Payments,PJ128,17/01/2012,57277,704.54 ,REVENUE,Redacted Personal Information,Redacted Personal Information
North East Lincolnshire Council,http://statistics.data.gov.uk/id/local-authority/00FC,People And Communities,Vulnerable Young People,Placement & Support,Other Agencies,Special Carer Payments,PJ128,17/01/2012,57294,704.54 ,REVENUE,Redacted Personal Information,Redacted Personal Information
North East Lincolnshire Council,http://statistics.data.gov.uk/id/local-authority/00FC,People And Communities,Vulnerable Young People,Placement & Support,Other Agencies,Special Carer Payments,PJ128,17/01/2012,57295,704.54 ,REVENUE,Redacted Personal Information,Redacted Personal Information
North East Lincolnshire Council,http://statistics.data.gov.uk/id/local-authority/00FC,People And Communities,Vulnerable Young People,Placement & Support,Other Agencies,Special Carer Payments,PJ128,17/01/2012,57298,704.54 ,REVENUE,Redacted Personal Information,Redacted Personal Information
North East Lincolnshire Council,http://statistics.data.gov.uk/id/local-authority/00FC,People And Communities,Vulnerable Young People,Placement & Support,Other Agencies,Special Carer Payments,PJ128,24/01/2012,59005,704.54 ,REVENUE,Redacted Personal Information,Redacted Personal Information
North East Lincolnshire Council,http://statistics.data.gov.uk/id/local-authority/00FC,People And Communities,Vulnerable Young People,Placement & Support,Other Agencies,Special Carer Payments,PJ128,24/01/2012,59095,704.54 ,REVENUE,Redacted Personal Information,Redacted Personal Information
North East Lincolnshire Council,http://statistics.data.gov.uk/id/local-authority/00FC,People And Communities,Vulnerable Young People,Placement & Support,Other Agencies,Special Carer Payments,PJ128,24/01/2012,58984,704.54 ,REVENUE,Redacted Personal Information,Redacted Personal Information
North East Lincolnshire Council,http://statistics.data.gov.uk/id/local-authority/00FC,People And Communities,Vulnerable Young People,Placement & Support,Other Agencies,Special Carer Payments,PJ128,24/01/2012,59001,704.54 ,REVENUE,Redacted Personal Information,Redacted Personal Information
North East Lincolnshire Council,http://statistics.data.gov.uk/id/local-authority/00FC,People And Communities,Vulnerable Young People,Placement & Support,Other Agencies,Special Carer Payments,PJ128,24/01/2012,59002,704.54 ,REVENUE,Redacted Personal Information,Redacted Personal Information
North East Lincolnshire Council,http://statistics.data.gov.uk/id/local-authority/00FC,People And Communities,Vulnerable Young People,Placement & Support,Other Agencies,Special Carer Payments,PJ128,31/01/2012,60765,704.54 ,REVENUE,Redacted Personal Information,Redacted Personal Information
North East Lincolnshire Council,http://statistics.data.gov.uk/id/local-authority/00FC,People And Communities,Vulnerable Young People,Placement & Support,Other Agencies,Special Carer Payments,PJ128,31/01/2012,60744,704.54 ,REVENUE,Redacted Personal Information,Redacted Personal Information
North East Lincolnshire Council,http://statistics.data.gov.uk/id/local-authority/00FC,People And Communities,Vulnerable Young People,Placement & Support,Other Agencies,Special Carer Payments,PJ128,31/01/2012,60761,704.54 ,REVENUE,Redacted Personal Information,Redacted Personal Information
North East Lincolnshire Council,http://statistics.data.gov.uk/id/local-authority/00FC,People And Communities,Vulnerable Young People,Placement & Support,Other Agencies,Special Carer Payments,PJ128,31/01/2012,60762,704.54 ,REVENUE,Redacted Personal Information,Redacted Personal Information
North East Lincolnshire Council,http://statistics.data.gov.uk/id/local-authority/00FC,People And Communities,Vulnerable Young People,Placement & Support,Other Agencies,Special Carer Payments,PJ128,31/01/2012,60855,704.54 ,REVENUE,Redacted Personal Information,Redacted Personal Information
North East Lincolnshire Council,http://statistics.data.gov.uk/id/local-authority/00FC,People And Communities,Vulnerable Young People,Placement & Support,Miscellaneous Expenses,Other Expenses General,LL119,27/01/2012,83173,743.29 ,REVENUE,ALAN HEPPLESTON ELECTRICAL,108592
North East Lincolnshire Council,http://statistics.data.gov.uk/id/local-authority/00FC,People And Communities,Vulnerable Young People,Through Care & Disability,Other Agencies,Incentive Payment,PJ124,03/01/2012,75710,754.90 ,REVENUE,16+ SERVICES,100943
North East Lincolnshire Council,http://statistics.data.gov.uk/id/local-authority/00FC,People And Communities,Vulnerable Young People,Serco Contract,Other Agencies,Performers,PJ101,27/01/2012,83209,785.00 ,REVENUE,AMANDA JACKSON,105362
North East Lincolnshire Council,http://statistics.data.gov.uk/id/local-authority/00FC,People And Communities,Vulnerable Young People,School Access Governor Student,Contract Hire-Operating Leases,Vehicles - Contract Hire,JC101,31/01/2012,84301,Redacted Commercially Sensitive,REVENUE,AA RADIO CARS LTD,101222
North East Lincolnshire Council,http://statistics.data.gov.uk/id/local-authority/00FC,People And Communities,Vulnerable Young People,Through Care & Disability,Private Contractors,Third Party Prov - Private,PH101,24/01/2012,59100,795.60 ,REVENUE,Redacted Personal Information,Redacted Personal Information
North East Lincolnshire Council,http://statistics.data.gov.uk/id/local-authority/00FC,People And Communities,Vulnerable Young People,School Access Governor Student,Contract Hire-Operating Leases,Vehicles - Contract Hire,JC101,05/01/2012,76626,Redacted Commercially Sensitive,REVENUE,AMVALE LIMITED,101030
North East Lincolnshire Council,http://statistics.data.gov.uk/id/local-authority/00FC,People And Communities,Vulnerable Young People,School Access Governor Student,Contract Hire-Operating Leases,Vehicles - Contract Hire,JC101,16/01/2012,79437,Redacted Commercially Sensitive,REVENUE,AMVALE LIMITED,101030
North East Lincolnshire Council,http://statistics.data.gov.uk/id/local-authority/00FC,People And Communities,Vulnerable Young People,School Access Governor Student,Contract Hire-Operating Leases,Vehicles - Contract Hire,JC101,16/01/2012,79436,Redacted Commercially Sensitive,REVENUE,AMVALE LIMITED,101030
North East Lincolnshire Council,http://statistics.data.gov.uk/id/local-authority/00FC,People And Communities,Vulnerable Young People,Sen/Inclusion,Contributions To Provisions,Contributions - Other,LK103,12/01/2012,78309,800.00 ,REVENUE,MR R G FLOWERDAY,107027
North East Lincolnshire Council,http://statistics.data.gov.uk/id/local-authority/00FC,People And Communities,Vulnerable Young People,Through Care & Disability,Cleaning And Domestic Supplies,Cleaning - Domestic Purchases,GH105,04/01/2012,76070,804.00 ,REVENUE,PETER HOGARTH & SONS LTD,100815
North East Lincolnshire Council,http://statistics.data.gov.uk/id/local-authority/00FC,People And Communities,Vulnerable Young People,Sen/Inclusion,Direct Employee Expenses,Pay Teachers Supply Cover,EA106,23/01/2012,80916,814.34 ,REVENUE,TEACHING PERSONNEL LTD,101305
North East Lincolnshire Council,http://statistics.data.gov.uk/id/local-authority/00FC,People And Communities,Vulnerable Young People,Serco Contract,Other Agencies,Tuition,PJ112,04/01/2012,76174,820.00 ,REVENUE,LISA OLIVER,101318
North East Lincolnshire Council,http://statistics.data.gov.uk/id/local-authority/00FC,People And Communities,Vulnerable Young People,Through Care & Disability,Other Agencies,Personal Allowance,PJ122,03/01/2012,75710,836.85 ,REVENUE,16+ SERVICES,100943
North East Lincolnshire Council,http://statistics.data.gov.uk/id/local-authority/00FC,People And Communities,Vulnerable Young People,Sen/Inclusion,Print Stationery / Gen Off Exp,Printing And Stationery,LD103,24/01/2012,81201,851.44 ,REVENUE,LYRECO UK LIMITED,101120
North East Lincolnshire Council,http://statistics.data.gov.uk/id/local-authority/00FC,People And Communities,Vulnerable Young People,Sen/Inclusion,Direct Employee Expenses,Pay Teachers Supply Cover,EA106,26/01/2012,82286,858.57 ,REVENUE,TEACHING PERSONNEL LTD,101305
North East Lincolnshire Council,http://statistics.data.gov.uk/id/local-authority/00FC,People And Communities,Vulnerable Young People,School Access Governor Student,Contract Hire-Operating Leases,Vehicles - Contract Hire,JC101,05/01/2012,76604,Redacted Commercially Sensitive,REVENUE,AIRPORT TRAVEL,107220
North East Lincolnshire Council,http://statistics.data.gov.uk/id/local-authority/00FC,People And Communities,Vulnerable Young People,Additional & Enhanced Needs,Private Contractors,Third Party Prov - Private,PH101,25/01/2012,81962,869.40 ,REVENUE,QUAYSIDE CARE,101108
North East Lincolnshire Council,http://statistics.data.gov.uk/id/local-authority/00FC,People And Communities,Vulnerable Young People,Sen/Inclusion,Rep Alterations Maint Building,Buildings - Repairs And Maint,GA102,26/01/2012,82760,892.00 ,REVENUE,SAFE CONTROL LTD,100989
North East Lincolnshire Council,http://statistics.data.gov.uk/id/local-authority/00FC,People And Communities,Vulnerable Young People,Sen/Inclusion,Consultancy,Consultancy,PL101,25/01/2012,81960,900.00 ,REVENUE,IRWIN EDUCATION LTD,106910
North East Lincolnshire Council,http://statistics.data.gov.uk/id/local-authority/00FC,People And Communities,Vulnerable Young People,Sen/Inclusion,Direct Employee Expenses,Pay Teachers Supply Cover,EA106,11/01/2012,77691,900.00 ,REVENUE,RANDSTAD EDUCATION LTD,102465
North East Lincolnshire Council,http://statistics.data.gov.uk/id/local-authority/00FC,People And Communities,Vulnerable Young People,Sen/Inclusion,Direct Employee Expenses,Pay Teachers Supply Cover,EA106,23/01/2012,80486,900.00 ,REVENUE,RANDSTAD EDUCATION LTD,102465
North East Lincolnshire Council,http://statistics.data.gov.uk/id/local-authority/00FC,People And Communities,Vulnerable Young People,Sen/Inclusion,Direct Employee Expenses,Pay Teachers Supply Cover,EA106,10/01/2012,77701,900.00 ,REVENUE,RANDSTAD EDUCATION LTD,102465
North East Lincolnshire Council,http://statistics.data.gov.uk/id/local-authority/00FC,People And Communities,Vulnerable Young People,Sen/Inclusion,Rep Alterations Maint Building,Buildings - Repairs And Maint,GA102,23/01/2012,80959,913.04 ,REVENUE,EXCELL ELECTRICAL CONTRACTORS,100601
North East Lincolnshire Council,http://statistics.data.gov.uk/id/local-authority/00FC,People And Communities,Vulnerable Young People,Placement & Support,Miscellaneous Expenses,Other Expenses General,LL119,26/01/2012,82553,943.52 ,REVENUE,ALAN HEPPLESTON ELECTRICAL,108592
North East Lincolnshire Council,http://statistics.data.gov.uk/id/local-authority/00FC,People And Communities,Vulnerable Young People,Additional & Enhanced Needs,Contributions To Provisions,Contributions - Other,LK103,25/01/2012,81967,980.00 ,REVENUE,DKM ASSESSMENT & VERIFICATION LTD,101643
North East Lincolnshire Council,http://statistics.data.gov.uk/id/local-authority/00FC,People And Communities,Vulnerable Young People,Additional & Enhanced Needs,Contributions To Provisions,Contributions - Other,LK103,25/01/2012,81969,980.00 ,REVENUE,DKM ASSESSMENT & VERIFICATION LTD,101643
North East Lincolnshire Council,http://statistics.data.gov.uk/id/local-authority/00FC,People And Communities,Vulnerable Young People,Additional & Enhanced Needs,Contributions To Provisions,Contributions - Other,LK103,25/01/2012,81971,980.00 ,REVENUE,DKM ASSESSMENT & VERIFICATION LTD,101643
North East Lincolnshire Council,http://statistics.data.gov.uk/id/local-authority/00FC,People And Communities,Vulnerable Young People,School Access Governor Student,Contract Hire-Operating Leases,Vehicles - Contract Hire,JC101,16/01/2012,79506,Redacted Commercially Sensitive,REVENUE,LINKS TAXIS,100546
North East Lincolnshire Council,http://statistics.data.gov.uk/id/local-authority/00FC,People And Communities,Vulnerable Young People,Serco Contract,Consultancy,Consultancy,PL101,12/01/2012,78571,"1,000.00 ",REVENUE,P R & A KIPLING (EDUCATION),101930
North East Lincolnshire Council,http://statistics.data.gov.uk/id/local-authority/00FC,People And Communities,Vulnerable Young People,Serco Contract,Other Agencies,Tuition,PJ112,27/01/2012,83212,"1,000.00 ",REVENUE,MUSIC LINCS LTD,100944
North East Lincolnshire Council,http://statistics.data.gov.uk/id/local-authority/00FC,People And Communities,Vulnerable Young People,School Access Governor Student,Contract Hire-Operating Leases,Vehicles - Contract Hire,JC101,16/01/2012,79500,Redacted Commercially Sensitive,REVENUE,LINKS TAXIS,100546
North East Lincolnshire Council,http://statistics.data.gov.uk/id/local-authority/00FC,People And Communities,Vulnerable Young People,Placement & Support,Catering,Provisions,LB101,05/01/2012,76644,Redacted Commercially Sensitive,REVENUE,PETTY CASH,Redacted
North East Lincolnshire Council,http://statistics.data.gov.uk/id/local-authority/00FC,People And Communities,Vulnerable Young People,Serco Contract,Equip / Furniture / Materials,Equipment - Purchase,LA101,03/01/2012,75130,"1,019.44 ",REVENUE,J M CRAWFORD,108289
North East Lincolnshire Council,http://statistics.data.gov.uk/id/local-authority/00FC,People And Communities,Vulnerable Young People,Placement & Support,Equip / Furniture / Materials,Books,LA121,27/01/2012,83182,"1,020.00 ",REVENUE,PARTRIDGE & PRINT LTD,108634
North East Lincolnshire Council,http://statistics.data.gov.uk/id/local-authority/00FC,People And Communities,Vulnerable Young People,School Access Governor Student,Contract Hire-Operating Leases,Vehicles - Contract Hire,JC101,16/01/2012,79504,Redacted Commercially Sensitive,REVENUE,LINKS TAXIS,100546
North East Lincolnshire Council,http://statistics.data.gov.uk/id/local-authority/00FC,People And Communities,Vulnerable Young People,School Access Governor Student,Contract Hire-Operating Leases,Vehicles - Contract Hire,JC101,16/01/2012,79501,Redacted Commercially Sensitive,REVENUE,LINKS TAXIS,100546
North East Lincolnshire Council,http://statistics.data.gov.uk/id/local-authority/00FC,People And Communities,Vulnerable Young People,Serco Contract,Other Agencies,Performers,PJ101,12/01/2012,78457,"1,050.00 ",REVENUE,ANDREW COTTEE,102970
North East Lincolnshire Council,http://statistics.data.gov.uk/id/local-authority/00FC,People And Communities,Vulnerable Young People,Through Care & Disability,Other Agencies,Personal Allowance,PJ122,24/01/2012,81593,"1,070.15 ",REVENUE,16+ SERVICES,100943
North East Lincolnshire Council,http://statistics.data.gov.uk/id/local-authority/00FC,People And Communities,Vulnerable Young People,Safeguarding,Miscellaneous Expenses,Legal Fees - General,LL103,04/01/2012,75442,"1,075.00 ",REVENUE,MISS LAURA DAVIDSON,107680
North East Lincolnshire Council,http://statistics.data.gov.uk/id/local-authority/00FC,People And Communities,Vulnerable Young People,School Access Governor Student,Contract Hire-Operating Leases,Vehicles - Contract Hire,JC101,25/01/2012,82078,Redacted Commercially Sensitive,REVENUE,REVELLS TAXIS (ED/SOC SERV),100559
North East Lincolnshire Council,http://statistics.data.gov.uk/id/local-authority/00FC,People And Communities,Vulnerable Young People,School Access Governor Student,Contract Hire-Operating Leases,Vehicles - Contract Hire,JC101,16/01/2012,79508,Redacted Commercially Sensitive,REVENUE,LINKS TAXIS,100546
North East Lincolnshire Council,http://statistics.data.gov.uk/id/local-authority/00FC,People And Communities,Vulnerable Young People,School Access Governor Student,Contract Hire-Operating Leases,Vehicles - Contract Hire,JC101,05/01/2012,76622,Redacted Commercially Sensitive,REVENUE,MINICABS CLEETHORPES (LINCS) LTD,102124
North East Lincolnshire Council,http://statistics.data.gov.uk/id/local-authority/00FC,People And Communities,Vulnerable Young People,Sen/Inclusion,Private Contractors,Third Party Prov - Private,PH101,09/01/2012,73538,"1,100.00 ",REVENUE,DKM ASSESSMENT & VERIFICATION LTD,101643
North East Lincolnshire Council,http://statistics.data.gov.uk/id/local-authority/00FC,People And Communities,Vulnerable Young People,Sen/Inclusion,Private Contractors,Concessionary Fares,PH104,12/01/2012,78548,Redacted Commercially Sensitive,REVENUE,LINKS TAXIS,100546
North East Lincolnshire Council,http://statistics.data.gov.uk/id/local-authority/00FC,People And Communities,Vulnerable Young People,Serco Contract,Private Contractors,Third Party Prov - Private,PH101,10/01/2012,77537,"1,141.13 ",REVENUE,M BROMLEY,100804
North East Lincolnshire Council,http://statistics.data.gov.uk/id/local-authority/00FC,People And Communities,Vulnerable Young People,School Access Governor Student,Contract Hire-Operating Leases,Vehicles - Contract Hire,JC101,03/01/2012,75551,Redacted Commercially Sensitive,REVENUE,Redacted Personal Information,Redacted Personal Information
North East Lincolnshire Council,http://statistics.data.gov.uk/id/local-authority/00FC,People And Communities,Vulnerable Young People,School Access Governor Student,Contract Hire-Operating Leases,Vehicles - Contract Hire,JC101,16/01/2012,79448,Redacted Commercially Sensitive,REVENUE,LINKS TAXIS,100546
North East Lincolnshire Council,http://statistics.data.gov.uk/id/local-authority/00FC,People And Communities,Vulnerable Young People,Placement & Support,Private Contractors,Third Party Prov - Private,PH101,30/01/2012,83159,"1,194.00 ",REVENUE,FAITH IN FAMILIES,108346
North East Lincolnshire Council,http://statistics.data.gov.uk/id/local-authority/00FC,People And Communities,Vulnerable Young People,Through Care & Disability,Private Contractors,Third Party Prov - Private,PH101,31/01/2012,84295,"1,200.00 ",REVENUE,RUSKIN MILL EDUCATIONAL TRUST LTD,104476
North East Lincolnshire Council,http://statistics.data.gov.uk/id/local-authority/00FC,People And Communities,Vulnerable Young People,School Access Governor Student,Contract Hire-Operating Leases,Vehicles - Contract Hire,JC101,16/01/2012,79513,Redacted Commercially Sensitive,REVENUE,MR W DRINKELL,101208
North East Lincolnshire Council,http://statistics.data.gov.uk/id/local-authority/00FC,People And Communities,Vulnerable Young People,Strategic Management,Indirect Employee Expenses,Allowances - Employees,EB110,03/01/2012,75340,"1,215.00 ",REVENUE,NASUWT G76 GRIMSBY & DISTRICT,107363
North East Lincolnshire Council,http://statistics.data.gov.uk/id/local-authority/00FC,People And Communities,Vulnerable Young People,School Access Governor Student,Contract Hire-Operating Leases,Vehicles - Contract Hire,JC101,05/01/2012,76589,Redacted Commercially Sensitive,REVENUE,MINICABS CLEETHORPES (LINCS) LTD,102124
North East Lincolnshire Council,http://statistics.data.gov.uk/id/local-authority/00FC,People And Communities,Vulnerable Young People,School Access Governor Student,Contract Hire-Operating Leases,Vehicles - Contract Hire,JC101,16/01/2012,79505,Redacted Commercially Sensitive,REVENUE,LINKS TAXIS,100546
North East Lincolnshire Council,http://statistics.data.gov.uk/id/local-authority/00FC,People And Communities,Vulnerable Young People,Child Care Performance & Ict,Contract Hire-Operating Leases,Vehicles - Contract Hire,JC101,05/01/2012,76605,Redacted Commercially Sensitive,REVENUE,MINICABS CLEETHORPES (LINCS) LTD,102124
North East Lincolnshire Council,http://statistics.data.gov.uk/id/local-authority/00FC,People And Communities,Vulnerable Young People,School Access Governor Student,Contract Hire-Operating Leases,Vehicles - Contract Hire,JC101,17/01/2012,79688,Redacted Commercially Sensitive,REVENUE,AMVALE LIMITED,101030
North East Lincolnshire Council,http://statistics.data.gov.uk/id/local-authority/00FC,People And Communities,Vulnerable Young People,School Access Governor Student,Contract Hire-Operating Leases,Vehicles - Contract Hire,JC101,03/01/2012,75571,Redacted Commercially Sensitive,REVENUE,THE BUS RUN,101522
North East Lincolnshire Council,http://statistics.data.gov.uk/id/local-authority/00FC,People And Communities,Vulnerable Young People,Safeguarding,Miscellaneous Expenses,Legal Fees - General,LL103,26/01/2012,82316,"1,305.00 ",REVENUE,Redacted Personal Information,Redacted Personal Information
North East Lincolnshire Council,http://statistics.data.gov.uk/id/local-authority/00FC,People And Communities,Vulnerable Young People,Additional & Enhanced Needs,Contributions To Provisions,Contributions - Other,LK103,25/01/2012,81964,"1,330.00 ",REVENUE,DKM ASSESSMENT & VERIFICATION LTD,101643
North East Lincolnshire Council,http://statistics.data.gov.uk/id/local-authority/00FC,People And Communities,Vulnerable Young People,Safeguarding,Miscellaneous Expenses,Legal Fees - General,LL103,10/01/2012,77504,"1,348.56 ",REVENUE,CARTER BROWN LTD,106320
North East Lincolnshire Council,http://statistics.data.gov.uk/id/local-authority/00FC,People And Communities,Vulnerable Young People,School Access Governor Student,Contract Hire-Operating Leases,Vehicles - Contract Hire,JC101,05/01/2012,76601,Redacted Commercially Sensitive,REVENUE,MINICABS CLEETHORPES (LINCS) LTD,102124
North East Lincolnshire Council,http://statistics.data.gov.uk/id/local-authority/00FC,People And Communities,Vulnerable Young People,Serco Contract,Other Agencies,Performers,PJ101,31/01/2012,83879,"1,360.00 ",REVENUE,UK TOURING,105298
North East Lincolnshire Council,http://statistics.data.gov.uk/id/local-authority/00FC,People And Communities,Vulnerable Young People,Commissioning & Performance,Miscellaneous Expenses,Other Expenses General,LL119,12/01/2012,78533,Redacted Commercially Sensitive,REVENUE,CYGNET FOODS,101491
North East Lincolnshire Council,http://statistics.data.gov.uk/id/local-authority/00FC,People And Communities,Vulnerable Young People,Placement & Support,Miscellaneous Expenses,Other Expenses General,LL119,31/01/2012,83721,"1,425.63 ",REVENUE,NSPCC,101307
North East Lincolnshire Council,http://statistics.data.gov.uk/id/local-authority/00FC,People And Communities,Vulnerable Young People,School Access Governor Student,Contract Hire-Operating Leases,Vehicles - Contract Hire,JC101,16/01/2012,79510,Redacted Commercially Sensitive,REVENUE,LINKS TAXIS,100546
North East Lincolnshire Council,http://statistics.data.gov.uk/id/local-authority/00FC,People And Communities,Vulnerable Young People,School Access Governor Student,Contract Hire-Operating Leases,Vehicles - Contract Hire,JC101,04/01/2012,76284,Redacted Commercially Sensitive,REVENUE,CABBYCARS,100847
North East Lincolnshire Council,http://statistics.data.gov.uk/id/local-authority/00FC,People And Communities,Vulnerable Young People,Through Care & Disability,Other Agencies,University,PJ129,10/01/2012,56670,"1,500.00 ",REVENUE,Redacted Personal Information,Redacted Personal Information
North East Lincolnshire Council,http://statistics.data.gov.uk/id/local-authority/00FC,People And Communities,Vulnerable Young People,Children'S Workforce Developme,Indirect Employee Expenses,Staff Training,EB122,04/01/2012,76088,Redacted Commercially Sensitive,REVENUE,KINGSTON UPON HULL CITY COUNCIL,100541
North East Lincolnshire Council,http://statistics.data.gov.uk/id/local-authority/00FC,People And Communities,Vulnerable Young People,Additional & Enhanced Needs,Contributions To Provisions,Contributions - Other,LK103,25/01/2012,81957,"1,519.00 ",REVENUE,CHAPPILLS DAY NURSERY,100998
North East Lincolnshire Council,http://statistics.data.gov.uk/id/local-authority/00FC,People And Communities,Vulnerable Young People,School Access Governor Student,Contract Hire-Operating Leases,Vehicles - Contract Hire,JC101,25/01/2012,82086,Redacted Commercially Sensitive,REVENUE,HUXMANOR LTD,101444
North East Lincolnshire Council,http://statistics.data.gov.uk/id/local-authority/00FC,People And Communities,Vulnerable Young People,Sen/Inclusion,Consultancy,Consultancy,PL101,27/01/2012,59847,"1,530.62 ",REVENUE,Redacted Personal Information,Redacted Personal Information
North East Lincolnshire Council,http://statistics.data.gov.uk/id/local-authority/00FC,People And Communities,Vulnerable Young People,Safeguarding,Indirect Employee Expenses,Staff Training,EB122,26/01/2012,82125,"1,540.00 ",REVENUE,PAMS TRAINING LTD,108572
North East Lincolnshire Council,http://statistics.data.gov.uk/id/local-authority/00FC,People And Communities,Vulnerable Young People,School Access Governor Student,Contract Hire-Operating Leases,Vehicles - Contract Hire,JC101,26/01/2012,82085,Redacted Commercially Sensitive,REVENUE,HUXMANOR LTD,101444
North East Lincolnshire Council,http://statistics.data.gov.uk/id/local-authority/00FC,People And Communities,Vulnerable Young People,Children'S Workforce Developme,Miscellaneous Expenses,Licences,LL116,16/01/2012,78939,"1,575.00 ",REVENUE,TEAM TEACH LTD,103320
North East Lincolnshire Council,http://statistics.data.gov.uk/id/local-authority/00FC,People And Communities,Vulnerable Young People,Sen/Inclusion,Direct Employee Expenses,Pay Teachers Supply Cover,EA106,11/01/2012,77670,"1,591.36 ",REVENUE,TEACHING PERSONNEL LTD,101305
North East Lincolnshire Council,http://statistics.data.gov.uk/id/local-authority/00FC,People And Communities,Vulnerable Young People,School Access Governor Student,Contract Hire-Operating Leases,Vehicles - Contract Hire,JC101,05/01/2012,76625,Redacted Commercially Sensitive,REVENUE,AMVALE LIMITED,101030
North East Lincolnshire Council,http://statistics.data.gov.uk/id/local-authority/00FC,People And Communities,Vulnerable Young People,Safeguarding,Miscellaneous Expenses,Legal Fees - General,LL103,26/01/2012,82315,"1,625.93 ",REVENUE,Redacted Personal Information,Redacted Personal Information
North East Lincolnshire Council,http://statistics.data.gov.uk/id/local-authority/00FC,People And Communities,Vulnerable Young People,Placement & Support,Miscellaneous Expenses,Other Expenses General,LL119,09/01/2012,76645,Redacted Commercially Sensitive,REVENUE,WILKIN CHAPMAN SOLICITORS,100948
North East Lincolnshire Council,http://statistics.data.gov.uk/id/local-authority/00FC,People And Communities,Vulnerable Young People,School Access Governor Student,Contract Hire-Operating Leases,Vehicles - Contract Hire,JC101,05/01/2012,76595,Redacted Commercially Sensitive,REVENUE,AMVALE LIMITED,101030
North East Lincolnshire Council,http://statistics.data.gov.uk/id/local-authority/00FC,People And Communities,Vulnerable Young People,Sen/Inclusion,Direct Employee Expenses,Pay Teachers Supply Cover,EA106,11/01/2012,77674,"1,672.91 ",REVENUE,TEACHING PERSONNEL LTD,101305
North East Lincolnshire Council,http://statistics.data.gov.uk/id/local-authority/00FC,People And Communities,Vulnerable Young People,Safeguarding,Miscellaneous Expenses,Legal Fees - General,LL103,24/01/2012,80922,"1,675.00 ",REVENUE,Redacted Personal Information,Redacted Personal Information
North East Lincolnshire Council,http://statistics.data.gov.uk/id/local-authority/00FC,People And Communities,Vulnerable Young People,Sen/Inclusion,Private Contractors,Third Party Prov - Private,PH101,23/01/2012,80568,"1,680.00 ",REVENUE,DKM ASSESSMENT & VERIFICATION LTD,101643
North East Lincolnshire Council,http://statistics.data.gov.uk/id/local-authority/00FC,People And Communities,Vulnerable Young People,Sen/Inclusion,Private Contractors,Third Party Prov - Private,PH101,23/01/2012,80569,"1,680.00 ",REVENUE,DKM ASSESSMENT & VERIFICATION LTD,101643
North East Lincolnshire Council,http://statistics.data.gov.uk/id/local-authority/00FC,People And Communities,Vulnerable Young People,Sen/Inclusion,Private Contractors,Third Party Prov - Private,PH101,23/01/2012,80570,"1,680.00 ",REVENUE,DKM ASSESSMENT & VERIFICATION LTD,101643
North East Lincolnshire Council,http://statistics.data.gov.uk/id/local-authority/00FC,People And Communities,Vulnerable Young People,Sen/Inclusion,Private Contractors,Third Party Prov - Private,PH101,23/01/2012,80571,"1,680.00 ",REVENUE,DKM ASSESSMENT & VERIFICATION LTD,101643
North East Lincolnshire Council,http://statistics.data.gov.uk/id/local-authority/00FC,People And Communities,Vulnerable Young People,School Access Governor Student,Contract Hire-Operating Leases,Vehicles - Contract Hire,JC101,25/01/2012,82077,Redacted Commercially Sensitive,REVENUE,REVELLS TAXIS (ED/SOC SERV),100559
North East Lincolnshire Council,http://statistics.data.gov.uk/id/local-authority/00FC,People And Communities,Vulnerable Young People,Placement & Support,Miscellaneous Expenses,Other Expenses General,LL119,13/01/2012,57084,Redacted Commercially Sensitive,REVENUE,Redacted Personal Information,Redacted Personal Information
North East Lincolnshire Council,http://statistics.data.gov.uk/id/local-authority/00FC,People And Communities,Vulnerable Young People,School Access Governor Student,Contract Hire-Operating Leases,Vehicles - Contract Hire,JC101,05/01/2012,76592,Redacted Commercially Sensitive,REVENUE,AMVALE LIMITED,101030
North East Lincolnshire Council,http://statistics.data.gov.uk/id/local-authority/00FC,People And Communities,Vulnerable Young People,School Access Governor Student,Contract Hire-Operating Leases,Vehicles - Contract Hire,JC101,05/01/2012,76594,Redacted Commercially Sensitive,REVENUE,AMVALE LIMITED,101030
North East Lincolnshire Council,http://statistics.data.gov.uk/id/local-authority/00FC,People And Communities,Vulnerable Young People,School Access Governor Student,Contract Hire-Operating Leases,Vehicles - Contract Hire,JC101,05/01/2012,76596,Redacted Commercially Sensitive,REVENUE,AMVALE LIMITED,101030
North East Lincolnshire Council,http://statistics.data.gov.uk/id/local-authority/00FC,People And Communities,Vulnerable Young People,School Access Governor Student,Contract Hire-Operating Leases,Vehicles - Contract Hire,JC101,03/01/2012,75696,Redacted Commercially Sensitive,REVENUE,MILLMAN COACHES,100700
North East Lincolnshire Council,http://statistics.data.gov.uk/id/local-authority/00FC,People And Communities,Vulnerable Young People,School Access Governor Student,Contract Hire-Operating Leases,Vehicles - Contract Hire,JC101,03/01/2012,75592,Redacted Commercially Sensitive,REVENUE,MILLMAN COACHES,100700
North East Lincolnshire Council,http://statistics.data.gov.uk/id/local-authority/00FC,People And Communities,Vulnerable Young People,Sen/Inclusion,Direct Employee Expenses,Pay Teachers Supply Cover,EA106,31/01/2012,83972,"2,047.40 ",REVENUE,TEACHING PERSONNEL LTD,101305
North East Lincolnshire Council,http://statistics.data.gov.uk/id/local-authority/00FC,People And Communities,Vulnerable Young People,Sen/Inclusion,Direct Employee Expenses,Pay Teachers Supply Cover,EA106,23/01/2012,80485,"2,084.65 ",REVENUE,TEACHING PERSONNEL LTD,101305
North East Lincolnshire Council,http://statistics.data.gov.uk/id/local-authority/00FC,People And Communities,Vulnerable Young People,School Access Governor Student,Contract Hire-Operating Leases,Vehicles - Contract Hire,JC101,03/01/2012,75594,Redacted Commercially Sensitive,REVENUE,SHERWOOD TRAVEL,100868
North East Lincolnshire Council,http://statistics.data.gov.uk/id/local-authority/00FC,People And Communities,Vulnerable Young People,Through Care & Disability,Private Contractors,Third Party Prov - Private,PH101,12/01/2012,78560,"2,095.25 ",REVENUE,EAST MIDLANDS CROSSROADS,102400
North East Lincolnshire Council,http://statistics.data.gov.uk/id/local-authority/00FC,People And Communities,Vulnerable Young People,Serco Contract,Consultancy,Consultancy,PL101,12/01/2012,78387,"2,100.00 ",REVENUE,CHRISTOPHER P JOHNSON,101744
North East Lincolnshire Council,http://statistics.data.gov.uk/id/local-authority/00FC,People And Communities,Vulnerable Young People,Serco Contract,Rents,Rent,GC101,18/01/2012,80069,"2,105.56 ",REVENUE,JOHN WHITGIFT ACADEMY,106898
North East Lincolnshire Council,http://statistics.data.gov.uk/id/local-authority/00FC,People And Communities,Vulnerable Young People,School Access Governor Student,Contract Hire-Operating Leases,Vehicles - Contract Hire,JC101,05/01/2012,76593,Redacted Commercially Sensitive,REVENUE,AMVALE LIMITED,101030
North East Lincolnshire Council,http://statistics.data.gov.uk/id/local-authority/00FC,People And Communities,Vulnerable Young People,Safeguarding,Miscellaneous Expenses,Legal Fees - General,LL103,23/01/2012,80924,"2,150.00 ",REVENUE,MRS JOANNE CROSSLEY,103818
North East Lincolnshire Council,http://statistics.data.gov.uk/id/local-authority/00FC,People And Communities,Vulnerable Young People,Sen/Inclusion,Private Contractors,Third Party Prov - Private,PH101,26/01/2012,82685,"2,156.00 ",REVENUE,NORTH EAST LINCS MOTOR PROJECT,101121
North East Lincolnshire Council,http://statistics.data.gov.uk/id/local-authority/00FC,People And Communities,Vulnerable Young People,Through Care & Disability,Private Contractors,Third Party Prov - Private,PH101,10/01/2012,77419,"2,160.50 ",REVENUE,EAST MIDLANDS CROSSROADS,102400
North East Lincolnshire Council,http://statistics.data.gov.uk/id/local-authority/00FC,People And Communities,Vulnerable Young People,School Access Governor Student,Contract Hire-Operating Leases,Vehicles - Contract Hire,JC101,03/01/2012,75587,Redacted Commercially Sensitive,REVENUE,E M EMMERSON,100576
North East Lincolnshire Council,http://statistics.data.gov.uk/id/local-authority/00FC,People And Communities,Vulnerable Young People,Strategic Management,Direct Employee Expenses,Pay,EA101,09/01/2012,76758,"2,165.30 ",REVENUE,ESCRICK EDUCATION ASSOCIATES,102662
North East Lincolnshire Council,http://statistics.data.gov.uk/id/local-authority/00FC,People And Communities,Vulnerable Young People,School Access Governor Student,Contract Hire-Operating Leases,Vehicles - Contract Hire,JC101,03/01/2012,75578,Redacted Commercially Sensitive,REVENUE,SHERWOOD TRAVEL,100868
North East Lincolnshire Council,http://statistics.data.gov.uk/id/local-authority/00FC,People And Communities,Vulnerable Young People,Serco Contract,Rents,Rent,GC101,03/01/2012,74338,"2,242.36 ",REVENUE,JOHN WHITGIFT ACADEMY,106898
North East Lincolnshire Council,http://statistics.data.gov.uk/id/local-authority/00FC,People And Communities,Vulnerable Young People,Children'S Workforce Developme,Indirect Employee Expenses,Staff Training,EB122,12/01/2012,78546,"2,250.00 ",REVENUE,UNIVERSITY OF LINCOLN,101299
North East Lincolnshire Council,http://statistics.data.gov.uk/id/local-authority/00FC,People And Communities,Vulnerable Young People,School Access Governor Student,Contract Hire-Operating Leases,Vehicles - Contract Hire,JC101,03/01/2012,75583,Redacted Commercially Sensitive,REVENUE,MILLMAN COACHES,100700
North East Lincolnshire Council,http://statistics.data.gov.uk/id/local-authority/00FC,People And Communities,Vulnerable Young People,Additional & Enhanced Needs,Private Contractors,Third Party Prov - Private,PH101,25/01/2012,81963,"2,310.00 ",REVENUE,DKM ASSESSMENT & VERIFICATION LTD,101643
North East Lincolnshire Council,http://statistics.data.gov.uk/id/local-authority/00FC,People And Communities,Vulnerable Young People,Additional & Enhanced Needs,Contributions To Provisions,Contributions - Other,LK103,25/01/2012,81965,"2,310.00 ",REVENUE,DKM ASSESSMENT & VERIFICATION LTD,101643
North East Lincolnshire Council,http://statistics.data.gov.uk/id/local-authority/00FC,People And Communities,Vulnerable Young People,Sen/Inclusion,Consultancy,Consultancy,PL101,16/01/2012,79433,"2,400.00 ",REVENUE,MR BERNARD LEVEY,107903
North East Lincolnshire Council,http://statistics.data.gov.uk/id/local-authority/00FC,People And Communities,Vulnerable Young People,Placement & Support,Other Agencies,Health Charges,PJ131,11/01/2012,78001,"2,400.00 ",REVENUE,MISS DEBRA MAY,101357
North East Lincolnshire Council,http://statistics.data.gov.uk/id/local-authority/00FC,People And Communities,Vulnerable Young People,School Access Governor Student,Contract Hire-Operating Leases,Vehicles - Contract Hire,JC101,03/01/2012,75552,Redacted Commercially Sensitive,REVENUE,MILLMAN COACHES,100700
North East Lincolnshire Council,http://statistics.data.gov.uk/id/local-authority/00FC,People And Communities,Vulnerable Young People,School Access Governor Student,Contract Hire-Operating Leases,Vehicles - Contract Hire,JC101,05/01/2012,76597,Redacted Commercially Sensitive,REVENUE,MINICABS CLEETHORPES (LINCS) LTD,102124
North East Lincolnshire Council,http://statistics.data.gov.uk/id/local-authority/00FC,People And Communities,Vulnerable Young People,School Access Governor Student,Private Contractors,Concessionary Fares,PH104,23/01/2012,81193,Redacted Commercially Sensitive,REVENUE,STAGECOACH SERVICES,101404
North East Lincolnshire Council,http://statistics.data.gov.uk/id/local-authority/00FC,People And Communities,Vulnerable Young People,Placement & Support,Grants And Subscriptions,Subscriptions,LJ101,26/01/2012,82308,"2,500.00 ",REVENUE,CARE QUALITY COMMISSION,108586
North East Lincolnshire Council,http://statistics.data.gov.uk/id/local-authority/00FC,People And Communities,Vulnerable Young People,Safeguarding,Miscellaneous Expenses,Legal Fees - General,LL103,12/01/2012,78417,"2,500.00 ",REVENUE,MR DAVID LOCK,108427
North East Lincolnshire Council,http://statistics.data.gov.uk/id/local-authority/00FC,People And Communities,Vulnerable Young People,Serco Contract,Consultancy,Consultancy,PL101,12/01/2012,78569,"2,500.00 ",REVENUE,NIGEL LOWTHER ASSOCIATES LTD,101750
North East Lincolnshire Council,http://statistics.data.gov.uk/id/local-authority/00FC,People And Communities,Vulnerable Young People,Serco Contract,Consultancy,Consultancy,PL101,12/01/2012,78380,"2,500.00 ",REVENUE,P R & A KIPLING (EDUCATION),101930
North East Lincolnshire Council,http://statistics.data.gov.uk/id/local-authority/00FC,People And Communities,Vulnerable Young People,Additional & Enhanced Needs,Private Contractors,Third Party Prov - Private,PH101,20/01/2012,80740,"2,684.82 ",REVENUE,7KS LTD,102003
North East Lincolnshire Council,http://statistics.data.gov.uk/id/local-authority/00FC,People And Communities,Vulnerable Young People,Additional & Enhanced Needs,Contributions To Provisions,Contributions - Other,LK103,20/01/2012,80740,"2,684.82 ",REVENUE,7KS LTD,102003
North East Lincolnshire Council,http://statistics.data.gov.uk/id/local-authority/00FC,People And Communities,Vulnerable Young People,Additional & Enhanced Needs,Contributions To Provisions,Contributions - Other,LK103,20/01/2012,80740,"2,684.82 ",REVENUE,7KS LTD,102003
North East Lincolnshire Council,http://statistics.data.gov.uk/id/local-authority/00FC,People And Communities,Vulnerable Young People,Safeguarding,Miscellaneous Expenses,Legal Fees - General,LL103,23/01/2012,80923,"2,700.00 ",REVENUE,FIONA EDINGTON,108510
North East Lincolnshire Council,http://statistics.data.gov.uk/id/local-authority/00FC,People And Communities,Vulnerable Young People,Serco Contract,Consultancy,Consultancy,PL101,18/01/2012,79816,"2,704.00 ",REVENUE,ADDLESHAW GODDARD LLP,104953
North East Lincolnshire Council,http://statistics.data.gov.uk/id/local-authority/00FC,People And Communities,Vulnerable Young People,Safeguarding,Miscellaneous Expenses,Legal Fees - General,LL103,03/01/2012,75443,"2,714.25 ",REVENUE,DAVID PHILLIPS,103505
North East Lincolnshire Council,http://statistics.data.gov.uk/id/local-authority/00FC,People And Communities,Vulnerable Young People,School Access Governor Student,Contract Hire-Operating Leases,Vehicles - Contract Hire,JC101,05/01/2012,76624,Redacted Commercially Sensitive,REVENUE,AMVALE LIMITED,101030
North East Lincolnshire Council,http://statistics.data.gov.uk/id/local-authority/00FC,People And Communities,Vulnerable Young People,Safeguarding,Miscellaneous Expenses,Legal Fees - Courts Costs,LL104,10/01/2012,77417,"2,842.50 ",REVENUE,MR MARK GORE,103478
North East Lincolnshire Council,http://statistics.data.gov.uk/id/local-authority/00FC,People And Communities,Vulnerable Young People,Serco Contract,Consultancy,Consultancy,PL101,27/01/2012,83322,Redacted Commercially Sensitive,REVENUE,EAST RIDING OF YORKSHIRE,100377
North East Lincolnshire Council,http://statistics.data.gov.uk/id/local-authority/00FC,People And Communities,Vulnerable Young People,School Access Governor Student,Contract Hire-Operating Leases,Vehicles - Contract Hire,JC101,25/01/2012,82083,Redacted Commercially Sensitive,REVENUE,HUXMANOR LTD,101444
North East Lincolnshire Council,http://statistics.data.gov.uk/id/local-authority/00FC,People And Communities,Vulnerable Young People,Additional & Enhanced Needs,Private Contractors,Third Party Prov - Private,PH101,25/01/2012,81952,"3,069.00 ",REVENUE,REFLEXION CARE GROUP LIMITED,106975
North East Lincolnshire Council,http://statistics.data.gov.uk/id/local-authority/00FC,People And Communities,Vulnerable Young People,Placement & Support,Private Contractors,Third Party Prov - Private,PH101,12/01/2012,78565,"3,069.00 ",REVENUE,REFLEXION CARE GROUP LIMITED,106975
North East Lincolnshire Council,http://statistics.data.gov.uk/id/local-authority/00FC,People And Communities,Vulnerable Young People,Placement & Support,Private Contractors,Third Party Prov - Private,PH101,31/01/2012,84298,"3,069.00 ",REVENUE,REFLEXION CARE GROUP LIMITED,106975
North East Lincolnshire Council,http://statistics.data.gov.uk/id/local-authority/00FC,People And Communities,Vulnerable Young People,Additional & Enhanced Needs,Private Contractors,Third Party Prov - Private,PH101,16/01/2012,79434,"3,180.00 ",REVENUE,RAINBOW,102123
North East Lincolnshire Council,http://statistics.data.gov.uk/id/local-authority/00FC,People And Communities,Vulnerable Young People,Placement & Support,Rents,Rent,GC101,27/01/2012,83175,"3,300.00 ",REVENUE,LINKAGE COMMUNITY TRUST LTD,104471
North East Lincolnshire Council,http://statistics.data.gov.uk/id/local-authority/00FC,People And Communities,Vulnerable Young People,Additional & Enhanced Needs,Contributions To Provisions,Contributions - Other,LK103,20/01/2012,80740,"3,591.90 ",REVENUE,7KS LTD,102003
North East Lincolnshire Council,http://statistics.data.gov.uk/id/local-authority/00FC,People And Communities,Vulnerable Young People,Placement & Support,Private Contractors,Third Party Prov - Private,PH101,10/01/2012,77502,"3,595.20 ",REVENUE,TREE HOUSE CARE FOSTERING SOLUTIONS LTD,101150
North East Lincolnshire Council,http://statistics.data.gov.uk/id/local-authority/00FC,People And Communities,Vulnerable Young People,Placement & Support,Rents,Rent,GC101,30/01/2012,83176,"3,600.00 ",REVENUE,LINKAGE COMMUNITY TRUST LTD,104471
North East Lincolnshire Council,http://statistics.data.gov.uk/id/local-authority/00FC,People And Communities,Vulnerable Young People,Through Care & Disability,Other Agencies,Tuition,PJ112,04/01/2012,76258,"3,623.90 ",REVENUE,ST JAMES SCHOOL,100940
North East Lincolnshire Council,http://statistics.data.gov.uk/id/local-authority/00FC,People And Communities,Vulnerable Young People,Sen/Inclusion,Other Local Authorities,Third Pp - Other Local Auth,PC101,03/01/2012,75006,"3,684.17 ",REVENUE,NORTHERN LINCOLNSHIRE & GOOLE HOSPITALS,101242
North East Lincolnshire Council,http://statistics.data.gov.uk/id/local-authority/00FC,People And Communities,Vulnerable Young People,Placement & Support,Private Contractors,Third Party Prov - Private,PH101,12/01/2012,78562,"3,715.04 ",REVENUE,TREE HOUSE CARE FOSTERING SOLUTIONS LTD,101150
North East Lincolnshire Council,http://statistics.data.gov.uk/id/local-authority/00FC,People And Communities,Vulnerable Young People,Sen/Inclusion,Contributions To Provisions,Contributions - Other,LK103,25/01/2012,81761,"3,829.00 ",REVENUE,NEW WALTHAM ACADEMY,108556
North East Lincolnshire Council,http://statistics.data.gov.uk/id/local-authority/00FC,People And Communities,Vulnerable Young People,Additional & Enhanced Needs,Other Local Authorities,Third Pp - Other Local Auth,PC101,25/01/2012,81956,"3,900.00 ",REVENUE,LINKAGE COMMUNITY TRUST LTD,104471
North East Lincolnshire Council,http://statistics.data.gov.uk/id/local-authority/00FC,People And Communities,Vulnerable Young People,Safeguarding,Indirect Employee Expenses,Staff Training,EB122,30/01/2012,83704,"3,900.00 ",REVENUE,LEB PARTNERSHIP LIMITED,102077
North East Lincolnshire Council,http://statistics.data.gov.uk/id/local-authority/00FC,People And Communities,Vulnerable Young People,Serco Contract,Consultancy,Consultancy,PL101,04/01/2012,76230,"4,050.00 ",REVENUE,CHRISTOPHER P JOHNSON,101744
North East Lincolnshire Council,http://statistics.data.gov.uk/id/local-authority/00FC,People And Communities,Vulnerable Young People,Placement & Support,Private Contractors,Third Party Prov - Private,PH101,12/01/2012,78506,"4,379.33 ",REVENUE,SOUTH GLOUCESTERSHIRE COUNCIL,106047
North East Lincolnshire Council,http://statistics.data.gov.uk/id/local-authority/00FC,People And Communities,Vulnerable Young People,Strategic Management,Direct Employee Expenses,Pay,EA101,25/01/2012,82009,"4,513.00 ",REVENUE,ESCRICK EDUCATION ASSOCIATES,102662
North East Lincolnshire Council,http://statistics.data.gov.uk/id/local-authority/00FC,People And Communities,Vulnerable Young People,Placement & Support,Private Contractors,Third Party Prov - Private,PH101,10/01/2012,77503,"5,571.00 ",REVENUE,TREE HOUSE CARE FOSTERING SOLUTIONS LTD,101150
North East Lincolnshire Council,http://statistics.data.gov.uk/id/local-authority/00FC,People And Communities,Vulnerable Young People,Strategic Management,Direct Employee Expenses,Pay,EA101,09/01/2012,76758,"6,495.90 ",REVENUE,ESCRICK EDUCATION ASSOCIATES,102662
North East Lincolnshire Council,http://statistics.data.gov.uk/id/local-authority/00FC,People And Communities,Vulnerable Young People,Commissioning & Performance,Catering,Provisions,LB101,31/01/2012,83835,"7,003.96 ",REVENUE,DAIRY CREST LTD,101743
North East Lincolnshire Council,http://statistics.data.gov.uk/id/local-authority/00FC,People And Communities,Vulnerable Young People,Additional & Enhanced Needs,Private Contractors,Third Party Prov - Private,PH101,25/01/2012,81953,"7,287.83 ",REVENUE,NEW OPTIONS LTD,105590
North East Lincolnshire Council,http://statistics.data.gov.uk/id/local-authority/00FC,People And Communities,Vulnerable Young People,School Access Governor Student,Contract Hire-Operating Leases,Vehicles - Contract Hire,JC101,03/01/2012,75624,Redacted Commercially Sensitive,REVENUE,STAGECOACH SERVICES,101404
North East Lincolnshire Council,http://statistics.data.gov.uk/id/local-authority/00FC,People And Communities,Vulnerable Young People,Commissioning & Performance,Catering,Provisions,LB101,04/01/2012,76286,"8,458.78 ",REVENUE,DAIRY CREST LTD,101743
North East Lincolnshire Council,http://statistics.data.gov.uk/id/local-authority/00FC,People And Communities,Vulnerable Young People,Additional & Enhanced Needs,Other Local Authorities,Third Pp - Other Local Auth,PC101,25/01/2012,81762,"9,104.84 ",REVENUE,NEW OPTIONS LTD,105590
North East Lincolnshire Council,http://statistics.data.gov.uk/id/local-authority/00FC,People And Communities,Vulnerable Young People,Placement & Support,Private Contractors,Third Party Prov - Private,PH101,12/01/2012,78421,"9,300.00 ",REVENUE,A WILDERNESS WAY LTD,102537
North East Lincolnshire Council,http://statistics.data.gov.uk/id/local-authority/00FC,People And Communities,Vulnerable Young People,Additional & Enhanced Needs,Private Contractors,Third Party Prov - Private,PH101,25/01/2012,81966,"9,520.00 ",REVENUE,DKM ASSESSMENT & VERIFICATION LTD,101643
North East Lincolnshire Council,http://statistics.data.gov.uk/id/local-authority/00FC,People And Communities,Vulnerable Young People,Placement & Support,Private Contractors,Third Party Prov - Private,PH101,31/01/2012,84298,"11,399.13 ",REVENUE,REFLEXION CARE GROUP LIMITED,106975
North East Lincolnshire Council,http://statistics.data.gov.uk/id/local-authority/00FC,People And Communities,Vulnerable Young People,Placement & Support,Private Contractors,Third Party Prov - Private,PH101,12/01/2012,78565,"11,399.13 ",REVENUE,REFLEXION CARE GROUP LIMITED,106975
North East Lincolnshire Council,http://statistics.data.gov.uk/id/local-authority/00FC,People And Communities,Vulnerable Young People,Additional & Enhanced Needs,Other Local Authorities,Third Pp - Other Local Auth,PC101,25/01/2012,81759,"11,957.01 ",REVENUE,QUALITY TIME CARE LTD,102519
North East Lincolnshire Council,http://statistics.data.gov.uk/id/local-authority/00FC,People And Communities,Vulnerable Young People,Serco Contract,Consultancy,Consultancy,PL101,04/01/2012,76103,"12,500.00 ",REVENUE,NAVIGATE,101781
North East Lincolnshire Council,http://statistics.data.gov.uk/id/local-authority/00FC,People And Communities,Vulnerable Young People,Sen/Inclusion,Private Contractors,Third Party Prov - Private,PH101,11/01/2012,77978,"17,442.00 ",REVENUE,A4E CONSULT LTD,101656
North East Lincolnshire Council,http://statistics.data.gov.uk/id/local-authority/00FC,People And Communities,Vulnerable Young People,Additional & Enhanced Needs,Private Contractors,Third Party Prov - Private,PH101,25/01/2012,81952,"18,830.48 ",REVENUE,REFLEXION CARE GROUP LIMITED,106975
North East Lincolnshire Council,http://statistics.data.gov.uk/id/local-authority/00FC,People And Communities,Vulnerable Young People,Additional & Enhanced Needs,Other Local Authorities,Third Pp - Other Local Auth,PC101,16/01/2012,79535,"25,537.33 ",REVENUE,BARNARDO SERVICES LTD,101050
North East Lincolnshire Council,http://statistics.data.gov.uk/id/local-authority/00FC,People And Communities,Vulnerable Young People,Commissioning & Performance,Catering,Purchase School Meals,LB103,12/01/2012,78537,Redacted Commercially Sensitive,REVENUE,CYGNET FOODS,101491
North East Lincolnshire Council,http://statistics.data.gov.uk/id/local-authority/00FC,People And Communities,Vulnerable Young People,Placement & Support,Private Contractors,Third Party Prov - Private,PH101,05/01/2012,76619,"29,861.00 ",REVENUE,FAITH IN FAMILIES,108346
North East Lincolnshire Council,http://statistics.data.gov.uk/id/local-authority/00FC,People And Communities,Vulnerable Young People,Placement & Support,Private Contractors,Third Party Prov - Private,PH101,04/01/2012,76315,"32,988.40 ",REVENUE,ACTION FOR CHILDREN SERVICES LTD,105607
North East Lincolnshire Council,http://statistics.data.gov.uk/id/local-authority/00FC,People And Communities,Vulnerable Young People,Placement & Support,Private Contractors,Third Party Prov - Private,PH101,12/01/2012,78563,Redacted Commercially Sensitive,REVENUE,NORTH EAST LINCOLNSHIRE CARE TRUST PLUS LD,100340
North East Lincolnshire Council,http://statistics.data.gov.uk/id/local-authority/00FC,People And Communities,Vulnerable Young People,Commissioning & Performance,Catering,Purchase School Meals,LB103,12/01/2012,78533,Redacted Commercially Sensitive,REVENUE,CYGNET FOODS,101491
North East Lincolnshire Council,http://statistics.data.gov.uk/id/local-authority/00FC,People And Communities,Vulnerable Young People,Serco Contract,Private Contractors,Third Party Prov - Private,PH101,12/01/2012,78535,Redacted Commercially Sensitive,REVENUE,SERCO SHARED SERVICES CENTRE,101875
North East Lincolnshire Council,http://statistics.data.gov.uk/id/local-authority/00FC,People And Communities,Strat Dir People & Communities,Schools Non Asb,Catering,Provisions,LB101,13/01/2012,79129,-36.48 ,REVENUE,ANGLIA WOODS,100805
North East Lincolnshire Council,http://statistics.data.gov.uk/id/local-authority/00FC,People And Communities,Strat Dir People & Communities,Schools Non Asb,Indirect Employee Expenses,Staff Training,EB122,10/01/2012,77545,650.32 ,REVENUE,SOUTH PARADE PRIMARY SCHOOL,101102
North East Lincolnshire Council,http://statistics.data.gov.uk/id/local-authority/00FC,People And Communities,Strat Dir People & Communities,In Year Savings,Miscellaneous Expenses,Legal Fees - General,LL103,13/01/2012,79168,Redacted Commercially Sensitive,REVENUE,WILKIN CHAPMAN SOLICITORS,100948
North East Lincolnshire Council,http://statistics.data.gov.uk/id/local-authority/00FC,People And Communities,Strat Dir People & Communities,Holding Accounts,Direct Employee Expenses,Pay Teachers,EA103,13/01/2012,78985,Redacted Commercially Sensitive,REVENUE,HAVELOCK ACADEMY,101968
North East Lincolnshire Council,http://statistics.data.gov.uk/id/local-authority/00FC,Resources,Ess.Repairs-Backlog Repair,Ess.Repairs-Backlog Repair,Cap Land/Build-Build Enh Wrk,Cap Land/Build-Build Enh Wrk,YA102,16/01/2012,79540,"7,984.00 ",CAPITAL,TOPCON CONSTRUCTION LTD,108462
North East Lincolnshire Council,http://statistics.data.gov.uk/id/local-authority/00FC,Resources,Ess.Repairs-Backlog Repair,Ess.Repairs-Backlog Repair,Cap Land/Build-Build Enh Wrk,Cap Land/Build-Build Enh Wrk,YA102,16/01/2012,79406,"23,296.72 ",CAPITAL,MANTA SHOPFITTERS LTD,102230
North East Lincolnshire Council,http://statistics.data.gov.uk/id/local-authority/00FC,Resources,Ess.Repairs-Backlog Repair,Ess.Repairs-Backlog Repair,Cap Land/Build-Build Enh Wrk,Cap Land/Build-Build Enh Wrk,YA102,19/01/2012,80412,"37,826.75 ",CAPITAL,A C MOORE CONSTRUCTION LIMITED,108495
North East Lincolnshire Council,http://statistics.data.gov.uk/id/local-authority/00FC,Resources,Ess.Repairs-Backlog Repair,Ess.Repairs-Backlog Repair,Cap Land/Build-Build Enh Wrk,Cap Land/Build-Build Enh Wrk,YA102,11/01/2012,78017,"40,232.94 ",CAPITAL,MANTA SHOPFITTERS LTD,102230
North East Lincolnshire Council,http://statistics.data.gov.uk/id/local-authority/00FC,Resources,Devolved Formula Cap Grant,Devolved Formula Cap Grant,Cap Land/Build-Build Enh Wrk,Cap Land/Build-Build Enh Wrk,YA102,03/01/2012,75570,"1,015.00 ",CAPITAL,ETON-LINCS LIMITED,101510
North East Lincolnshire Council,http://statistics.data.gov.uk/id/local-authority/00FC,Resources,Devolved Formula Cap Grant,Devolved Formula Cap Grant,Cap Land/Build-Build Enh Wrk,Cap Land/Build-Build Enh Wrk,YA102,03/01/2012,75542,"1,040.00 ",CAPITAL,ETON-LINCS LIMITED,101510
North East Lincolnshire Council,http://statistics.data.gov.uk/id/local-authority/00FC,Resources,Devolved Formula Cap Grant,Devolved Formula Cap Grant,Cap Land/Build-Build Enh Wrk,Cap Land/Build-Build Enh Wrk,YA102,03/01/2012,75546,"1,215.20 ",CAPITAL,MICK HENRY,101347
North East Lincolnshire Council,http://statistics.data.gov.uk/id/local-authority/00FC,Resources,Devolved Formula Cap Grant,Devolved Formula Cap Grant,Cap Land/Build-Build Enh Wrk,Cap Land/Build-Build Enh Wrk,YA102,26/01/2012,82062,"1,232.88 ",CAPITAL,EXCELL ELECTRICAL CONTRACTORS,100601
North East Lincolnshire Council,http://statistics.data.gov.uk/id/local-authority/00FC,Resources,Devolved Formula Cap Grant,Devolved Formula Cap Grant,Cap Land/Build-Build Enh Wrk,Cap Land/Build-Build Enh Wrk,YA102,24/01/2012,81648,"1,500.00 ",CAPITAL,NEWBY LEISURE LTD,101227
North East Lincolnshire Council,http://statistics.data.gov.uk/id/local-authority/00FC,Resources,Devolved Formula Cap Grant,Devolved Formula Cap Grant,Cap Land/Build-Build Enh Wrk,Cap Land/Build-Build Enh Wrk,YA102,03/01/2012,75581,"1,590.00 ",CAPITAL,FABRIQUE SPECIALISTS GLAZING SYSTEMS LTD,101314
North East Lincolnshire Council,http://statistics.data.gov.uk/id/local-authority/00FC,Resources,Devolved Formula Cap Grant,Devolved Formula Cap Grant,Cap Land/Build-Build Enh Wrk,Cap Land/Build-Build Enh Wrk,YA102,24/01/2012,81240,"1,735.00 ",CAPITAL,NEWGLAZE,100642
North East Lincolnshire Council,http://statistics.data.gov.uk/id/local-authority/00FC,Resources,Devolved Formula Cap Grant,Devolved Formula Cap Grant,Cap Land/Build-Build Enh Wrk,Cap Land/Build-Build Enh Wrk,YA102,11/01/2012,78009,"1,740.15 ",CAPITAL,E S RUDKIN LTD,100632
North East Lincolnshire Council,http://statistics.data.gov.uk/id/local-authority/00FC,Resources,Devolved Formula Cap Grant,Devolved Formula Cap Grant,Cap Land/Build-Build Enh Wrk,Cap Land/Build-Build Enh Wrk,YA102,03/01/2012,75615,"1,756.43 ",CAPITAL,NEWGLAZE,100642
North East Lincolnshire Council,http://statistics.data.gov.uk/id/local-authority/00FC,Resources,Devolved Formula Cap Grant,Devolved Formula Cap Grant,Cap Land/Build-Build Enh Wrk,Cap Land/Build-Build Enh Wrk,YA102,03/01/2012,75568,"1,810.00 ",CAPITAL,ETON-LINCS LIMITED,101510
North East Lincolnshire Council,http://statistics.data.gov.uk/id/local-authority/00FC,Resources,Devolved Formula Cap Grant,Devolved Formula Cap Grant,Cap Land/Build-Build Enh Wrk,Cap Land/Build-Build Enh Wrk,YA102,03/01/2012,75553,"3,352.00 ",CAPITAL,FABRIQUE SPECIALISTS GLAZING SYSTEMS LTD,101314
North East Lincolnshire Council,http://statistics.data.gov.uk/id/local-authority/00FC,Resources,Devolved Formula Cap Grant,Devolved Formula Cap Grant,Cap Land/Build-Build Enh Wrk,Cap Land/Build-Build Enh Wrk,YA102,11/01/2012,78008,"4,290.90 ",CAPITAL,E S RUDKIN LTD,100632
North East Lincolnshire Council,http://statistics.data.gov.uk/id/local-authority/00FC,Resources,Devolved Formula Cap Grant,Devolved Formula Cap Grant,Cap Comm Asset-Purchase,Cap Comm Asset-Purchase,YD101,30/01/2012,83276,"6,038.00 ",CAPITAL,HUMBERSIDE SUNBLINDS LTD,100851
North East Lincolnshire Council,http://statistics.data.gov.uk/id/local-authority/00FC,Resources,Devolved Formula Cap Grant,Devolved Formula Cap Grant,Cap Land/Build-Build Enh Wrk,Cap Land/Build-Build Enh Wrk,YA102,03/01/2012,75612,"6,645.00 ",CAPITAL,ETON-LINCS LIMITED,101510
North East Lincolnshire Council,http://statistics.data.gov.uk/id/local-authority/00FC,Resources,Devolved Formula Cap Grant,Devolved Formula Cap Grant,Cap Land/Build-Build Enh Wrk,Cap Land/Build-Build Enh Wrk,YA102,03/01/2012,75565,"7,588.60 ",CAPITAL,E S RUDKIN LTD,100632
North East Lincolnshire Council,http://statistics.data.gov.uk/id/local-authority/00FC,Resources,Devolved Formula Cap Grant,Devolved Formula Cap Grant,Cap Land/Build-Build Enh Wrk,Cap Land/Build-Build Enh Wrk,YA102,04/01/2012,76283,"7,660.00 ",CAPITAL,FABRIQUE SPECIALISTS GLAZING SYSTEMS LTD,101314
North East Lincolnshire Council,http://statistics.data.gov.uk/id/local-authority/00FC,Resources,Devolved Formula Cap Grant,Devolved Formula Cap Grant,Cap Land/Build-Build Enh Wrk,Cap Land/Build-Build Enh Wrk,YA102,13/01/2012,79033,"7,665.00 ",CAPITAL,ETON-LINCS LIMITED,101510
North East Lincolnshire Council,http://statistics.data.gov.uk/id/local-authority/00FC,Resources,East Ravendale School,East Ravendale School,Cap Land/Build-Build Enh Wrk,Cap Land/Build-Build Enh Wrk,YA102,23/01/2012,80615,"1,270.00 ",CAPITAL,STANNAH LIFT SERVICES LTD,100622
North East Lincolnshire Council,http://statistics.data.gov.uk/id/local-authority/00FC,Resources,School'S Kitchens,School'S Kitchens,Cap Land/Build-Build Enh Wrk,Cap Land/Build-Build Enh Wrk,YA102,18/01/2012,79711,"1,207.00 ",CAPITAL,HAITH'S HEATING LTD,101342
North East Lincolnshire Council,http://statistics.data.gov.uk/id/local-authority/00FC,Resources,Schools - Capital Allocation,Schools - Capital Allocation,Cap Land/Build-Build Enh Wrk,Cap Land/Build-Build Enh Wrk,YA102,13/01/2012,79193,"2,712.27 ",CAPITAL,AIRCON-REFRIGERATION LIMITED,106586
North East Lincolnshire Council,http://statistics.data.gov.uk/id/local-authority/00FC,Resources,Schools - Capital Allocation,Schools - Capital Allocation,Cap Land/Build-Build Enh Wrk,Cap Land/Build-Build Enh Wrk,YA102,18/01/2012,79710,"2,802.90 ",CAPITAL,HAITH'S HEATING LTD,101342
North East Lincolnshire Council,http://statistics.data.gov.uk/id/local-authority/00FC,Resources,Schools - Capital Allocation,Schools - Capital Allocation,Cap Land/Build-Build Enh Wrk,Cap Land/Build-Build Enh Wrk,YA102,19/01/2012,80368,"10,600.53 ",CAPITAL,JENNINGS ROOFING LIMITED,103290
North East Lincolnshire Council,http://statistics.data.gov.uk/id/local-authority/00FC,Resources,Schools - Basic Needs,Schools - Basic Needs,Cap Land/Build-Build Enh Wrk,Cap Land/Build-Build Enh Wrk,YA102,03/01/2012,74905,"1,280.00 ",CAPITAL,SAFE CONTROL LTD,100989
North East Lincolnshire Council,http://statistics.data.gov.uk/id/local-authority/00FC,Resources,Havelock Academy,Havelock Academy,Cap Auc-Build Enh Wrk,Cap Auc-Build Enh Wrk,YF102,19/01/2012,80411,"140,369.55 ",CAPITAL,KIER CONSTRUCTION - MAJOR PROJECTS,102302
North East Lincolnshire Council,http://statistics.data.gov.uk/id/local-authority/00FC,Resources,Havelock Academy,Havelock Academy,Cap Auc-Build Enh Wrk,Cap Auc-Build Enh Wrk,YF102,04/01/2012,76253,"195,221.45 ",CAPITAL,KIER CONSTRUCTION - MAJOR PROJECTS,102302
North East Lincolnshire Council,http://statistics.data.gov.uk/id/local-authority/00FC,Resources,St Marys High Demolition,St Marys High Demolition,Cap Comm Asset-Prof Fees,Cap Comm Asset-Prof Fees,YD103,27/01/2012,83202,500.00 ,CAPITAL,SCOTTS PROPERTY LLP,103513
North East Lincolnshire Council,http://statistics.data.gov.uk/id/local-authority/00FC,Resources,Property Planned Repairs,Property Planned Repairs,Cap Land/Build-Build Enh Wrk,Cap Land/Build-Build Enh Wrk,YA102,03/01/2012,75532,"2,196.00 ",CAPITAL,GLEN WILSON LTD,103600
North East Lincolnshire Council,http://statistics.data.gov.uk/id/local-authority/00FC,Resources,Property Planned Repairs,Property Planned Repairs,Cap Land/Build-Build Enh Wrk,Cap Land/Build-Build Enh Wrk,YA102,03/01/2012,75106,"2,324.35 ",CAPITAL,ARK JOINERY AND BUILDING MAINTENANCE LTD,101126
North East Lincolnshire Council,http://statistics.data.gov.uk/id/local-authority/00FC,Resources,Catch 3 Feasibility,Catch 3 Feasibility,Cap Auc-Build Enh Wrk,Cap Auc-Build Enh Wrk,YF102,20/01/2012,80811,"285,745.28 ",CAPITAL,HOBSON & PORTER,101010
North East Lincolnshire Council,http://statistics.data.gov.uk/id/local-authority/00FC,Resources,Queen Street Upgrade,Queen Street Upgrade,Cap Land/Build-Build Enh Wrk,Cap Land/Build-Build Enh Wrk,YA102,31/01/2012,84207,561.00 ,CAPITAL,A H ALLEN LTD,104035
North East Lincolnshire Council,http://statistics.data.gov.uk/id/local-authority/00FC,Resources,Queen Street Upgrade,Queen Street Upgrade,Cap Land/Build-Build Enh Wrk,Cap Land/Build-Build Enh Wrk,YA102,13/01/2012,78531,"90,860.43 ",CAPITAL,ISG REGIONS LTD,108070
North East Lincolnshire Council,http://statistics.data.gov.uk/id/local-authority/00FC,Resources,Commission & Information Sys,Information Technology,Indirect Employee Expenses,Staff Training,EB122,30/01/2012,83287,-672.00 ,REVENUE,QA LIMITED,102243
North East Lincolnshire Council,http://statistics.data.gov.uk/id/local-authority/00FC,Resources,Commission & Information Sys,Information Technology,Communications And Computing,Computer H/Ware - Purchases,LF105,04/01/2012,76244,-98.74 ,REVENUE,UNITED CARLTON OFFICE SYSTEMS LTD,101652
North East Lincolnshire Council,http://statistics.data.gov.uk/id/local-authority/00FC,Resources,Commission & Information Sys,Information Technology,Communications And Computing,Computer H/Ware - Purchases,LF105,04/01/2012,76252,-98.73 ,REVENUE,UNITED CARLTON OFFICE SYSTEMS LTD,101652
North East Lincolnshire Council,http://statistics.data.gov.uk/id/local-authority/00FC,Resources,Commission & Information Sys,Information Technology,Communications And Computing,Computer H/Ware - Purchases,LF105,04/01/2012,76250,-98.73 ,REVENUE,UNITED CARLTON OFFICE SYSTEMS LTD,101652
North East Lincolnshire Council,http://statistics.data.gov.uk/id/local-authority/00FC,Resources,Commission & Information Sys,Information Technology,Communications And Computing,Computer H/Ware - Purchases,LF105,04/01/2012,76246,-98.73 ,REVENUE,UNITED CARLTON OFFICE SYSTEMS LTD,101652
North East Lincolnshire Council,http://statistics.data.gov.uk/id/local-authority/00FC,Resources,Commission & Information Sys,Information Technology,Communications And Computing,Computer H/Ware - Purchases,LF105,11/01/2012,78039,-82.17 ,REVENUE,UNITED CARLTON OFFICE SYSTEMS LTD,101652
North East Lincolnshire Council,http://statistics.data.gov.uk/id/local-authority/00FC,Resources,Commission & Information Sys,Corp And Constitutional Govern,Equip / Furniture / Materials,Health & Safety Supplies,LA116,27/01/2012,83283,-66.00 ,REVENUE,HARLEQUIN OFFICE FURNITURE LTD,103530
North East Lincolnshire Council,http://statistics.data.gov.uk/id/local-authority/00FC,Resources,Commission & Information Sys,Corp And Constitutional Govern,Consultancy,Consultancy,PL101,04/01/2012,75655,540.00 ,REVENUE,MARTIN WRIGHT,102395
North East Lincolnshire Council,http://statistics.data.gov.uk/id/local-authority/00FC,Resources,Commission & Information Sys,Procurement,Direct Employee Expenses,Agency Staff,EA105,25/01/2012,81995,569.94 ,REVENUE,MICHAEL PAGE INTERNATIONAL RECRUITMENT LTD,102210
North East Lincolnshire Council,http://statistics.data.gov.uk/id/local-authority/00FC,Resources,Commission & Information Sys,Information Technology,Equip / Furniture / Materials,Equipment - Purchase,LA101,23/01/2012,80448,589.00 ,REVENUE,FREELANCE OFFSET SERVICES LTD,100689
North East Lincolnshire Council,http://statistics.data.gov.uk/id/local-authority/00FC,Resources,Commission & Information Sys,Corp And Constitutional Govern,Other Local Authorities,Third Pp - Other Local Auth,PC101,12/01/2012,78435,615.84 ,REVENUE,Redacted Personal Information,Redacted Personal Information
North East Lincolnshire Council,http://statistics.data.gov.uk/id/local-authority/00FC,Resources,Commission & Information Sys,Corp And Constitutional Govern,Consultancy,Consultancy,PL101,31/01/2012,83853,634.00 ,REVENUE,MARTIN WRIGHT,102395
North East Lincolnshire Council,http://statistics.data.gov.uk/id/local-authority/00FC,Resources,Commission & Information Sys,Information Technology,Private Contractors,Third Party Prov - Private,PH101,20/01/2012,80451,663.00 ,REVENUE,GKD,104781
North East Lincolnshire Council,http://statistics.data.gov.uk/id/local-authority/00FC,Resources,Commission & Information Sys,Information Technology,Indirect Employee Expenses,Staff Training,EB122,23/01/2012,80475,672.00 ,REVENUE,QA LIMITED,102243
North East Lincolnshire Council,http://statistics.data.gov.uk/id/local-authority/00FC,Resources,Commission & Information Sys,Information Technology,Indirect Employee Expenses,Staff Training,EB122,19/01/2012,80474,672.00 ,REVENUE,QA LIMITED,102243
North East Lincolnshire Council,http://statistics.data.gov.uk/id/local-authority/00FC,Resources,Commission & Information Sys,Information Technology,Indirect Employee Expenses,Staff Training,EB122,30/01/2012,83677,672.00 ,REVENUE,QA LIMITED,102243
North East Lincolnshire Council,http://statistics.data.gov.uk/id/local-authority/00FC,Resources,Commission & Information Sys,Information Technology,Private Contractors,Third Party Prov - Private,PH101,09/01/2012,76819,689.40 ,REVENUE,TOTAL SIGNS AND GRAPHICS LTD,104775
North East Lincolnshire Council,http://statistics.data.gov.uk/id/local-authority/00FC,Resources,Commission & Information Sys,Information Technology,Communications And Computing,Computer S/Ware - Purchases,LF101,12/01/2012,78496,714.36 ,REVENUE,FIRMSTEP,108310
North East Lincolnshire Council,http://statistics.data.gov.uk/id/local-authority/00FC,Resources,Commission & Information Sys,Information Technology,Indirect Employee Expenses,Staff Training,EB122,19/01/2012,80478,759.00 ,REVENUE,QA LIMITED,102243
North East Lincolnshire Council,http://statistics.data.gov.uk/id/local-authority/00FC,Resources,Commission & Information Sys,Information Technology,Communications And Computing,Telephones,LF112,27/01/2012,83269,759.76 ,REVENUE,NTL,101502
North East Lincolnshire Council,http://statistics.data.gov.uk/id/local-authority/00FC,Resources,Commission & Information Sys,Procurement,Direct Employee Expenses,Agency Staff,EA105,12/01/2012,78057,759.92 ,REVENUE,MICHAEL PAGE INTERNATIONAL RECRUITMENT LTD,102210
North East Lincolnshire Council,http://statistics.data.gov.uk/id/local-authority/00FC,Resources,Commission & Information Sys,Procurement,Direct Employee Expenses,Agency Staff,EA105,24/01/2012,81249,759.92 ,REVENUE,MICHAEL PAGE INTERNATIONAL RECRUITMENT LTD,102210
North East Lincolnshire Council,http://statistics.data.gov.uk/id/local-authority/00FC,Resources,Commission & Information Sys,Procurement,Direct Employee Expenses,Agency Staff,EA105,24/01/2012,81011,759.92 ,REVENUE,MICHAEL PAGE INTERNATIONAL RECRUITMENT LTD,102210
North East Lincolnshire Council,http://statistics.data.gov.uk/id/local-authority/00FC,Resources,Commission & Information Sys,Information Technology,Communications And Computing,Computer S/Ware - Purchases,LF101,25/01/2012,82187,795.00 ,REVENUE,NCC SERVICES LIMITED,101410
North East Lincolnshire Council,http://statistics.data.gov.uk/id/local-authority/00FC,Resources,Commission & Information Sys,Information Technology,Communications And Computing,Computer H/Ware - Purchases,LF105,06/01/2012,76771,845.26 ,REVENUE,PHOENIX SOFTWARE LTD,100753
North East Lincolnshire Council,http://statistics.data.gov.uk/id/local-authority/00FC,Resources,Commission & Information Sys,Information Technology,Communications And Computing,Telephones,LF112,30/01/2012,83251,848.46 ,REVENUE,NTL,101502
North East Lincolnshire Council,http://statistics.data.gov.uk/id/local-authority/00FC,Resources,Commission & Information Sys,Information Technology,Communications And Computing,Computer H/Ware - Purchases,LF105,30/01/2012,83259,884.85 ,REVENUE,NTL,101502
North East Lincolnshire Council,http://statistics.data.gov.uk/id/local-authority/00FC,Resources,Commission & Information Sys,Information Technology,Communications And Computing,Computer H/Ware - Purchases,LF105,30/01/2012,83264,884.85 ,REVENUE,NTL,101502
North East Lincolnshire Council,http://statistics.data.gov.uk/id/local-authority/00FC,Resources,Commission & Information Sys,Information Technology,Private Contractors,Third Party Prov - Private,PH101,20/01/2012,80450,926.00 ,REVENUE,GKD,104781
North East Lincolnshire Council,http://statistics.data.gov.uk/id/local-authority/00FC,Resources,Commission & Information Sys,Procurement,Direct Employee Expenses,Agency Staff,EA105,11/01/2012,77750,949.90 ,REVENUE,MICHAEL PAGE INTERNATIONAL RECRUITMENT LTD,102210
North East Lincolnshire Council,http://statistics.data.gov.uk/id/local-authority/00FC,Resources,Commission & Information Sys,Procurement,Direct Employee Expenses,Agency Staff,EA105,11/01/2012,77628,949.90 ,REVENUE,MICHAEL PAGE INTERNATIONAL RECRUITMENT LTD,102210
North East Lincolnshire Council,http://statistics.data.gov.uk/id/local-authority/00FC,Resources,Commission & Information Sys,Procurement,Direct Employee Expenses,Agency Staff,EA105,12/01/2012,78376,949.90 ,REVENUE,MICHAEL PAGE INTERNATIONAL RECRUITMENT LTD,102210
North East Lincolnshire Council,http://statistics.data.gov.uk/id/local-authority/00FC,Resources,Commission & Information Sys,Web Governance,Communications And Computing,Computer S/Ware - Maintenance,LF102,04/01/2012,75664,"1,080.18 ",REVENUE,FIRMSTEP,108310
North East Lincolnshire Council,http://statistics.data.gov.uk/id/local-authority/00FC,Resources,Commission & Information Sys,Corp And Constitutional Govern,Consultancy,Consultancy,PL101,31/01/2012,84228,"1,100.00 ",REVENUE,MARTIN WRIGHT,102395
North East Lincolnshire Council,http://statistics.data.gov.uk/id/local-authority/00FC,Resources,Commission & Information Sys,Information Technology,Print Stationery / Gen Off Exp,Photocopier - Running Costs,LD102,31/01/2012,83735,"1,111.65 ",REVENUE,UNITED CARLTON OFFICE SYSTEMS LTD,101652
North East Lincolnshire Council,http://statistics.data.gov.uk/id/local-authority/00FC,Resources,Commission & Information Sys,Information Technology,Indirect Employee Expenses,Staff Training,EB122,23/01/2012,80476,"1,344.00 ",REVENUE,QA LIMITED,102243
North East Lincolnshire Council,http://statistics.data.gov.uk/id/local-authority/00FC,Resources,Commission & Information Sys,Information Technology,Private Contractors,Third Party Prov - Private,PH101,09/01/2012,76842,"1,521.00 ",REVENUE,DONCASTER METROPOLITAN BOROUGH COUNCIL,103098
North East Lincolnshire Council,http://statistics.data.gov.uk/id/local-authority/00FC,Resources,Commission & Information Sys,Information Technology,Private Contractors,Third Party Prov - Private,PH101,09/01/2012,76797,"1,560.00 ",REVENUE,GKD,104781
North East Lincolnshire Council,http://statistics.data.gov.uk/id/local-authority/00FC,Resources,Commission & Information Sys,Information Technology,Private Contractors,Third Party Prov - Private,PH101,09/01/2012,76839,"1,594.00 ",REVENUE,DONCASTER METROPOLITAN BOROUGH COUNCIL,103098
North East Lincolnshire Council,http://statistics.data.gov.uk/id/local-authority/00FC,Resources,Commission & Information Sys,Information Technology,Communications And Computing,Computer S/Ware - Maintenance,LF102,23/01/2012,80498,"1,757.34 ",REVENUE,UNITED CARLTON OFFICE SYSTEMS LTD,101652
North East Lincolnshire Council,http://statistics.data.gov.uk/id/local-authority/00FC,Resources,Commission & Information Sys,Information Technology,Communications And Computing,Computer Consumables,LF109,25/01/2012,81708,"1,995.00 ",REVENUE,INCOMS SYSTEMS PLC,101251
North East Lincolnshire Council,http://statistics.data.gov.uk/id/local-authority/00FC,Resources,Commission & Information Sys,Procurement,Direct Employee Expenses,Agency Staff,EA105,19/01/2012,80413,"2,027.44 ",REVENUE,MATRIX SCM LTD,108117
North East Lincolnshire Council,http://statistics.data.gov.uk/id/local-authority/00FC,Resources,Commission & Information Sys,Procurement,Direct Employee Expenses,Agency Staff,EA105,19/01/2012,80414,"2,327.82 ",REVENUE,MATRIX SCM LTD,108117
North East Lincolnshire Council,http://statistics.data.gov.uk/id/local-authority/00FC,Resources,Commission & Information Sys,Information Technology,Print Stationery / Gen Off Exp,Photocopier - Running Costs,LD102,31/01/2012,83728,"3,095.61 ",REVENUE,UNITED CARLTON OFFICE SYSTEMS LTD,101652
North East Lincolnshire Council,http://statistics.data.gov.uk/id/local-authority/00FC,Resources,Commission & Information Sys,Procurement,Direct Employee Expenses,Agency Staff,EA105,12/01/2012,78524,"3,856.30 ",REVENUE,MATRIX SCM LTD,108117
North East Lincolnshire Council,http://statistics.data.gov.uk/id/local-authority/00FC,Resources,Commission & Information Sys,Information Technology,Direct Employee Expenses,Agency Staff,EA105,10/01/2012,77555,"4,272.32 ",REVENUE,BADENOCH & CLARK,101427
North East Lincolnshire Council,http://statistics.data.gov.uk/id/local-authority/00FC,Resources,Commission & Information Sys,Information Technology,Indirect Employee Expenses,Staff Training,EB122,18/01/2012,80081,"4,500.00 ",REVENUE,QA LIMITED,102243
North East Lincolnshire Council,http://statistics.data.gov.uk/id/local-authority/00FC,Resources,Commission & Information Sys,Information Technology,Communications And Computing,Computer S/Ware - Purchases,LF101,12/01/2012,78482,"4,520.66 ",REVENUE,FIRMSTEP,108310
North East Lincolnshire Council,http://statistics.data.gov.uk/id/local-authority/00FC,Resources,Commission & Information Sys,Procurement,Direct Employee Expenses,Agency Staff,EA105,12/01/2012,78520,"5,019.25 ",REVENUE,MATRIX SCM LTD,108117
North East Lincolnshire Council,http://statistics.data.gov.uk/id/local-authority/00FC,Resources,Commission & Information Sys,Procurement,Direct Employee Expenses,Agency Staff,EA105,12/01/2012,78518,"5,207.50 ",REVENUE,MATRIX SCM LTD,108117
North East Lincolnshire Council,http://statistics.data.gov.uk/id/local-authority/00FC,Resources,Commission & Information Sys,Communication Unit,Print Stationery / Gen Off Exp,Printing And Stationery,LD103,03/01/2012,75163,"6,753.88 ",REVENUE,LDS LTD,103014
North East Lincolnshire Council,http://statistics.data.gov.uk/id/local-authority/00FC,Resources,Commission & Information Sys,Information Technology,Print Stationery / Gen Off Exp,Photocopier - Running Costs,LD102,13/01/2012,79148,"7,312.04 ",REVENUE,XEROX (UK) LIMITED,100953
North East Lincolnshire Council,http://statistics.data.gov.uk/id/local-authority/00FC,Resources,Commission & Information Sys,Information Technology,Communications And Computing,Telephones,LF112,05/01/2012,76584,"12,207.75 ",REVENUE,VODAFONE LIMITED,101324
North East Lincolnshire Council,http://statistics.data.gov.uk/id/local-authority/00FC,Resources,Commission & Information Sys,Information Technology,Communications And Computing,Computer S/Ware - Maintenance,LF102,31/01/2012,84334,"24,496.01 ",REVENUE,TRUSTMARQUE SOLUTIONS LTD,101275
North East Lincolnshire Council,http://statistics.data.gov.uk/id/local-authority/00FC,Resources,Commission & Information Sys,Information Technology,Communications And Computing,Computer S/Ware - Licences,LF103,25/01/2012,82186,"40,253.50 ",REVENUE,TRUSTMARQUE SOLUTIONS LTD,101275
North East Lincolnshire Council,http://statistics.data.gov.uk/id/local-authority/00FC,Resources,Commission & Information Sys,Information Technology,Communications And Computing,Computer S/Ware - Licences,LF103,26/01/2012,82832,"124,807.95 ",REVENUE,TRUSTMARQUE SOLUTIONS LTD,101275
North East Lincolnshire Council,http://statistics.data.gov.uk/id/local-authority/00FC,Resources,Finance & Assets,Facilities Management,Cleaning And Domestic Supplies,Refuse Collection,GH104,23/01/2012,80871,-765.90 ,REVENUE,BELL WASTE CONTROL,101433
North East Lincolnshire Council,http://statistics.data.gov.uk/id/local-authority/00FC,Resources,Finance & Assets,Cfs Assets & Pc Programme,Energy Costs,Electricity,GB102,13/01/2012,78976,-419.26 ,REVENUE,NPOWER LIMITED,101414
North East Lincolnshire Council,http://statistics.data.gov.uk/id/local-authority/00FC,Resources,Finance & Assets,Cfs Assets & Pc Programme,Energy Costs,Electricity,GB102,13/01/2012,78975,-414.56 ,REVENUE,NPOWER LIMITED,101414
North East Lincolnshire Council,http://statistics.data.gov.uk/id/local-authority/00FC,Resources,Finance & Assets,Chief Finance Officer,Indirect Employee Expenses,Staff Training,EB122,24/01/2012,78036,-240.97 ,REVENUE,KAPLAN FINANCIAL LTD,102112
North East Lincolnshire Council,http://statistics.data.gov.uk/id/local-authority/00FC,Resources,Finance & Assets,Facilities Management,Cleaning And Domestic Supplies,Refuse Collection,GH104,17/01/2012,79700,-175.00 ,REVENUE,BELL WASTE CONTROL,101433
North East Lincolnshire Council,http://statistics.data.gov.uk/id/local-authority/00FC,Resources,Finance & Assets,Cfs Assets & Pc Programme,Grounds Maintenance Costs,Grounds Maintenance,GJ101,17/01/2012,79692,-143.05 ,REVENUE,RENTOKIL PEST CONTROL,100587
North East Lincolnshire Council,http://statistics.data.gov.uk/id/local-authority/00FC,Resources,Finance & Assets,Cfs Assets & Pc Programme,Grounds Maintenance Costs,Grounds Maintenance,GJ101,17/01/2012,79691,-136.37 ,REVENUE,RENTOKIL PEST CONTROL,100587
North East Lincolnshire Council,http://statistics.data.gov.uk/id/local-authority/00FC,Resources,Finance & Assets,Facilities Management,Energy Costs,Gas,GB101,03/01/2012,74870,-135.17 ,REVENUE,NPOWER LIMITED,101414
North East Lincolnshire Council,http://statistics.data.gov.uk/id/local-authority/00FC,Resources,Finance & Assets,Facilities Management,Energy Costs,Gas,GB101,03/01/2012,74880,-130.57 ,REVENUE,NPOWER LIMITED,101414
North East Lincolnshire Council,http://statistics.data.gov.uk/id/local-authority/00FC,Resources,Finance & Assets,Valuation & Consultancy,Rep Alterations Maint Building,Buildings - Repairs And Maint,GA102,18/01/2012,79702,-114.00 ,REVENUE,HAITH'S HEATING LTD,101342
North East Lincolnshire Council,http://statistics.data.gov.uk/id/local-authority/00FC,Resources,Finance & Assets,Facilities Management,Cleaning And Domestic Supplies,Refuse Collection,GH104,18/01/2012,79701,-95.00 ,REVENUE,BELL WASTE CONTROL,101433
North East Lincolnshire Council,http://statistics.data.gov.uk/id/local-authority/00FC,Resources,Finance & Assets,Facilities Management,Energy Costs,Gas,GB101,03/01/2012,74878,-84.12 ,REVENUE,NPOWER LIMITED,101414
North East Lincolnshire Council,http://statistics.data.gov.uk/id/local-authority/00FC,Resources,Finance & Assets,Facilities Management,Energy Costs,Gas,GB101,03/01/2012,74869,-79.14 ,REVENUE,NPOWER LIMITED,101414
North East Lincolnshire Council,http://statistics.data.gov.uk/id/local-authority/00FC,Resources,Finance & Assets,Income & Payments Service,Miscellaneous Expenses,Legal Fees - General,LL103,18/01/2012,80124,-71.75 ,REVENUE,HER MAJESTY'S COURT & TRIBUNAL SERVICE,107704
North East Lincolnshire Council,http://statistics.data.gov.uk/id/local-authority/00FC,Resources,Finance & Assets,Accountancy,Equip / Furniture / Materials,Books,LA121,16/01/2012,78328,500.00 ,REVENUE,CIPFA BUSINESS LIMITED,102338
North East Lincolnshire Council,http://statistics.data.gov.uk/id/local-authority/00FC,Resources,Finance & Assets,Valuation & Consultancy,Cleaning And Domestic Supplies,Refuse Collection,GH104,23/01/2012,80626,504.98 ,REVENUE,VEOLIA ES CLEANAWAY (UK) LTD,101783
North East Lincolnshire Council,http://statistics.data.gov.uk/id/local-authority/00FC,Resources,Finance & Assets,Cfs Assets & Pc Programme,Energy Costs,Electricity,GB102,04/01/2012,75466,517.79 ,REVENUE,NPOWER LIMITED,101414
North East Lincolnshire Council,http://statistics.data.gov.uk/id/local-authority/00FC,Resources,Finance & Assets,Valuation & Consultancy,Cleaning And Domestic Supplies,Refuse Collection,GH104,31/01/2012,84167,519.96 ,REVENUE,VEOLIA ES CLEANAWAY (UK) LTD,101783
North East Lincolnshire Council,http://statistics.data.gov.uk/id/local-authority/00FC,Resources,Finance & Assets,Facilities Management,Cleaning And Domestic Supplies,Refuse Collection,GH104,23/01/2012,80622,522.00 ,REVENUE,BELL WASTE CONTROL,101433
North East Lincolnshire Council,http://statistics.data.gov.uk/id/local-authority/00FC,Resources,Finance & Assets,Facilities Management,Water Services,Water,GE101,03/01/2012,75245,554.57 ,REVENUE,ANGLIAN WATER,100508
North East Lincolnshire Council,http://statistics.data.gov.uk/id/local-authority/00FC,Resources,Finance & Assets,Cfs Assets & Pc Programme,Energy Costs,Electricity,GB102,30/01/2012,83784,579.54 ,REVENUE,NPOWER LIMITED,101414
North East Lincolnshire Council,http://statistics.data.gov.uk/id/local-authority/00FC,Resources,Finance & Assets,Valuation & Consultancy,Cleaning And Domestic Supplies,Refuse Collection,GH104,23/01/2012,80633,584.45 ,REVENUE,VEOLIA ES CLEANAWAY (UK) LTD,101783
North East Lincolnshire Council,http://statistics.data.gov.uk/id/local-authority/00FC,Resources,Finance & Assets,Facilities Management,Cleaning And Domestic Supplies,Refuse Collection,GH104,23/01/2012,80829,590.90 ,REVENUE,BELL WASTE CONTROL,101433
North East Lincolnshire Council,http://statistics.data.gov.uk/id/local-authority/00FC,Resources,Finance & Assets,Income & Payments Service,Miscellaneous Expenses,Debt Recovery Costs,LL111,31/01/2012,83898,Redacted Commercially Sensitive,REVENUE,WILKIN CHAPMAN SOLICITORS,100948
North East Lincolnshire Council,http://statistics.data.gov.uk/id/local-authority/00FC,Resources,Finance & Assets,Facilities Management,Water Services,Water,GE101,31/01/2012,84208,592.14 ,REVENUE,ANGLIAN WATER,100508
North East Lincolnshire Council,http://statistics.data.gov.uk/id/local-authority/00FC,Resources,Finance & Assets,Facilities Management,Water Services,Water,GE101,18/01/2012,79866,600.49 ,REVENUE,ANGLIAN WATER,100508
North East Lincolnshire Council,http://statistics.data.gov.uk/id/local-authority/00FC,Resources,Finance & Assets,Facilities Management,Water Services,Water,GE101,03/01/2012,75231,609.40 ,REVENUE,ANGLIAN WATER,100508
North East Lincolnshire Council,http://statistics.data.gov.uk/id/local-authority/00FC,Resources,Finance & Assets,Income & Payments Service,Communications And Computing,Postage,LF111,09/01/2012,76748,639.08 ,REVENUE,FINANCIAL DATA MANAGEMENT LTD,101784
North East Lincolnshire Council,http://statistics.data.gov.uk/id/local-authority/00FC,Resources,Finance & Assets,Valuation & Consultancy,Energy Costs,Gas,GB101,03/01/2012,75217,643.77 ,REVENUE,ANGLIAN WATER,100508
North East Lincolnshire Council,http://statistics.data.gov.uk/id/local-authority/00FC,Resources,Finance & Assets,Income & Payments Service,Communications And Computing,Computer S/Ware - Maintenance,LF102,16/01/2012,79411,Redacted Commercially Sensitive,REVENUE,NORTHGATE INFORMATION SOLUTIONS UK LTD,101841
North East Lincolnshire Council,http://statistics.data.gov.uk/id/local-authority/00FC,Resources,Finance & Assets,Valuation & Consultancy,Grounds Maintenance Costs,Grounds Maintenance,GJ101,17/01/2012,79878,665.00 ,REVENUE,GIBSON & FAULDING LTD,103646
North East Lincolnshire Council,http://statistics.data.gov.uk/id/local-authority/00FC,Resources,Finance & Assets,Accountancy,Grants And Subscriptions,Subscriptions,LJ101,24/01/2012,81165,690.00 ,REVENUE,FINANCIAL REPORTING COUNCIL,108360
North East Lincolnshire Council,http://statistics.data.gov.uk/id/local-authority/00FC,Resources,Finance & Assets,Valuation & Consultancy,Cleaning And Domestic Supplies,Refuse Collection,GH104,30/01/2012,83917,691.78 ,REVENUE,VEOLIA ES CLEANAWAY (UK) LTD,101783
North East Lincolnshire Council,http://statistics.data.gov.uk/id/local-authority/00FC,Resources,Finance & Assets,Valuation & Consultancy,Water Services,Water,GE101,03/01/2012,75164,718.49 ,REVENUE,ANGLIAN WATER,100508
North East Lincolnshire Council,http://statistics.data.gov.uk/id/local-authority/00FC,Resources,Finance & Assets,Cfs Assets & Pc Programme,Energy Costs,Electricity,GB102,13/01/2012,79041,727.91 ,REVENUE,NPOWER LIMITED,101414
North East Lincolnshire Council,http://statistics.data.gov.uk/id/local-authority/00FC,Resources,Finance & Assets,Facilities Management,Rents,Service Charge,GC102,11/01/2012,78024,730.00 ,REVENUE,JOHN SUTCLIFFE & SON (HOLDINGS) LTD,101339
North East Lincolnshire Council,http://statistics.data.gov.uk/id/local-authority/00FC,Resources,Finance & Assets,Accountancy,Direct Employee Expenses,Agency Staff,EA105,06/01/2012,76775,761.76 ,REVENUE,BADENOCH & CLARK,101427
North East Lincolnshire Council,http://statistics.data.gov.uk/id/local-authority/00FC,Resources,Finance & Assets,Valuation & Consultancy,Water Services,Water,GE101,25/01/2012,82068,762.42 ,REVENUE,ANGLIAN WATER,100508
North East Lincolnshire Council,http://statistics.data.gov.uk/id/local-authority/00FC,Resources,Finance & Assets,Accountancy,Direct Employee Expenses,Agency Staff,EA105,16/01/2012,79429,772.19 ,REVENUE,BADENOCH & CLARK,101427
North East Lincolnshire Council,http://statistics.data.gov.uk/id/local-authority/00FC,Resources,Finance & Assets,Accountancy,Equip / Furniture / Materials,Books,LA121,16/01/2012,78325,780.00 ,REVENUE,CIPFA BUSINESS LIMITED,102338
North East Lincolnshire Council,http://statistics.data.gov.uk/id/local-authority/00FC,Resources,Finance & Assets,Facilities Management,Rents,Service Charge,GC102,11/01/2012,78025,780.00 ,REVENUE,WYKELAND PROPERTIES LTD,101729
North East Lincolnshire Council,http://statistics.data.gov.uk/id/local-authority/00FC,Resources,Finance & Assets,Facilities Management,Rents,Service Charge,GC102,11/01/2012,78026,780.00 ,REVENUE,WYKELAND PROPERTIES LTD,101729
North East Lincolnshire Council,http://statistics.data.gov.uk/id/local-authority/00FC,Resources,Finance & Assets,Facilities Management,Energy Costs,Heating Fuel,GB103,03/01/2012,75107,780.65 ,REVENUE,WATSON PETROLEUM LTD,101348
North East Lincolnshire Council,http://statistics.data.gov.uk/id/local-authority/00FC,Resources,Finance & Assets,Accountancy,Direct Employee Expenses,Agency Staff,EA105,03/01/2012,74879,782.63 ,REVENUE,BADENOCH & CLARK,101427
North East Lincolnshire Council,http://statistics.data.gov.uk/id/local-authority/00FC,Resources,Finance & Assets,Accountancy,Direct Employee Expenses,Agency Staff,EA105,16/01/2012,78330,793.06 ,REVENUE,BADENOCH & CLARK,101427
North East Lincolnshire Council,http://statistics.data.gov.uk/id/local-authority/00FC,Resources,Finance & Assets,Facilities Management,Cleaning And Domestic Supplies,Cleaning - Services,GH102,30/01/2012,83844,796.11 ,REVENUE,OCS LIMITED,101291
North East Lincolnshire Council,http://statistics.data.gov.uk/id/local-authority/00FC,Resources,Finance & Assets,Facilities Management,Rents,Rent,GC101,11/01/2012,78003,812.50 ,REVENUE,MARCUS KING & CO,101446
North East Lincolnshire Council,http://statistics.data.gov.uk/id/local-authority/00FC,Resources,Finance & Assets,Facilities Management,Water Services,Water,GE101,31/01/2012,84213,815.31 ,REVENUE,ANGLIAN WATER,100508
North East Lincolnshire Council,http://statistics.data.gov.uk/id/local-authority/00FC,Resources,Finance & Assets,Valuation & Consultancy,Water Services,Water,GE101,18/01/2012,79880,819.15 ,REVENUE,ANGLIAN WATER,100508
North East Lincolnshire Council,http://statistics.data.gov.uk/id/local-authority/00FC,Resources,Finance & Assets,Facilities Management,Cleaning And Domestic Supplies,Cleaning - Services,GH102,19/01/2012,80219,841.67 ,REVENUE,OCS LIMITED,101291
North East Lincolnshire Council,http://statistics.data.gov.uk/id/local-authority/00FC,Resources,Finance & Assets,Facilities Management,Water Services,Water,GE101,19/01/2012,80428,850.88 ,REVENUE,ANGLIAN WATER,100508
North East Lincolnshire Council,http://statistics.data.gov.uk/id/local-authority/00FC,Resources,Finance & Assets,Income & Payments Service,Indirect Employee Expenses,Staff Training,EB122,24/01/2012,81570,853.00 ,REVENUE,ITS TRAINING (UK) LTD,108452
North East Lincolnshire Council,http://statistics.data.gov.uk/id/local-authority/00FC,Resources,Finance & Assets,Facilities Management,Energy Costs,Gas,GB101,18/01/2012,79873,872.99 ,REVENUE,E-ON (GAS),101983
North East Lincolnshire Council,http://statistics.data.gov.uk/id/local-authority/00FC,Resources,Finance & Assets,Facilities Management,Rents,Service Charge,GC102,11/01/2012,78019,910.00 ,REVENUE,AWS LTD,101343
North East Lincolnshire Council,http://statistics.data.gov.uk/id/local-authority/00FC,Resources,Finance & Assets,Income & Payments Service,Miscellaneous Expenses,Other Expenses General,LL119,31/01/2012,61216,913.84 ,REVENUE,Redacted Personal Information,Redacted Personal Information
North East Lincolnshire Council,http://statistics.data.gov.uk/id/local-authority/00FC,Resources,Finance & Assets,Facilities Management,Water Services,Water,GE101,31/01/2012,84210,914.97 ,REVENUE,ANGLIAN WATER,100508
North East Lincolnshire Council,http://statistics.data.gov.uk/id/local-authority/00FC,Resources,Finance & Assets,Income & Payments Service,Direct Employee Expenses,Pay,EA101,09/01/2012,76972,925.00 ,REVENUE,BADENOCH & CLARK,101427
North East Lincolnshire Council,http://statistics.data.gov.uk/id/local-authority/00FC,Resources,Finance & Assets,Income & Payments Service,Direct Employee Expenses,Pay,EA101,19/01/2012,80401,925.00 ,REVENUE,BADENOCH & CLARK,101427
North East Lincolnshire Council,http://statistics.data.gov.uk/id/local-authority/00FC,Resources,Finance & Assets,Valuation & Consultancy,Water Services,Water,GE101,18/01/2012,79887,927.19 ,REVENUE,ANGLIAN WATER,100508
North East Lincolnshire Council,http://statistics.data.gov.uk/id/local-authority/00FC,Resources,Finance & Assets,Facilities Management,Energy Costs,Gas,GB101,03/01/2012,75234,936.26 ,REVENUE,ANGLIAN WATER,100508
North East Lincolnshire Council,http://statistics.data.gov.uk/id/local-authority/00FC,Resources,Finance & Assets,Facilities Management,Rents,Rent,GC101,03/01/2012,75137,950.00 ,REVENUE,MR J A STEVENSON,104450
North East Lincolnshire Council,http://statistics.data.gov.uk/id/local-authority/00FC,Resources,Finance & Assets,Valuation & Consultancy,Water Services,Water,GE101,31/01/2012,84201,979.91 ,REVENUE,ANGLIAN WATER,100508
North East Lincolnshire Council,http://statistics.data.gov.uk/id/local-authority/00FC,Resources,Finance & Assets,Facilities Management,Energy Costs,Heating Fuel,GB103,18/01/2012,79865,982.65 ,REVENUE,WATSON PETROLEUM LTD,101348
North East Lincolnshire Council,http://statistics.data.gov.uk/id/local-authority/00FC,Resources,Finance & Assets,Facilities Management,Water Services,Water,GE101,26/01/2012,82296,985.36 ,REVENUE,ANGLIAN WATER,100508
North East Lincolnshire Council,http://statistics.data.gov.uk/id/local-authority/00FC,Resources,Finance & Assets,Facilities Management,Energy Costs,Gas,GB101,03/01/2012,75173,988.47 ,REVENUE,E-ON (GAS),101983
North East Lincolnshire Council,http://statistics.data.gov.uk/id/local-authority/00FC,Resources,Finance & Assets,Income & Payments Service,Communications And Computing,Postage,LF111,20/01/2012,80611,"1,021.63 ",REVENUE,FINANCIAL DATA MANAGEMENT LTD,101784
North East Lincolnshire Council,http://statistics.data.gov.uk/id/local-authority/00FC,Resources,Finance & Assets,Income & Payments Service,Communications And Computing,Computer S/Ware - Maintenance,LF102,16/01/2012,79100,Redacted Commercially Sensitive,REVENUE,NORTHGATE INFORMATION SOLUTIONS UK LTD,101841
North East Lincolnshire Council,http://statistics.data.gov.uk/id/local-authority/00FC,Resources,Finance & Assets,Facilities Management,Water Services,Water,GE101,23/01/2012,80759,"1,069.65 ",REVENUE,ANGLIAN WATER,100508
North East Lincolnshire Council,http://statistics.data.gov.uk/id/local-authority/00FC,Resources,Finance & Assets,Valuation & Consultancy,Water Services,Water,GE101,23/01/2012,80456,"1,084.85 ",REVENUE,ANGLIAN WATER,100508
North East Lincolnshire Council,http://statistics.data.gov.uk/id/local-authority/00FC,Resources,Finance & Assets,Income & Payments Service,Communications And Computing,Postage,LF111,23/01/2012,80612,"1,085.50 ",REVENUE,FINANCIAL DATA MANAGEMENT LTD,101784
North East Lincolnshire Council,http://statistics.data.gov.uk/id/local-authority/00FC,Resources,Finance & Assets,Accountancy,Direct Employee Expenses,Agency Staff,EA105,04/01/2012,74884,"1,104.00 ",REVENUE,BADENOCH & CLARK,101427
North East Lincolnshire Council,http://statistics.data.gov.uk/id/local-authority/00FC,Resources,Finance & Assets,Facilities Management,Water Services,Water,GE101,31/01/2012,84200,"1,149.97 ",REVENUE,ANGLIAN WATER,100508
North East Lincolnshire Council,http://statistics.data.gov.uk/id/local-authority/00FC,Resources,Finance & Assets,Valuation & Consultancy,Rates,Rates,GD101,03/01/2012,75264,"1,170.70 ",REVENUE,NORTH EAST LINCOLNSHIRE COUNCIL,100894
North East Lincolnshire Council,http://statistics.data.gov.uk/id/local-authority/00FC,Resources,Finance & Assets,Valuation & Consultancy,Rates,Rates,GD101,03/01/2012,75265,"1,170.70 ",REVENUE,NORTH EAST LINCOLNSHIRE COUNCIL,100894
North East Lincolnshire Council,http://statistics.data.gov.uk/id/local-authority/00FC,Resources,Finance & Assets,Facilities Management,Water Services,Water,GE101,23/01/2012,80759,"1,173.98 ",REVENUE,ANGLIAN WATER,100508
North East Lincolnshire Council,http://statistics.data.gov.uk/id/local-authority/00FC,Resources,Finance & Assets,Valuation & Consultancy,Energy Costs,Electricity,GB102,03/01/2012,75210,"1,191.35 ",REVENUE,BOURNE LEISURE LTD,102429
North East Lincolnshire Council,http://statistics.data.gov.uk/id/local-authority/00FC,Resources,Finance & Assets,Valuation & Consultancy,Energy Costs,Gas,GB101,24/01/2012,81673,"1,191.70 ",REVENUE,NPOWER LIMITED,101414
North East Lincolnshire Council,http://statistics.data.gov.uk/id/local-authority/00FC,Resources,Finance & Assets,Accountancy,Equip / Furniture / Materials,Books,LA121,16/01/2012,78327,"1,196.00 ",REVENUE,CIPFA BUSINESS LIMITED,102338
North East Lincolnshire Council,http://statistics.data.gov.uk/id/local-authority/00FC,Resources,Finance & Assets,Accountancy,Direct Employee Expenses,Agency Staff,EA105,09/01/2012,76776,"1,200.00 ",REVENUE,BADENOCH & CLARK,101427
North East Lincolnshire Council,http://statistics.data.gov.uk/id/local-authority/00FC,Resources,Finance & Assets,Accountancy,Direct Employee Expenses,Agency Staff,EA105,16/01/2012,78324,"1,224.00 ",REVENUE,BADENOCH & CLARK,101427
North East Lincolnshire Council,http://statistics.data.gov.uk/id/local-authority/00FC,Resources,Finance & Assets,Accountancy,Direct Employee Expenses,Agency Staff,EA105,06/01/2012,76774,"1,248.00 ",REVENUE,BADENOCH & CLARK,101427
North East Lincolnshire Council,http://statistics.data.gov.uk/id/local-authority/00FC,Resources,Finance & Assets,Valuation & Consultancy,Cleaning And Domestic Supplies,Refuse Collection,GH104,23/01/2012,80624,"1,258.95 ",REVENUE,VEOLIA ES CLEANAWAY (UK) LTD,101783
North East Lincolnshire Council,http://statistics.data.gov.uk/id/local-authority/00FC,Resources,Finance & Assets,Facilities Management,Energy Costs,Heating Fuel,GB103,24/01/2012,81747,"1,278.55 ",REVENUE,WATSON PETROLEUM LTD,101348
North East Lincolnshire Council,http://statistics.data.gov.uk/id/local-authority/00FC,Resources,Finance & Assets,Income & Payments Service,Communications And Computing,Postage,LF111,31/01/2012,84349,"1,357.25 ",REVENUE,FINANCIAL DATA MANAGEMENT LTD,101784
North East Lincolnshire Council,http://statistics.data.gov.uk/id/local-authority/00FC,Resources,Finance & Assets,Cfs Assets & Pc Programme,Water Services,Water,GE101,26/01/2012,82544,"1,393.97 ",REVENUE,ANGLIAN WATER,100508
North East Lincolnshire Council,http://statistics.data.gov.uk/id/local-authority/00FC,Resources,Finance & Assets,Valuation & Consultancy,Rents,Rent,GC101,04/01/2012,75219,"1,468.75 ",REVENUE,ASSOCIATED BRITISH PORTS,100834
North East Lincolnshire Council,http://statistics.data.gov.uk/id/local-authority/00FC,Resources,Finance & Assets,Facilities Management,Water Services,Water,GE101,03/01/2012,75160,"1,558.36 ",REVENUE,ANGLIAN WATER,100508
North East Lincolnshire Council,http://statistics.data.gov.uk/id/local-authority/00FC,Resources,Finance & Assets,Facilities Management,Water Services,Water,GE101,26/01/2012,82066,"1,631.68 ",REVENUE,ANGLIAN WATER,100508
North East Lincolnshire Council,http://statistics.data.gov.uk/id/local-authority/00FC,Resources,Finance & Assets,Cfs Assets & Pc Programme,Rep Alterations Maint Building,Buildings - Repairs And Maint,GA102,05/01/2012,76617,"1,690.56 ",REVENUE,NPOWER LIMITED,101414
North East Lincolnshire Council,http://statistics.data.gov.uk/id/local-authority/00FC,Resources,Finance & Assets,Valuation & Consultancy,Water Services,Water,GE101,11/01/2012,78016,"1,764.07 ",REVENUE,JONES LANG LASALLE,101853
North East Lincolnshire Council,http://statistics.data.gov.uk/id/local-authority/00FC,Resources,Finance & Assets,Valuation & Consultancy,Water Services,Water,GE101,11/01/2012,78015,"1,782.91 ",REVENUE,JONES LANG LASALLE,101853
North East Lincolnshire Council,http://statistics.data.gov.uk/id/local-authority/00FC,Resources,Finance & Assets,Valuation & Consultancy,Water Services,Water,GE101,18/01/2012,79943,"1,870.38 ",REVENUE,ASSOCIATED BRITISH PORTS,100834
North East Lincolnshire Council,http://statistics.data.gov.uk/id/local-authority/00FC,Resources,Finance & Assets,Facilities Management,Water Services,Water,GE101,23/01/2012,80452,"1,885.06 ",REVENUE,ANGLIAN WATER,100508
North East Lincolnshire Council,http://statistics.data.gov.uk/id/local-authority/00FC,Resources,Finance & Assets,Valuation & Consultancy,Energy Costs,Electricity,GB102,25/01/2012,82071,"1,900.30 ",REVENUE,BOURNE LEISURE LTD,102429
North East Lincolnshire Council,http://statistics.data.gov.uk/id/local-authority/00FC,Resources,Finance & Assets,Income & Payments Service,Indirect Employee Expenses,Staff Training,EB122,25/01/2012,81571,"1,945.00 ",REVENUE,ITS TRAINING (UK) LTD,108452
